Workbook

Sheet 0. Intro
B1: Select your language
B2: ='12.lan'!D4 -> BALANCE SHEET CALCULATOR | M2: =IF('12.lan'!B2="","",'12.lan'!B2) -> Select your language
B3: ='12.lan'!D6 -> Version | C3: 5.04 | M3: =IF('12.lan'!B3="","",'12.lan'!B3) -> Deutsch
M4: =IF('12.lan'!B4="","",'12.lan'!B4) -> Italiano
B5: ='12.lan'!D7 -> WELCOME! | M5: =IF('12.lan'!B5="","",'12.lan'!B5) -> English
B6: ='12.lan'!D8 -> This tool is for calculating the overall Common Good Points for your company or organisation. It complements the Common Good Report and has to be used together with it. Have fun with your calculation! | M6: =IF('12.lan'!B6="","",'12.lan'!B6) -> Español
M7: =IF('12.lan'!B7="","",'12.lan'!B7) -> Francais
B8: ='12.lan'!D9 -> HOW TO USE THE BALANCE SHEET CALCULATOR: | M8: =IF('12.lan'!B8="","",'12.lan'!B8) -> Portugues
B9: ='12.lan'!D10 -> 1. General | D9: ='12.lan'!D11 -> You can enter general information about your company or organisation in this section. | M9: =IF('12.lan'!B9="","",'12.lan'!B9) -> Griechisch
B10: ='12.lan'!D28 -> 2. Company details | D10: ='12.lan'!D12 -> All fields in this section must be completed as they are essential for the weighting of each theme. | M10: =IF('12.lan'!B10="","",'12.lan'!B10) -> 
B11: ='12.lan'!D29 -> 3. Scoring | D11: ='12.lan'!D13 -> For each theme (A1, B1, ...) a certain maximum number of Common Good Points can be achieved. To evaluate how many points your company scores, follow these steps: | M11: =IF('12.lan'!B11="","",'12.lan'!B11) -> 
B12: a) | D12: ='12.lan'!D14 -> Describe the current status and potential for improvement for the various aspects under key headings. Use the workbook as a reference. (This is optional and not absolutely necessary for the calculation.) | M12: =IF('12.lan'!B12="","",'12.lan'!B12) -> 
B13: b) | D13: ='12.lan'!D15 -> Based on these descriptions, indicate on a scale of 0-10 how far you consider the respective aspect is met (Achievement level). The criteria for choosing the correct value can be found in the Workbook.
B14: c) | D14: ='12.lan'!D16 -> Negative aspects are allocated negative points according to the descriptions set out in the Workbook.
B15: d) | D15: ='12.lan'!D17 -> Where deemed necessary for your company and in agreement with the auditors you can change the relative weightings of individual aspects (A1.1, A1.2, ..). In the column Weighting, you can select values for each aspect. The distribution of available points for individual aspects will then be adjusted automatically, so that the total of all aspects of an indicator result in 100%.
B16: e) | D16: ='12.lan'!D18 -> The calculation automatically weights each theme’s total value against the data in the ‘Company details’ section and rounds it to a whole-number multiple of 10%.
B17: ='12.lan'!D30 -> 4. ECG Matrix | D17: ='12.lan'!D19 -> The ECG-Matrix displays your result in a table.
B18: ='12.lan'!D31 -> 5. Values star | D18: ='12.lan'!D21 -> The values-star displays your result arranged by value as a graphic.
B19: ='12.lan'!D32 -> 6. Group star | D19: ='12.lan'!D22 -> The group-star displays your result arranged by stakeholder as a graphic.
B20: ='12.lan'!D33 -> 7. Theme star | D20: ='12.lan'!D23 -> The theme-star displays the result of your themes as a graphic.
B21: ='12.lan'!D34 -> 8. Weighting model description | D21: ='12.lan'!D24 -> This is a description of the weighting model.
B22: ='12.lan'!D35 -> 9. Weighting (hidden) | D22: ='12.lan'!D25 -> This is where the calculation determines how the individual stakeholder groups and themes are weighted.
B23: ='12.lan'!D36 -> 10. Industry sectors (hidden) | D23: ='12.lan'!D26 -> This contains an assessment of the relevance of supply chains and environmental sustainability for all industry sectors, used in the weighting.
B24: ='12.lan'!D37 -> 11. Countries (hidden) | D24: ='12.lan'!D27 -> This contains statistics for countries and regions used in the weighting.
B26: ='12.lan'!D40 -> KEY
B27: ='12.lan'!D41 -> Field is editable (green frame, dark green text)
B29: ='12.lan'!D42 -> Feld is read-only (grey frame, dark grey text)
B31: ='12.lan'!D43 -> non valid value entry (for correct calculation change value)
B33: ='12.lan'!D54 -> CONTACT
B34: ='12.lan'!D55 -> Questions regarding preparation of balance sheet: beratung@gemeinwohl-oekonomie.org (GWÖ-BeraterInnen);
B35: ='12.lan'!D56 -> Questions regarding audit: audit@gemeinwohl-oekonomie.org (GWÖ-AuditorInnen);
B36: ='12.lan'!D57 -> Feedback on the development of the Matrix: bilanz@ecogood.org (Matrix Development Team)
B37: ='12.lan'!D58 -> Excel programming: Christian Loy (christian.loy@gmx.at); Christian Kozina; Multilanguage tool: Bernhard Oberrauch
B38: ='12.lan'!D59 -> Contents: ECG-Matrix Development Team
B40: ='12.lan'!D60 -> NOTES
B41: ='12.lan'!D61 -> All sheets are optimised for printing on A4 format (landscape or portrait). The height of rows can be adjusted, if you enter more text

Sheet 1. General
B2: ='12.lan'!D91&" - "&'0. Intro'!B3&" "&'0. Intro'!C3 -> Common Good Balance Calculator - Version 5.04
B3: ='12.lan'!D62 -> GENERAL INFORMATION ABOUT THE COMPANY
B4: ='12.lan'!D63 -> Please complete all fields.
B6: ='12.lan'!D64 -> Name of Company / Organisation: | C6: company
B7: ='12.lan'!D65 -> Address: | C7: adresse
B8: ='12.lan'!D66 -> Country: | C8: germany
B9: ='12.lan'!D67 -> Industry sector: | C9: a sector
B10: ='12.lan'!D68 -> Website: | C10: foo.bar.de
B12: ='12.lan'!D83 -> Period under review
B14: ='12.lan'!D73 -> Document created by: | C14: Mr Smith
B15: ='12.lan'!D74 -> Email address: | C15: mail@bla.com
B16: ='12.lan'!D75 -> Phone number:
B18: ='12.lan'!D76 -> Consultant:
B19: ='12.lan'!D74 -> Email address:
B20: ='12.lan'!D75 -> Phone number:
B22: ='12.lan'!D79 -> Short description of Company / Organisation | C22: this is just a description
B24: ='12.lan'!D80 -> Additional comments: | C24: comments for some bla…

Sheet 2. Company Facts
B2: ='12.lan'!D91&" - "&'0. Intro'!B3&" "&'0. Intro'!C3 -> Common Good Balance Calculator - Version 5.04 | M2: ='12.lan'!D52 -> yes
B3: ='12.lan'!D194 -> Company details | M3: ='12.lan'!D53 -> no
B4: ='12.lan'!D195 -> Fill in the highlighted fields below. Where detailed information is not available, please enter estimates, otherwise the calculation will not be accurate
B6: ='12.lan'!B108 -> A: Suppliers
B7: ='12.lan'!D297 -> Total purchases from suppliers (in Euros): | C7: 10,000 | D7: =IF(SUM(F10:F14)>C7,'12.lan'!D44,"") -> 
B8: ='12.lan'!D298 -> Enter the 5 most important industry sectors whose products or services you use.
B9: ='12.lan'!D299 -> Industry sector | C9: ='12.lan'!D300 -> Description | D9: ='12.lan'!D301 -> Region of origin | F9: ='12.lan'!D302 -> Costs
B10: ='12.lan'!$D$203 -> Please choose | C10: ='12.lan'!$D$202 -> Please enter | D10: ='12.lan'!$D$203 -> Please choose | F10: 500
B11: ='12.lan'!$D$203 -> Please choose | C11: ='12.lan'!$D$202 -> Please enter | D11: ='12.lan'!$D$203 -> Please choose | F11: 0
B12: ='12.lan'!$D$203 -> Please choose | C12: ='12.lan'!$D$202 -> Please enter | D12: ='12.lan'!$D$203 -> Please choose | F12: 0
B13: ='12.lan'!$D$203 -> Please choose | C13: ='12.lan'!$D$202 -> Please enter | D13: ='12.lan'!$D$203 -> Please choose | F13: 0
B14: ='12.lan'!$D$203 -> Please choose | C14: ='12.lan'!$D$202 -> Please enter | D14: ='12.lan'!$D$203 -> Please choose | F14: 0
B15: ='12.lan'!$D$303 -> Main origin of the other suppliers | D15: ='12.lan'!$D$203 -> Please choose | F15: =C7-F10-F11-F12-F13-F14 -> 9,500
B17: ='12.lan'!B122 -> B: Owners, equity- and financial service providers
B18: ='12.lan'!D304 -> Profit | C18: 500
B19: ='12.lan'!D305 -> Financing costs | C19: 12
B20: ='12.lan'!D306 -> Income from financial investments | C20: 23
B21: ='12.lan'!D307 -> Total assets | C21: 44
B22: ='12.lan'!D308 -> Additions to fixed-assets | C22: 55
B23: ='12.lan'!D309 -> Financial assets and cash balance | C23: 66
B25: ='12.lan'!B137 -> C: Employees
B26: ='12.lan'!D310 -> Number of employees (full time equivalents) | C26: 1,234
B27: ='12.lan'!D311 -> Staff costs (gross without employer contribution) | C27: 33,333
B28: ='12.lan'!D312 -> Enter the 3 countries and regions where most of the staff are
B29: ='12.lan'!D313 -> Country and region | D29: ='12.lan'!D314 -> Amount in %
B30: ='12.lan'!$D$203 -> Please choose | D30: 0 % | E30: =IF(SUM(D30:D32)>"100%","fehlerhafte Eingabe","") -> 
B31: ='12.lan'!$D$203 -> Please choose | D31: 0 %
B32: ='12.lan'!$D$203 -> Please choose | D32: 0 %
B33: ='12.lan'!D315 -> Average journey to work for staff (in km) | C33: 0
B34: ='12.lan'!D316 -> Is there a canteen for the majority of staff? | D34: Ja | F34: Nein
B36: ='12.lan'!B158 -> D: Customers and other companies
B37: ='12.lan'!D317 -> Turnover (in Euros)
B38: ='12.lan'!D318 -> Are your customers mainly other companies?
B39: ='12.lan'!D319 -> Enter the 3 most important industry sectors which your company is active in, including a rough share of turnover
B40: ='12.lan'!D320 -> Industry sector | C40: ='12.lan'!D321 -> Description | D40: ='12.lan'!D322 -> % Amount of total turnover
B41: ='12.lan'!$D$203 -> Please choose | D41: 0 % | F41: =IF(SUM(D41:D43)>"100%","fehlerhafte Eingabe","") -> 
B42: ='12.lan'!$D$203 -> Please choose | D42: 0 %
B43: ='12.lan'!$D$203 -> Please choose | D43: 0 % | F43: =IF(SUM(D41:D43)>1,'12.lan'!D44,"") -> 
B45: ='12.lan'!B175 -> E: Social environment
B46: ='12.lan'!D323 -> Company size | C46: ='9. Weighting'!H39 -> Large business

Sheet 3. Calc
B2: ='12.lan'!D91&" - "&'0. Intro'!B3&" "&'0. Intro'!C3 -> Common Good Balance Calculator - Version 5.04
B3: ='12.lan'!D90 -> CALCULATION OF INDIVIDUAL ASPECTS
F4: ='12.lan'!D92 -> Total Balance Score: | H4: =I4/J4 -> 22 % | I4: =IF(SUM(I9+I23+I38+I59+I76)*1000/SUM(J9+J23+J38+J59+J76)<-3600,-3600,SUM(I9+I23+I38+I59+I76)*1000/SUM(J9+J23+J38+J59+J76)) -> 223 | J4: =SUM(J9+J23+J38+J59+J76)*1000/SUM(J9+J23+J38+J59+J76) -> 1000 | L4: ausblenden | O4: ausblenben
B5: ='12.lan'!D82&": "&'1. General'!C6&"; "&'12.lan'!D83&": "&'1. General'!C12 -> Company / Organisation: company; Period under review:
B8: ='12.lan'!D93 -> No. | C8: ='12.lan'!D107 -> Stakeholders/ Themes/ Aspects | D8: ='12.lan'!D96 -> Weight | F8: ='12.lan'!D102 -> Current status | H8: ='12.lan'!D104 -> Est% | I8: ='12.lan'!D105 -> Points | J8: ='12.lan'!D106 -> Max. | L8: Gewichtung Standard | O8: Reset
B9: A | C9: ='12.lan'!D108 -> Suppliers | D9: =L9 -> 1.0 | E9: =VLOOKUP(D9,$C$102:$D$106,2,FALSE()) -> medium | H9: =IFERROR(I9/J9,0) -> 23 % | I9: =I10+I13+I17+I20 -> 40 | J9: =J10+J13+J17+J20 -> 178 | L9: ='9. Weighting'!K49 -> 1 | N9: =IF(D9<>L9,'12.lan'!$D$240&VLOOKUP(L9,$C$102:$D$106,2,FALSE())&" ("&L9&")","") -> 
B10: A1 | C10: ='12.lan'!D109 -> Human dignity in the supply chain | D10: =IF(K10="trifft nicht zu",C106,'9. Weighting'!M16) -> 1.0 | E10: =VLOOKUP(D10,$C$102:$D$106,2,FALSE()) -> medium | F10: ='9. Weighting'!M16 -> 1 | H10: =IF(J10<>0,ROUND(SUM(I11:I12)/J10,1),"-") -> 10 % | I10: =IF(J10=0,0,H10*J10) -> 4 | J10: ='9. Weighting'!M15 -> 44 | L10: =VLOOKUP(O10,$C$102:$E$106,3,FALSE()) -> 1 | M10: =VLOOKUP(D10,$C$102:$E$106,3,FALSE()) -> 1 | N10: =IF(L10=M10,"",'12.lan'!$D$240&VLOOKUP(L10,$C$102:$D$106,2,FALSE())&" ("&L10&")") ->  | O10: =IF(K10="trifft nicht zu",C106,'9. Weighting'!M16) -> 1
B11: A1.1 | C11: ='12.lan'!D110 -> Working conditions and social impact in the supply chain | F11: ='12.lan'!$D$329 -> Introduce value between 0 and 10 | H11: 1 | I11: =J11*H11/10 -> 4 | J11: =J10*K11/K11 -> 44 | K11: 1 | N11: =IF(L11=M11,"",'12.lan'!$D$240&" "&VLOOKUP(L11,$C$102:$D$106,2,FALSE())&" ("&L11&")") -> 
B12: A1.2 | C12: ='12.lan'!D111 -> Negative aspect: violation of human dignity in the supply chain | F12: ='12.lan'!$D$330 -> Introduce negative points between 0 and -200 | H12: 0 | I12: =H12*J10/50 -> 0 | J12: =-200*J10/50 -> -178
B13: A2 | C13: ='12.lan'!D112 -> Solidarity and social justice in the supply chain | D13: =IF(K13="trifft nicht zu",C106,'9. Weighting'!N16) -> 1.0 | E13: =VLOOKUP(D13,$C$102:$D$106,2,FALSE()) -> medium | F13: =IF(K13="trifft nicht zu","trifft nicht zu",'9. Weighting'!N16) -> 1 | H13: =IF(J13<>0,ROUND(SUM(I14:I16)/J13,1),"-") -> 10 % | I13: =IF(J13=0,0,H13*J13) -> 4 | J13: ='9. Weighting'!N15 -> 44 | K13: =IF(AND(D14="trifft nicht zu",D15="trifft nicht zu"),"trifft nicht zu","") ->  | L13: =VLOOKUP(O13,$C$102:$E$106,3,FALSE()) -> 1 | M13: =VLOOKUP(D13,$C$102:$E$106,3,FALSE()) -> 1 | N13: =IF(L13=M13,"",'12.lan'!$D$240&VLOOKUP(L13,$C$102:$D$106,2,FALSE())&" ("&L13&")") ->  | O13: =IF(K13="trifft nicht zu",C106,'9. Weighting'!N16) -> 1
B14: A2.1 | C14: ='12.lan'!D113 -> Fair business practices towards direct suppliers | D14: 1.0 | E14: =VLOOKUP(D14,$C$102:$D$106,2,FALSE()) -> medium | F14: ='12.lan'!$D$329 -> Introduce value between 0 and 10 | H14: 2 | I14: =IFERROR(J14*H14/10,0) -> 4 | J14: =IFERROR(J13*K14/(K15+K14),0) -> 22 | K14: =VLOOKUP(D14,$C$102:$E$106,3,FALSE()) -> 1 | L14: =VLOOKUP(O14,$C$102:$E$106,3,FALSE()) -> 1 | M14: =VLOOKUP(D14,$C$102:$E$106,3,FALSE()) -> 1 | N14: =IF(L14=M14,"",'12.lan'!$D$240&VLOOKUP(L14,$C$102:$D$106,2,FALSE())&" ("&L14&")") ->  | O14: =C104 -> 1
B15: A2.2 | C15: ='12.lan'!D114 -> Exercising a positive influence on solidarity and social justice in the supply chain | D15: =C104 -> 1.0 | E15: =VLOOKUP(D15,$C$102:$D$106,2,FALSE()) -> medium | F15: ='12.lan'!$D$329 -> Introduce value between 0 and 10 | H15: 3 | I15: =IFERROR(J15*H15/10,0) -> 7 | J15: =IFERROR(J13*K15/(K14+K15),0) -> 22 | K15: =VLOOKUP(D15,$C$102:$E$106,3,FALSE()) -> 1 | L15: =VLOOKUP(O15,$C$102:$E$106,3,FALSE()) -> 1 | M15: =VLOOKUP(D15,$C$102:$E$106,3,FALSE()) -> 1 | N15: =IF(L15=M15,"",'12.lan'!$D$240&VLOOKUP(L15,$C$102:$D$106,2,FALSE())&" ("&L15&")") ->  | O15: =C104 -> 1
B16: A2.3 | C16: ='12.lan'!D115 -> Negative aspect: abuse of market power against suppliers | F16: ='12.lan'!$D$330 -> Introduce negative points between 0 and -200 | H16: -10 | I16: =H16*J13/50 -> -9 | J16: =-200*J13/50 -> -178
B17: A3 | C17: ='12.lan'!D116 -> Environmental sustainability in the supply chain | D17: =IF(K17="trifft nicht zu",C106,'9. Weighting'!O16) -> 1.0 | E17: =VLOOKUP(D17,$C$102:$D$106,2,FALSE()) -> medium | F17: =IF(K17="trifft nicht zu","trifft nicht zu",'9. Weighting'!O16) -> 1 | H17: =IF(J17<>0,ROUND(SUM(I18:I19)/J17,1),"-") -> 10 % | I17: =IF(J17=0,0,H17*J17) -> 4 | J17: ='9. Weighting'!O15 -> 44 | K17: =IF(D18="trifft nicht zu","trifft nicht zu","") ->  | L17: =VLOOKUP(O17,$C$102:$E$106,3,FALSE()) -> 1 | M17: =VLOOKUP(D17,$C$102:$E$106,3,FALSE()) -> 1 | N17: =IF(L17=M17,"",'12.lan'!$D$240&VLOOKUP(L17,$C$102:$D$106,2,FALSE())&" ("&L17&")") ->  | O17: =IF(K17="trifft nicht zu",C106,'9. Weighting'!O16) -> 1
B18: A3.1 | C18: ='12.lan'!D117 -> Environmental impact throughout the supply chain | F18: ='12.lan'!$D$329 -> Introduce value between 0 and 10 | H18: 4 | I18: =J18*H18/10 -> 18 | J18: =J17*K18/K18 -> 44 | K18: 1 | N18: =IF(L18=M18,"",'12.lan'!$D$240&VLOOKUP(L18,$C$102:$D$106,2,FALSE())&" ("&L18&")") -> 
B19: A3.2 | C19: ='12.lan'!D118 -> Negative aspect: disproportionate environmental impact throughout the supply chain | F19: ='12.lan'!$D$330 -> Introduce negative points between 0 and -200 | H19: -15 | I19: =H19*J17/50 -> -13 | J19: =-200*J17/50 -> -178
B20: A4 | C20: ='12.lan'!D119 -> Transparency & co-determination in the supply chain | D20: =IF(K20="trifft nicht zu",C106,'9. Weighting'!P16) -> 1.0 | E20: =VLOOKUP(D20,$C$102:$D$106,2,FALSE()) -> medium | F20: =IF(K20="trifft nicht zu","trifft nicht zu",'9. Weighting'!P16) -> 1 | H20: =IF(J20<>0,ROUND(SUM(I21:I22)/J20,1),"-") -> 60 % | I20: =IF(J20=0,0,H20*J20) -> 27 | J20: ='9. Weighting'!P15 -> 44 | K20: =IF(AND(D21="trifft nicht zu",D22="trifft nicht zu"),"trifft nicht zu","") ->  | L20: =VLOOKUP(O20,$C$102:$E$106,3,FALSE()) -> 1 | M20: =VLOOKUP(D20,$C$102:$E$106,3,FALSE()) -> 1 | N20: =IF(L20=M20,"",'12.lan'!$D$240&VLOOKUP(L20,$C$102:$D$106,2,FALSE())&" ("&L20&")") ->  | O20: =IF(K20="trifft nicht zu",C106,'9. Weighting'!P16) -> 1
B21: A4.1 | C21: ='12.lan'!D120 -> Transparency towards suppliers and their right to co-determination | D21: =C104 -> 1.0 | E21: =VLOOKUP(D21,$C$102:$D$106,2,FALSE()) -> medium | F21: ='12.lan'!$D$329 -> Introduce value between 0 and 10 | H21: 5 | I21: =IFERROR(J21*H21/10,0) -> 11 | J21: =IFERROR(J20*K21/(K22+K21),0) -> 22 | K21: =VLOOKUP(D21,$C$102:$E$106,3,FALSE()) -> 1 | L21: =VLOOKUP(O21,$C$102:$E$106,3,FALSE()) -> 1 | M21: =VLOOKUP(D21,$C$102:$E$106,3,FALSE()) -> 1 | N21: =IF(L21=M21,"",'12.lan'!$D$240&VLOOKUP(L21,$C$102:$D$106,2,FALSE())&" ("&L21&")") ->  | O21: =C104 -> 1
B22: A4.2 | C22: ='12.lan'!D121 -> Positive influence on transparency and co-determination throughout the supply chain | D22: =C104 -> 1.0 | E22: =VLOOKUP(D22,$C$102:$D$106,2,FALSE()) -> medium | F22: ='12.lan'!$D$329 -> Introduce value between 0 and 10 | H22: 6 | I22: =IFERROR(J22*H22/10,0) -> 13 | J22: =IFERROR(J20*K22/(K21+K22),0) -> 22 | K22: =VLOOKUP(D22,$C$102:$E$106,3,FALSE()) -> 1 | L22: =VLOOKUP(O22,$C$102:$E$106,3,FALSE()) -> 1 | M22: =VLOOKUP(D22,$C$102:$E$106,3,FALSE()) -> 1 | N22: =IF(L22=M22,"",'12.lan'!$D$240&VLOOKUP(L22,$C$102:$D$106,2,FALSE())&" ("&L22&")") ->  | O22: =C104 -> 1
B23: B | C23: ='12.lan'!D122 -> Owners, equity- and financial service providers | D23: =L23 -> 0.5 | E23: =VLOOKUP(D23,$C$102:$D$106,2,FALSE()) -> low | H23: =IFERROR(I23/J23,0) -> 37 % | I23: =I24+I28+I31+I35 -> 41 | J23: =J24+J28+J31+J35 -> 111 | L23: ='9. Weighting'!K50 -> 0.5 | N23: =IF(D23<>L23,'12.lan'!$D$240&VLOOKUP(L23,$C$102:$D$106,2,FALSE())&" ("&L23&")","") -> 
B24: B1 | C24: ='12.lan'!D123 -> Ethical position in relation to financial resources | D24: =IF(K24="trifft nicht zu",C106,'9. Weighting'!M24) -> 1.5 | E24: =VLOOKUP(D24,$C$102:$D$106,2,FALSE()) -> high | F24: =IF(K24="trifft nicht zu","trifft nicht zu",'9. Weighting'!M24) -> 1.5 | H24: =IF(J24<>0,ROUND(SUM(I25:I27)/J24,1),"-") -> 80 % | I24: =IF(J24=0,0,H24*J24) -> 27 | J24: ='9. Weighting'!M23 -> 33 | K24: =IF(AND(D25="trifft nicht zu",D26="trifft nicht zu",,D27="trifft nicht zu"),"trifft nicht zu","") ->  | L24: =VLOOKUP(O24,$C$102:$E$106,3,FALSE()) -> 1.5 | M24: =VLOOKUP(D24,$C$102:$E$106,3,FALSE()) -> 1.5 | N24: =IF(L24=M24,"",'12.lan'!$D$240&VLOOKUP(L24,$C$102:$D$106,2,FALSE())&" ("&L24&")") ->  | O24: =IF(K24="trifft nicht zu",C106,'9. Weighting'!M24) -> 1.5
B25: B1.1 | C25: ='12.lan'!D124 -> Financial independence through equity financing | D25: =C104 -> 1.0 | E25: =VLOOKUP(D25,$C$102:$D$106,2,FALSE()) -> medium | F25: ='12.lan'!$D$329 -> Introduce value between 0 and 10 | H25: 7 | I25: =IFERROR(J25*H25/10,0) -> 8 | J25: =IFERROR($J$24*K25/($K$27+$K$26+$K$25),0) -> 11 | K25: =VLOOKUP(D25,$C$102:$E$106,3,FALSE()) -> 1 | L25: =VLOOKUP(O25,$C$102:$E$106,3,FALSE()) -> 1 | M25: =VLOOKUP(D25,$C$102:$E$106,3,FALSE()) -> 1 | N25: =IF(L25=M25,"",'12.lan'!$D$240&VLOOKUP(L25,$C$102:$D$106,2,FALSE())&" ("&L25&")") ->  | O25: =C104 -> 1
B26: B1.2 | C26: ='12.lan'!D125 -> Common Good-orientated borrowing | D26: =C104 -> 1.0 | E26: =VLOOKUP(D26,$C$102:$D$106,2,FALSE()) -> medium | F26: ='12.lan'!$D$329 -> Introduce value between 0 and 10 | H26: 8 | I26: =IFERROR(J26*H26/10,0) -> 9 | J26: =IFERROR($J$24*K26/($K$27+$K$26+$K$25),0) -> 11 | K26: =VLOOKUP(D26,$C$102:$E$106,3,FALSE()) -> 1 | L26: =VLOOKUP(O26,$C$102:$E$106,3,FALSE()) -> 1 | M26: =VLOOKUP(D26,$C$102:$E$106,3,FALSE()) -> 1 | N26: =IF(L26=M26,"",'12.lan'!$D$240&VLOOKUP(L26,$C$102:$D$106,2,FALSE())&" ("&L26&")") ->  | O26: =C104 -> 1
B27: B1.3 | C27: ='12.lan'!D126 -> Ethical position of external financial partners | D27: =C104 -> 1.0 | E27: =VLOOKUP(D27,$C$102:$D$106,2,FALSE()) -> medium | F27: ='12.lan'!$D$329 -> Introduce value between 0 and 10 | H27: 9 | I27: =IFERROR(J27*H27/10,0) -> 10 | J27: =IFERROR($J$24*K27/($K$27+$K$26+$K$25),0) -> 11 | K27: =VLOOKUP(D27,$C$102:$E$106,3,FALSE()) -> 1 | L27: =VLOOKUP(O27,$C$102:$E$106,3,FALSE()) -> 1 | M27: =VLOOKUP(D27,$C$102:$E$106,3,FALSE()) -> 1 | N27: =IF(L27=M27,"",'12.lan'!$D$240&VLOOKUP(L27,$C$102:$D$106,2,FALSE())&" ("&L27&")") ->  | O27: =C104 -> 1
B28: B2 | C28: ='12.lan'!D127 -> Social position in relation to financial resources | D28: =IF(K28="trifft nicht zu",C106,'9. Weighting'!N24) -> 1.0 | E28: =VLOOKUP(D28,$C$102:$D$106,2,FALSE()) -> medium | F28: =IF(K28="trifft nicht zu","trifft nicht zu",'9. Weighting'!N24) -> 1 | H28: =IF(J28<>0,ROUND(SUM(I29:I30)/J28,1),"-") -> 10 % | I28: =IF(J28=0,0,H28*J28) -> 2 | J28: ='9. Weighting'!N23 -> 22 | L28: =VLOOKUP(O28,$C$102:$E$106,3,FALSE()) -> 1 | M28: =VLOOKUP(D28,$C$102:$E$106,3,FALSE()) -> 1 | N28: =IF(L28=M28,"",'12.lan'!$D$240&VLOOKUP(L28,$C$102:$D$106,2,FALSE())&" ("&L28&")") ->  | O28: =IF(K28="trifft nicht zu",C106,'9. Weighting'!N24) -> 1
B29: B2.1 | C29: ='12.lan'!D128 -> Solidarity and Common Good-orientated use of funds | F29: ='12.lan'!$D$329 -> Introduce value between 0 and 10 | H29: 1 | I29: =J29*H29/10 -> 2 | J29: =$J$28*K29/(K29) -> 22 | K29: 1 | L29: =VLOOKUP(O29,$C$102:$E$106,3,FALSE()) ->  | M29: =VLOOKUP(D29,$C$102:$E$106,3,FALSE()) -> 
B30: B2.2 | C30: ='12.lan'!D129 -> Negative aspect: unfair distribution of funds | F30: ='12.lan'!$D$330 -> Introduce negative points between 0 and -200 | H30: 0 | I30: =H30*J28/50 -> 0 | J30: =-200*J28/50 -> -89
B31: B3 | C31: ='12.lan'!D130 -> Use of funds in relation to social and environmental impacts | D31: =IF(K31="trifft nicht zu",C106,'9. Weighting'!O24) -> 1.5 | E31: =VLOOKUP(D31,$C$102:$D$106,2,FALSE()) -> high | F31: =IF(K31="trifft nicht zu","trifft nicht zu",'9. Weighting'!O24) -> 1.5 | H31: =IF(J31<>0,ROUND(SUM(I32:I34)/J31,1),"-") -> 30 % | I31: =IF(J31=0,0,H31*J31) -> 10 | J31: ='9. Weighting'!O23 -> 33 | K31: =IF(AND(D32="trifft nicht zu",D33="trifft nicht zu"),"trifft nicht zu","") ->  | L31: =VLOOKUP(O31,$C$102:$E$106,3,FALSE()) -> 1.5 | M31: =VLOOKUP(D31,$C$102:$E$106,3,FALSE()) -> 1.5 | N31: =IF(L31=M31,"",'12.lan'!$D$240&VLOOKUP(L31,$C$102:$D$106,2,FALSE())&" ("&L31&")") ->  | O31: =IF(K31="trifft nicht zu",C106,'9. Weighting'!O24) -> 1.5
B32: B3.1 | C32: ='12.lan'!D131 -> Environmental quality of investments | D32: =C104 -> 1.0 | E32: =VLOOKUP(D32,$C$102:$D$106,2,FALSE()) -> medium | F32: ='12.lan'!$D$329 -> Introduce value between 0 and 10 | H32: 2 | I32: =IFERROR(J32*H32/10,0) -> 3 | J32: =IFERROR($J$31*K32/($K$32+$K$33),0) -> 17 | K32: =VLOOKUP(D32,$C$102:$E$106,3,FALSE()) -> 1 | L32: =VLOOKUP(O32,$C$102:$E$106,3,FALSE()) -> 1 | M32: =VLOOKUP(D32,$C$102:$E$106,3,FALSE()) -> 1 | N32: =IF(L32=M32,"",'12.lan'!$D$240&VLOOKUP(L32,$C$102:$D$106,2,FALSE())&" ("&L32&")") ->  | O32: =C104 -> 1
B33: B3.2 | C33: ='12.lan'!D132 -> Common Good-orientated investment | D33: =C104 -> 1.0 | E33: =VLOOKUP(D33,$C$102:$D$106,2,FALSE()) -> medium | F33: ='12.lan'!$D$329 -> Introduce value between 0 and 10 | H33: 3 | I33: =IFERROR(J33*H33/10,0) -> 5 | J33: =IFERROR($J$31*K33/($K$32+$K$33),0) -> 17 | K33: =VLOOKUP(D33,$C$102:$E$106,3,FALSE()) -> 1 | L33: =VLOOKUP(O33,$C$102:$E$106,3,FALSE()) -> 1 | M33: =VLOOKUP(D33,$C$102:$E$106,3,FALSE()) -> 1 | N33: =IF(L33=M33,"",'12.lan'!$D$240&VLOOKUP(L33,$C$102:$D$106,2,FALSE())&" ("&L33&")") ->  | O33: =C104 -> 1
B34: B3.3 | C34: ='12.lan'!D133 -> Negative aspect: reliance on environmentally unsafe resources | F34: ='12.lan'!$D$330 -> Introduce negative points between 0 and -200 | H34: 0 | I34: =H34*J31/50 -> 0 | J34: =-200*J31/50 -> -133
B35: B4 | C35: ='12.lan'!D134 -> Ownership and co-determination | D35: =IF(K35="trifft nicht zu",C106,'9. Weighting'!P24) -> 1.0 | E35: =VLOOKUP(D35,$C$102:$D$106,2,FALSE()) -> medium | F35: =IF(K35="trifft nicht zu","trifft nicht zu",'9. Weighting'!P24) -> 1 | H35: =IF(J35<>0,ROUND(SUM(I36:I37)/J35,1),"-") -> 10 % | I35: =IF(J35=0,0,H35*J35) -> 2 | J35: ='9. Weighting'!P23 -> 22 | L35: =VLOOKUP(O35,$C$102:$E$106,3,FALSE()) -> 1 | M35: =VLOOKUP(D35,$C$102:$E$106,3,FALSE()) -> 1 | N35: =IF(L35=M35,"",'12.lan'!$D$240&VLOOKUP(L35,$C$102:$D$106,2,FALSE())&" ("&L35&")") ->  | O35: =IF(K35="trifft nicht zu",C106,'9. Weighting'!P24) -> 1
B36: B4.1 | C36: ='12.lan'!D135 -> Common Good-orientated ownership structure | F36: ='12.lan'!$D$329 -> Introduce value between 0 and 10 | H36: 1 | I36: =J36*H36/10 -> 2 | J36: =$J$35*K36/(K36) -> 22 | K36: 1
B37: B4.2 | C37: ='12.lan'!D136 -> Negative aspect: hostile takeover | F37: ='12.lan'!$D$330 -> Introduce negative points between 0 and -200 | H37: 0 | I37: =H37*J35/50 -> 0 | J37: =-200*J35/50 -> -89
B38: C | C38: ='12.lan'!D137 -> Employees | D38: =L38 -> 2.0 | E38: =VLOOKUP(D38,$C$102:$D$106,2,FALSE()) -> very high | H38: =IFERROR(I38/J38,0) -> 20 % | I38: =I39+I44+I49+I54 -> 71 | J38: =J39+J44+J49+J54 -> 356 | L38: ='9. Weighting'!K51 -> 2 | N38: =IF(D38<>L38,'12.lan'!$D$240&VLOOKUP(L38,$C$102:$D$106,2,FALSE())&" ("&L38&")","") -> 
B39: C1 | C39: ='12.lan'!D138 -> Human dignity in the workplace and working environment | D39: 1.0 | E39: =VLOOKUP(D39,$C$102:$D$106,2,FALSE()) -> medium | F39: =IF(K39="trifft nicht zu","trifft nicht zu",'9. Weighting'!M30) -> 1 | H39: =IF(J39<>0,ROUND(SUM(I40:I43)/J39,1),"-") -> 20 % | I39: =IF(J39=0,0,H39*J39) -> 18 | J39: ='9. Weighting'!M29 -> 89 | K39: =IF(AND(D40="trifft nicht zu",D41="trifft nicht zu",,D42="trifft nicht zu"),"trifft nicht zu","") ->  | L39: =VLOOKUP(O39,$C$102:$E$106,3,FALSE()) -> 1 | M39: =VLOOKUP(D39,$C$102:$E$106,3,FALSE()) -> 1 | N39: =IF(L39=M39,"",'12.lan'!$D$240&VLOOKUP(L39,$C$102:$D$106,2,FALSE())&" ("&L39&")") ->  | O39: =IF(K39="trifft nicht zu",C106,'9. Weighting'!M30) -> 1
B40: C1.1 | C40: ='12.lan'!D139 -> Employee-focused organisational culture | D40: =C104 -> 1.0 | E40: =VLOOKUP(D40,$C$102:$D$106,2,FALSE()) -> medium | F40: ='12.lan'!$D$329 -> Introduce value between 0 and 10 | H40: 1 | I40: =IFERROR(J40*H40/10,0) -> 3 | J40: =IFERROR($J$39*K40/(SUM($K$40:$K$42)),0) -> 30 | K40: =VLOOKUP(D40,$C$102:$E$106,3,FALSE()) -> 1 | L40: =VLOOKUP(O40,$C$102:$E$106,3,FALSE()) -> 1 | M40: =VLOOKUP(D40,$C$102:$E$106,3,FALSE()) -> 1 | N40: =IF(L40=M40,"",'12.lan'!$D$240&VLOOKUP(L40,$C$102:$D$106,2,FALSE())&" ("&L40&")") ->  | O40: =C104 -> 1
B41: C1.2 | C41: ='12.lan'!D140 -> Health promotion and occupational health and safety | D41: =C104 -> 1.0 | E41: =VLOOKUP(D41,$C$102:$D$106,2,FALSE()) -> medium | F41: ='12.lan'!$D$329 -> Introduce value between 0 and 10 | H41: 2 | I41: =IFERROR(J41*H41/10,0) -> 6 | J41: =IFERROR($J$39*K41/(SUM($K$40:$K$42)),0) -> 30 | K41: =VLOOKUP(D41,$C$102:$E$106,3,FALSE()) -> 1 | L41: =VLOOKUP(O41,$C$102:$E$106,3,FALSE()) -> 1 | M41: =VLOOKUP(D41,$C$102:$E$106,3,FALSE()) -> 1 | N41: =IF(L41=M41,"",'12.lan'!$D$240&VLOOKUP(L41,$C$102:$D$106,2,FALSE())&" ("&L41&")") ->  | O41: =C104 -> 1
B42: C1.3 | C42: ='12.lan'!D141 -> Diversity and equal opportunities | D42: =C104 -> 1.0 | E42: =VLOOKUP(D42,$C$102:$D$106,2,FALSE()) -> medium | F42: ='12.lan'!$D$329 -> Introduce value between 0 and 10 | H42: 3 | I42: =IFERROR(J42*H42/10,0) -> 9 | J42: =IFERROR($J$39*K42/(SUM($K$40:$K$42)),0) -> 30 | K42: =VLOOKUP(D42,$C$102:$E$106,3,FALSE()) -> 1 | L42: =VLOOKUP(O42,$C$102:$E$106,3,FALSE()) -> 1 | M42: =VLOOKUP(D42,$C$102:$E$106,3,FALSE()) -> 1 | N42: =IF(L42=M42,"",'12.lan'!$D$240&VLOOKUP(L42,$C$102:$D$106,2,FALSE())&" ("&L42&")") ->  | O42: =C104 -> 1
B43: C1.4 | C43: ='12.lan'!D142 -> Negative aspect: unfit working conditions | F43: ='12.lan'!$D$330 -> Introduce negative points between 0 and -200 | H43: 0 | I43: =H43*J39/50 -> 0 | J43: =-200*J39/50 -> -356
B44: C2 | C44: ='12.lan'!D143 -> Self-determined working arrangements | D44: =IF(K44="trifft nicht zu",C106,'9. Weighting'!N30) -> 1.0 | E44: =VLOOKUP(D44,$C$102:$D$106,2,FALSE()) -> medium | F44: =IF(K44="trifft nicht zu","trifft nicht zu",'9. Weighting'!N30) -> 1 | H44: =IF(J44<>0,ROUND(SUM(I45:I48)/J44,1),"-") -> 20 % | I44: =IF(J44=0,0,H44*J44) -> 18 | J44: ='9. Weighting'!N29 -> 89 | K44: =IF(AND(D45="trifft nicht zu",D46="trifft nicht zu",,D47="trifft nicht zu"),"trifft nicht zu","") ->  | L44: =VLOOKUP(O44,$C$102:$E$106,3,FALSE()) -> 1 | M44: =VLOOKUP(D44,$C$102:$E$106,3,FALSE()) -> 1 | N44: =IF(L44=M44,"",'12.lan'!$D$240&VLOOKUP(L44,$C$102:$D$106,2,FALSE())&" ("&L44&")") ->  | O44: =IF(K44="trifft nicht zu",C106,'9. Weighting'!N30) -> 1
B45: C2.1 | C45: ='12.lan'!D144 -> Pay structure | D45: =C104 -> 1.0 | E45: =VLOOKUP(D45,$C$102:$D$106,2,FALSE()) -> medium | F45: ='12.lan'!$D$329 -> Introduce value between 0 and 10 | H45: 1 | I45: =IFERROR(J45*H45/10,0) -> 3 | J45: =IFERROR($J$44*K45/(SUM($K$45:$K$47)),0) -> 30 | K45: =VLOOKUP(D45,$C$102:$E$106,3,FALSE()) -> 1 | L45: =VLOOKUP(O45,$C$102:$E$106,3,FALSE()) -> 1 | M45: =VLOOKUP(D45,$C$102:$E$106,3,FALSE()) -> 1 | N45: =IF(L45=M45,"",'12.lan'!$D$240&VLOOKUP(L45,$C$102:$D$106,2,FALSE())&" ("&L45&")") ->  | O45: =C104 -> 1
B46: C2.2 | C46: ='12.lan'!D145 -> Structuring working time | D46: =C104 -> 1.0 | E46: =VLOOKUP(D46,$C$102:$D$106,2,FALSE()) -> medium | F46: ='12.lan'!$D$329 -> Introduce value between 0 and 10 | H46: 2 | I46: =IFERROR(J46*H46/10,0) -> 6 | J46: =IFERROR($J$44*K46/(SUM($K$45:$K$47)),0) -> 30 | K46: =VLOOKUP(D46,$C$102:$E$106,3,FALSE()) -> 1 | L46: =VLOOKUP(O46,$C$102:$E$106,3,FALSE()) -> 1 | M46: =VLOOKUP(D46,$C$102:$E$106,3,FALSE()) -> 1 | N46: =IF(L46=M46,"",'12.lan'!$D$240&VLOOKUP(L46,$C$102:$D$106,2,FALSE())&" ("&L46&")") ->  | O46: =C104 -> 1
B47: C2.3 | C47: ='12.lan'!D146 -> Employment structure and work-life balance | D47: =C104 -> 1.0 | E47: =VLOOKUP(D47,$C$102:$D$106,2,FALSE()) -> medium | F47: ='12.lan'!$D$329 -> Introduce value between 0 and 10 | H47: 3 | I47: =IFERROR(J47*H47/10,0) -> 9 | J47: =IFERROR($J$44*K47/(SUM($K$45:$K$47)),0) -> 30 | K47: =VLOOKUP(D47,$C$102:$E$106,3,FALSE()) -> 1 | L47: =VLOOKUP(O47,$C$102:$E$106,3,FALSE()) -> 1 | M47: =VLOOKUP(D47,$C$102:$E$106,3,FALSE()) -> 1 | N47: =IF(L47=M47,"",'12.lan'!$D$240&VLOOKUP(L47,$C$102:$D$106,2,FALSE())&" ("&L47&")") ->  | O47: =C104 -> 1
B48: C2.4 | C48: ='12.lan'!D147 -> Negative aspect: unfair employment contracts | F48: ='12.lan'!$D$330 -> Introduce negative points between 0 and -200 | H48: 0 | I48: =H48*J44/50 -> 0 | J48: =-200*J44/50 -> -356
B49: C3 | C49: ='12.lan'!D148 -> Environmentally-friendly behaviour of staff | D49: 1.0 | E49: =VLOOKUP(D49,$C$102:$D$106,2,FALSE()) -> medium | F49: =IF(K49="trifft nicht zu","trifft nicht zu",'9. Weighting'!O30) -> 1 | H49: =IF(J49<>0,ROUND(SUM(I50:I53)/J49,1),"-") -> 20 % | I49: =IF(J49=0,0,H49*J49) -> 18 | J49: ='9. Weighting'!O29 -> 89 | K49: =IF(AND(D50="trifft nicht zu",D51="trifft nicht zu",,D52="trifft nicht zu"),"trifft nicht zu","") ->  | L49: =VLOOKUP(O49,$C$102:$E$106,3,FALSE()) -> 1 | M49: =VLOOKUP(D49,$C$102:$E$106,3,FALSE()) -> 1 | N49: =IF(L49=M49,"",'12.lan'!$D$240&VLOOKUP(L49,$C$102:$D$106,2,FALSE())&" ("&L49&")") ->  | O49: =IF(K49="trifft nicht zu",C106,'9. Weighting'!O30) -> 1
B50: C3.1 | C50: ='12.lan'!D149 -> Food during working hours | D50: =C104 -> 1.0 | E50: =VLOOKUP(D50,$C$102:$D$106,2,FALSE()) -> medium | F50: ='12.lan'!$D$329 -> Introduce value between 0 and 10 | H50: 1 | I50: =IFERROR(J50*H50/10,0) -> 3 | J50: =IFERROR($J$49*K50/(SUM($K$50:$K$52)),0) -> 30 | K50: =VLOOKUP(D50,$C$102:$E$106,3,FALSE()) -> 1 | L50: =VLOOKUP(O50,$C$102:$E$106,3,FALSE()) -> 1 | M50: =VLOOKUP(D50,$C$102:$E$106,3,FALSE()) -> 1 | N50: =IF(L50=M50,"",'12.lan'!$D$240&VLOOKUP(L50,$C$102:$D$106,2,FALSE())&" ("&L50&")") ->  | O50: =C104 -> 1
B51: C3.2 | C51: ='12.lan'!D150 -> Travel to work | D51: =C104 -> 1.0 | E51: =VLOOKUP(D51,$C$102:$D$106,2,FALSE()) -> medium | F51: ='12.lan'!$D$329 -> Introduce value between 0 and 10 | H51: 2 | I51: =IFERROR(J51*H51/10,0) -> 6 | J51: =IFERROR($J$49*K51/(SUM($K$50:$K$52)),0) -> 30 | K51: =VLOOKUP(D51,$C$102:$E$106,3,FALSE()) -> 1 | L51: =VLOOKUP(O51,$C$102:$E$106,3,FALSE()) -> 1 | M51: =VLOOKUP(D51,$C$102:$E$106,3,FALSE()) -> 1 | N51: =IF(L51=M51,"",'12.lan'!$D$240&VLOOKUP(L51,$C$102:$D$106,2,FALSE())&" ("&L51&")") ->  | O51: =C104 -> 1
B52: C3.3 | C52: ='12.lan'!D151 -> Organisational culture, cultivating awareness for an environmentally-friendly approach | D52: =C104 -> 1.0 | E52: =VLOOKUP(D52,$C$102:$D$106,2,FALSE()) -> medium | F52: ='12.lan'!$D$329 -> Introduce value between 0 and 10 | H52: 3 | I52: =IFERROR(J52*H52/10,0) -> 9 | J52: =IFERROR($J$49*K52/(SUM($K$50:$K$52)),0) -> 30 | K52: =VLOOKUP(D52,$C$102:$E$106,3,FALSE()) -> 1 | L52: =VLOOKUP(O52,$C$102:$E$106,3,FALSE()) -> 1 | M52: =VLOOKUP(D52,$C$102:$E$106,3,FALSE()) -> 1 | N52: =IF(L52=M52,"",'12.lan'!$D$240&VLOOKUP(L52,$C$102:$D$106,2,FALSE())&" ("&L52&")") ->  | O52: =C104 -> 1
B53: C3.4 | C53: ='12.lan'!D152 -> Negative aspect: guidance on waste/ environmentally damaging practices | F53: ='12.lan'!$D$330 -> Introduce negative points between 0 and -200 | H53: 0 | I53: =H53*J49/50 -> 0 | J53: =-200*J49/50 -> -356
B54: C4 | C54: ='12.lan'!D153 -> Co-determination and transparency within the organisation | D54: =IF(K54="trifft nicht zu",C106,'9. Weighting'!P30) -> 1.0 | E54: =VLOOKUP(D54,$C$102:$D$106,2,FALSE()) -> medium | F54: =IF(K54="trifft nicht zu","trifft nicht zu",'9. Weighting'!P30) -> 1 | H54: =IF(J54<>0,ROUND(SUM(I55:I58)/J54,1),"-") -> 20 % | I54: =IF(J54=0,0,H54*J54) -> 18 | J54: ='9. Weighting'!P29 -> 89 | K54: =IF(AND(D55="trifft nicht zu",D56="trifft nicht zu",,D57="trifft nicht zu"),"trifft nicht zu","") ->  | L54: =VLOOKUP(O54,$C$102:$E$106,3,FALSE()) -> 1 | M54: =VLOOKUP(D54,$C$102:$E$106,3,FALSE()) -> 1 | N54: =IF(L54=M54,"",'12.lan'!$D$240&VLOOKUP(L54,$C$102:$D$106,2,FALSE())&" ("&L54&")") ->  | O54: =IF(K54="trifft nicht zu",C106,'9. Weighting'!P30) -> 1
B55: C4.1 | C55: ='12.lan'!D154 -> Transparency within the organisation | D55: =C104 -> 1.0 | E55: =VLOOKUP(D55,$C$102:$D$106,2,FALSE()) -> medium | F55: ='12.lan'!$D$329 -> Introduce value between 0 and 10 | H55: 1 | I55: =IFERROR(J55*H55/10,0) -> 3 | J55: =IFERROR($J$54*K55/(SUM($K$55:$K$57)),0) -> 30 | K55: =VLOOKUP(D55,$C$102:$E$106,3,FALSE()) -> 1 | L55: =VLOOKUP(O55,$C$102:$E$106,3,FALSE()) -> 1 | M55: =VLOOKUP(D55,$C$102:$E$106,3,FALSE()) -> 1 | N55: =IF(L55=M55,"",'12.lan'!$D$240&VLOOKUP(L55,$C$102:$D$106,2,FALSE())&" ("&L55&")") ->  | O55: =C104 -> 1
B56: C4.2 | C56: ='12.lan'!D155 -> Legitimation of the management | D56: =C104 -> 1.0 | E56: =VLOOKUP(D56,$C$102:$D$106,2,FALSE()) -> medium | F56: ='12.lan'!$D$329 -> Introduce value between 0 and 10 | H56: 2 | I56: =IFERROR(J56*H56/10,0) -> 6 | J56: =IFERROR($J$54*K56/(SUM($K$55:$K$57)),0) -> 30 | K56: =VLOOKUP(D56,$C$102:$E$106,3,FALSE()) -> 1 | L56: =VLOOKUP(O56,$C$102:$E$106,3,FALSE()) -> 1 | M56: =VLOOKUP(D56,$C$102:$E$106,3,FALSE()) -> 1 | N56: =IF(L56=M56,"",'12.lan'!$D$240&VLOOKUP(L56,$C$102:$D$106,2,FALSE())&" ("&L56&")") ->  | O56: =C104 -> 1
B57: C4.3 | C57: ='12.lan'!D156 -> Employee co-determination | D57: =C104 -> 1.0 | E57: =VLOOKUP(D57,$C$102:$D$106,2,FALSE()) -> medium | F57: ='12.lan'!$D$329 -> Introduce value between 0 and 10 | H57: 3 | I57: =IFERROR(J57*H57/10,0) -> 9 | J57: =IFERROR($J$54*K57/(SUM($K$55:$K$57)),0) -> 30 | K57: =VLOOKUP(D57,$C$102:$E$106,3,FALSE()) -> 1 | L57: =VLOOKUP(O57,$C$102:$E$106,3,FALSE()) -> 1 | M57: =VLOOKUP(D57,$C$102:$E$106,3,FALSE()) -> 1 | N57: =IF(L57=M57,"",'12.lan'!$D$240&VLOOKUP(L57,$C$102:$D$106,2,FALSE())&" ("&L57&")") ->  | O57: =C104 -> 1
B58: C4.4 | C58: ='12.lan'!D157 -> Negative aspect: obstruction of works councils | F58: ='12.lan'!$D$330 -> Introduce negative points between 0 and -200 | H58: 0 | I58: =H58*J54/50 -> 0 | J58: =-200*J54/50 -> -356
B59: D | C59: ='12.lan'!D158 -> Customers and other companies | D59: =L59 -> 1.0 | E59: =VLOOKUP(D59,$C$102:$D$106,2,FALSE()) -> medium | H59: =IFERROR(I59/J59,0) -> 10 % | I59: =I60+I64+I68+I72 -> 18 | J59: =J60+J64+J68+J72 -> 178 | L59: ='9. Weighting'!K52 -> 1 | N59: =IF(D59<>L59,'12.lan'!$D$240&VLOOKUP(L59,$C$102:$D$106,2,FALSE())&" ("&L59&")","") -> 
B60: D1 | C60: ='12.lan'!D159 -> Ethical customer relations | D60: =IF(K60="trifft nicht zu",C106,'9. Weighting'!M37) -> 1.0 | E60: =VLOOKUP(D60,$C$102:$D$106,2,FALSE()) -> medium | F60: =IF(K60="trifft nicht zu","trifft nicht zu",'9. Weighting'!M37) -> 1 | H60: =IF(J60<>0,ROUND(SUM(I61:I63)/J60,1),"-") -> 0 % | I60: =IF(J60=0,0,H60*J60) -> 0 | J60: ='9. Weighting'!M36 -> 44 | K60: =IF(AND(D61="trifft nicht zu",D62="trifft nicht zu"),"trifft nicht zu","") ->  | L60: =VLOOKUP(O60,$C$102:$E$106,3,FALSE()) -> 1 | M60: =VLOOKUP(D60,$C$102:$E$106,3,FALSE()) -> 1 | N60: =IF(L60=M60,"",'12.lan'!$D$240&VLOOKUP(L60,$C$102:$D$106,2,FALSE())&" ("&L60&")") ->  | O60: =IF(K60="trifft nicht zu",C106,'9. Weighting'!M37) -> 1
B61: D1.1 | C61: ='12.lan'!D160 -> Respect for human dignity in communication with customers | D61: =C104 -> 1.0 | E61: =VLOOKUP(D61,$C$102:$D$106,2,FALSE()) -> medium | F61: ='12.lan'!$D$329 -> Introduce value between 0 and 10 | H61: 0 | I61: =IFERROR(J61*H61/10,0) -> 0 | J61: =IFERROR($J$60*K61/(SUM($K$61:$K$62)),0) -> 22 | K61: =VLOOKUP(D61,$C$102:$E$106,3,FALSE()) -> 1 | L61: =VLOOKUP(O61,$C$102:$E$106,3,FALSE()) -> 1 | M61: =VLOOKUP(D61,$C$102:$E$106,3,FALSE()) -> 1 | N61: =IF(L61=M61,"",'12.lan'!$D$240&VLOOKUP(L61,$C$102:$D$106,2,FALSE())&" ("&L61&")") ->  | O61: =C104 -> 1
B62: D1.2 | C62: ='12.lan'!D161 -> Barrier-free access | D62: =C104 -> 1.0 | E62: =VLOOKUP(D62,$C$102:$D$106,2,FALSE()) -> medium | F62: ='12.lan'!$D$329 -> Introduce value between 0 and 10 | H62: 0 | I62: =IFERROR(J62*H62/10,0) -> 0 | J62: =IFERROR($J$60*K62/(SUM($K$61:$K$62)),0) -> 22 | K62: =VLOOKUP(D62,$C$102:$E$106,3,FALSE()) -> 1 | L62: =VLOOKUP(O62,$C$102:$E$106,3,FALSE()) -> 1 | M62: =VLOOKUP(D62,$C$102:$E$106,3,FALSE()) -> 1 | N62: =IF(L62=M62,"",'12.lan'!$D$240&VLOOKUP(L62,$C$102:$D$106,2,FALSE())&" ("&L62&")") ->  | O62: =C104 -> 1
B63: D1.3 | C63: ='12.lan'!D162 -> Negative aspect: unethical advertising | F63: ='12.lan'!$D$330 -> Introduce negative points between 0 and -200 | H63: 0 | I63: =H63*J60/50 -> 0 | J63: =-200*J60/50 -> -178
B64: D2 | C64: ='12.lan'!D163 -> Cooperation and solidarity with other companies | D64: =IF(K64="trifft nicht zu",C106,'9. Weighting'!N37) -> 1.0 | E64: =VLOOKUP(D64,$C$102:$D$106,2,FALSE()) -> medium | F64: =IF(K64="trifft nicht zu","trifft nicht zu",'9. Weighting'!N37) -> 1 | H64: =IF(J64<>0,ROUND(SUM(I65:I67)/J64,1),"-") -> 40 % | I64: =IF(J64=0,0,H64*J64) -> 18 | J64: ='9. Weighting'!N36 -> 44 | K64: =IF(AND(D65="trifft nicht zu",D66="trifft nicht zu"),"trifft nicht zu","") ->  | L64: =VLOOKUP(O64,$C$102:$E$106,3,FALSE()) -> 1 | M64: =VLOOKUP(D64,$C$102:$E$106,3,FALSE()) -> 1 | N64: =IF(L64=M64,"",'12.lan'!$D$240&VLOOKUP(L64,$C$102:$D$106,2,FALSE())&" ("&L64&")") ->  | O64: =IF(K64="trifft nicht zu",C106,'9. Weighting'!N37) -> 1
B65: D2.1 | C65: ='12.lan'!D164 -> Cooperation with other companies | D65: =C104 -> 1.0 | E65: =VLOOKUP(D65,$C$102:$D$106,2,FALSE()) -> medium | F65: ='12.lan'!$D$329 -> Introduce value between 0 and 10 | H65: 2 | I65: =IFERROR(J65*H65/10,0) -> 4 | J65: =IFERROR($J$64*K65/(SUM($K$65:$K$66)),0) -> 22 | K65: =VLOOKUP(D65,$C$102:$E$106,3,FALSE()) -> 1 | L65: =VLOOKUP(O65,$C$102:$E$106,3,FALSE()) -> 1 | M65: =VLOOKUP(D65,$C$102:$E$106,3,FALSE()) -> 1 | N65: =IF(L65=M65,"",'12.lan'!$D$240&VLOOKUP(L65,$C$102:$D$106,2,FALSE())&" ("&L65&")") ->  | O65: =C104 -> 1
B66: D2.2 | C66: ='12.lan'!D165 -> Solidarity with other companies | D66: =C104 -> 1.0 | E66: =VLOOKUP(D66,$C$102:$D$106,2,FALSE()) -> medium | F66: ='12.lan'!$D$329 -> Introduce value between 0 and 10 | H66: 6 | I66: =IFERROR(J66*H66/10,0) -> 13 | J66: =IFERROR($J$64*K66/(SUM($K$65:$K$66)),0) -> 22 | K66: =VLOOKUP(D66,$C$102:$E$106,3,FALSE()) -> 1 | L66: =VLOOKUP(O66,$C$102:$E$106,3,FALSE()) -> 1 | M66: =VLOOKUP(D66,$C$102:$E$106,3,FALSE()) -> 1 | N66: =IF(L66=M66,"",'12.lan'!$D$240&VLOOKUP(L66,$C$102:$D$106,2,FALSE())&" ("&L66&")") ->  | O66: =C104 -> 1
B67: D2.3 | C67: ='12.lan'!D166 -> Negative aspect: abuse of market power to the detriment of other companies | F67: ='12.lan'!$D$330 -> Introduce negative points between 0 and -200 | H67: 0 | I67: =H67*J64/50 -> 0 | J67: =-200*J64/50 -> -178
B68: D3 | C68: ='12.lan'!D167 -> Impact on the environment of the use and disposal of products and services | D68: =IF(K68="trifft nicht zu",C106,'9. Weighting'!O37) -> 1.0 | E68: =VLOOKUP(D68,$C$102:$D$106,2,FALSE()) -> medium | F68: =IF(K68="trifft nicht zu","trifft nicht zu",'9. Weighting'!O37) -> 1 | H68: =IF(J68<>0,ROUND(SUM(I69:I71)/J68,1),"-") -> 0 % | I68: =IF(J68=0,0,H68*J68) -> 0 | J68: ='9. Weighting'!O36 -> 44 | K68: =IF(AND(D69="trifft nicht zu",D70="trifft nicht zu"),"trifft nicht zu","") ->  | L68: =VLOOKUP(O68,$C$102:$E$106,3,FALSE()) -> 1 | M68: =VLOOKUP(D68,$C$102:$E$106,3,FALSE()) -> 1 | N68: =IF(L68=M68,"",'12.lan'!$D$240&VLOOKUP(L68,$C$102:$D$106,2,FALSE())&" ("&L68&")") ->  | O68: =IF(K68="trifft nicht zu",C106,'9. Weighting'!O37) -> 1
B69: D3.1 | C69: ='12.lan'!D168 -> Environmental cost-benefit ration of products and services (efficiency and consistency) | D69: =C104 -> 1.0 | E69: =VLOOKUP(D69,$C$102:$D$106,2,FALSE()) -> medium | F69: ='12.lan'!$D$329 -> Introduce value between 0 and 10 | H69: 0 | I69: =IFERROR(J69*H69/10,0) -> 0 | J69: =IFERROR($J$68*K69/(SUM($K$69:$K$70)),0) -> 22 | K69: =VLOOKUP(D69,$C$102:$E$106,3,FALSE()) -> 1 | L69: =VLOOKUP(O69,$C$102:$E$106,3,FALSE()) -> 1 | M69: =VLOOKUP(D69,$C$102:$E$106,3,FALSE()) -> 1 | N69: =IF(L69=M69,"",'12.lan'!$D$240&VLOOKUP(L69,$C$102:$D$106,2,FALSE())&" ("&L69&")") ->  | O69: =C104 -> 1
B70: D3.2 | C70: ='12.lan'!D169 -> Moderate use of products and services (sufficiency) | D70: =C104 -> 1.0 | E70: =VLOOKUP(D70,$C$102:$D$106,2,FALSE()) -> medium | F70: ='12.lan'!$D$329 -> Introduce value between 0 and 10 | H70: 0 | I70: =IFERROR(J70*H70/10,0) -> 0 | J70: =IFERROR($J$68*K70/(SUM($K$69:$K$70)),0) -> 22 | K70: =VLOOKUP(D70,$C$102:$E$106,3,FALSE()) -> 1 | L70: =VLOOKUP(O70,$C$102:$E$106,3,FALSE()) -> 1 | M70: =VLOOKUP(D70,$C$102:$E$106,3,FALSE()) -> 1 | N70: =IF(L70=M70,"",'12.lan'!$D$240&VLOOKUP(L70,$C$102:$D$106,2,FALSE())&" ("&L70&")") ->  | O70: =C104 -> 1
B71: D3.3 | C71: ='12.lan'!D170 -> Negative aspect: wilful disregard of disproportionate environmental impacts | F71: ='12.lan'!$D$330 -> Introduce negative points between 0 and -200 | H71: 0 | I71: =H71*J68/50 -> 0 | J71: =-200*J68/50 -> -178
B72: D4 | C72: ='12.lan'!D171 -> Customer participation and product transparency | D72: =IF(K72="trifft nicht zu",C106,'9. Weighting'!P37) -> 1.0 | E72: =VLOOKUP(D72,$C$102:$D$106,2,FALSE()) -> medium | F72: =IF(K72="trifft nicht zu","trifft nicht zu",'9. Weighting'!P37) -> 1 | H72: =IF(J72<>0,ROUND(SUM(I73:I75)/J72,1),"-") -> 0 % | I72: =IF(J72=0,0,H72*J72) -> 0 | J72: ='9. Weighting'!P36 -> 44 | K72: =IF(AND(D73="trifft nicht zu",D74="trifft nicht zu"),"trifft nicht zu","") ->  | L72: =VLOOKUP(O72,$C$102:$E$106,3,FALSE()) -> 1 | M72: =VLOOKUP(D72,$C$102:$E$106,3,FALSE()) -> 1 | N72: =IF(L72=M72,"",'12.lan'!$D$240&VLOOKUP(L72,$C$102:$D$106,2,FALSE())&" ("&L72&")") ->  | O72: =IF(K72="trifft nicht zu",C106,'9. Weighting'!P37) -> 1
B73: D4.1 | C73: ='12.lan'!D172 -> Customer participation, joint product development and market research | D73: =C104 -> 1.0 | E73: =VLOOKUP(D73,$C$102:$D$106,2,FALSE()) -> medium | F73: ='12.lan'!$D$329 -> Introduce value between 0 and 10 | H73: 0 | I73: =IFERROR(J73*H73/10,0) -> 0 | J73: =IFERROR($J$72*K73/(SUM($K$73:$K$74)),0) -> 22 | K73: =VLOOKUP(D73,$C$102:$E$106,3,FALSE()) -> 1 | L73: =VLOOKUP(O73,$C$102:$E$106,3,FALSE()) -> 1 | M73: =VLOOKUP(D73,$C$102:$E$106,3,FALSE()) -> 1 | N73: =IF(L73=M73,"",'12.lan'!$D$240&VLOOKUP(L73,$C$102:$D$106,2,FALSE())&" ("&L73&")") ->  | O73: =C104 -> 1
B74: D4.2 | C74: ='12.lan'!D173 -> Product transparency | D74: =C104 -> 1.0 | E74: =VLOOKUP(D74,$C$102:$D$106,2,FALSE()) -> medium | F74: ='12.lan'!$D$329 -> Introduce value between 0 and 10 | H74: 0 | I74: =IFERROR(J74*H74/10,0) -> 0 | J74: =IFERROR($J$72*K74/(SUM($K$73:$K$74)),0) -> 22 | K74: =VLOOKUP(D74,$C$102:$E$106,3,FALSE()) -> 1 | L74: =VLOOKUP(O74,$C$102:$E$106,3,FALSE()) -> 1 | M74: =VLOOKUP(D74,$C$102:$E$106,3,FALSE()) -> 1 | N74: =IF(L74=M74,"",'12.lan'!$D$240&VLOOKUP(L74,$C$102:$D$106,2,FALSE())&" ("&L74&")") ->  | O74: =C104 -> 1
B75: D4.2 | C75: ='12.lan'!D174 -> Negative aspect: non-disclosure of hazardous substances | F75: ='12.lan'!$D$330 -> Introduce negative points between 0 and -200 | H75: 0 | I75: =H75*J72/50 -> 0 | J75: =-200*J72/50 -> -178
B76: E | C76: ='12.lan'!D175 -> Social environment | D76: =L76 -> 1.0 | E76: =VLOOKUP(D76,$C$102:$D$106,2,FALSE()) -> medium | H76: =IFERROR(I76/J76,0) -> 30 % | I76: =I77+I81+I86+I90 -> 53 | J76: =J77+J81+J86+J90 -> 178 | L76: ='9. Weighting'!K53 -> 1 | N76: =IF(D76<>L76,'12.lan'!$D$240&VLOOKUP(L76,$C$102:$D$106,2,FALSE())&" ("&L76&")","") -> 
B77: E1 | C77: ='12.lan'!D176 -> Purpose of products and services and their effects on society | D77: =IF(K77="trifft nicht zu",C106,'9. Weighting'!M43) -> 1.0 | E77: =VLOOKUP(D77,$C$102:$D$106,2,FALSE()) -> medium | F77: =IF(K77="trifft nicht zu","trifft nicht zu",'9. Weighting'!M43) -> 1 | H77: =IF(J77<>0,ROUND(SUM(I78:I80)/J77,1),"-") -> 0 % | I77: =IF(J77=0,0,H77*J77) -> 0 | J77: ='9. Weighting'!M42 -> 44 | K77: =IF(AND(D78="trifft nicht zu",D79="trifft nicht zu"),"trifft nicht zu","") ->  | L77: =VLOOKUP(O77,$C$102:$E$106,3,FALSE()) -> 1 | M77: =VLOOKUP(D77,$C$102:$E$106,3,FALSE()) -> 1 | N77: =IF(L77=M77,"",'12.lan'!$D$240&VLOOKUP(L77,$C$102:$D$106,2,FALSE())&" ("&L77&")") ->  | O77: =IF(K77="trifft nicht zu",C106,'9. Weighting'!M43) -> 1
B78: E1.1 | C78: ='12.lan'!D177 -> Products and services should cover basic needs and contribute to a good life | D78: =C104 -> 1.0 | E78: =VLOOKUP(D78,$C$102:$D$106,2,FALSE()) -> medium | F78: ='12.lan'!$D$329 -> Introduce value between 0 and 10 | H78: 0 | I78: =IFERROR(J78*H78/10,0) -> 0 | J78: =IFERROR($J$77*K78/(SUM($K$78:$K$79)),0) -> 22 | K78: =VLOOKUP(D78,$C$102:$E$106,3,FALSE()) -> 1 | L78: =VLOOKUP(O78,$C$102:$E$106,3,FALSE()) -> 1 | M78: =VLOOKUP(D78,$C$102:$E$106,3,FALSE()) -> 1 | N78: =IF(L78=M78,"",'12.lan'!$D$240&VLOOKUP(L78,$C$102:$D$106,2,FALSE())&" ("&L78&")") ->  | O78: =C104 -> 1
B79: E1.2 | C79: ='12.lan'!D178 -> Social impact of products and services | D79: =C104 -> 1.0 | E79: =VLOOKUP(D79,$C$102:$D$106,2,FALSE()) -> medium | F79: ='12.lan'!$D$329 -> Introduce value between 0 and 10 | H79: 0 | I79: =IFERROR(J79*H79/10,0) -> 0 | J79: =IFERROR($J$77*K79/(SUM($K$78:$K$79)),0) -> 22 | K79: =VLOOKUP(D79,$C$102:$E$106,3,FALSE()) -> 1 | L79: =VLOOKUP(O79,$C$102:$E$106,3,FALSE()) -> 1 | M79: =VLOOKUP(D79,$C$102:$E$106,3,FALSE()) -> 1 | N79: =IF(L79=M79,"",'12.lan'!$D$240&VLOOKUP(L79,$C$102:$D$106,2,FALSE())&" ("&L79&")") ->  | O79: =C104 -> 1
B80: E1.3 | C80: ='12.lan'!D179 -> Negative aspect: unethical and unfit products and services | F80: ='12.lan'!$D$330 -> Introduce negative points between 0 and -200 | H80: 0 | I80: =H80*J77/50 -> 0 | J80: =-200*J77/50 -> -178
B81: E2 | C81: ='12.lan'!D180 -> Contribution to the community | D81: =IF(K81="trifft nicht zu",C106,'9. Weighting'!N43) -> 1.0 | E81: =VLOOKUP(D81,$C$102:$D$106,2,FALSE()) -> medium | F81: =IF(K81="trifft nicht zu","trifft nicht zu",'9. Weighting'!N43) -> 1 | H81: =IF(J81<>0,ROUND(SUM(I82:I85)/J81,1),"-") -> 20 % | I81: =IF(J81=0,0,H81*J81) -> 9 | J81: ='9. Weighting'!N42 -> 44 | K81: =IF(AND(D82="trifft nicht zu",D83="trifft nicht zu"),"trifft nicht zu","") ->  | L81: =VLOOKUP(O81,$C$102:$E$106,3,FALSE()) -> 1 | M81: =VLOOKUP(D81,$C$102:$E$106,3,FALSE()) -> 1 | N81: =IF(L81=M81,"",'12.lan'!$D$240&VLOOKUP(L81,$C$102:$D$106,2,FALSE())&" ("&L81&")") ->  | O81: =IF(K81="trifft nicht zu",C106,'9. Weighting'!N43) -> 1
B82: E2.1 | C82: ='12.lan'!D181 -> Taxes and social security contributions | D82: =C104 -> 1.0 | E82: =VLOOKUP(D82,$C$102:$D$106,2,FALSE()) -> medium | F82: ='12.lan'!$D$329 -> Introduce value between 0 and 10 | H82: 1 | I82: =IFERROR(J82*H82/10,0) -> 2 | J82: =IFERROR($J$81*K82/SUM($K$82:$K$83),0) -> 22 | K82: =VLOOKUP(D82,$C$102:$E$106,3,FALSE()) -> 1 | L82: =VLOOKUP(O82,$C$102:$E$106,3,FALSE()) -> 1 | M82: =VLOOKUP(D82,$C$102:$E$106,3,FALSE()) -> 1 | N82: =IF(L82=M82,"",'12.lan'!$D$240&VLOOKUP(L82,$C$102:$D$106,2,FALSE())&" ("&L82&")") ->  | O82: =C104 -> 1
B83: E2.2 | C83: ='12.lan'!D182 -> Voluntary contributions that strengthen society | D83: 1.0 | E83: =VLOOKUP(D83,$C$102:$D$106,2,FALSE()) -> medium | F83: ='12.lan'!$D$329 -> Introduce value between 0 and 10 | H83: 2 | I83: =IFERROR(J83*H83/10,0) -> 4 | J83: =IFERROR($J$81*K83/SUM($K$82:$K$83),0) -> 22 | K83: =VLOOKUP(D83,$C$102:$E$106,3,FALSE()) -> 1 | L83: =VLOOKUP(O83,$C$102:$E$106,3,FALSE()) -> 1 | M83: =VLOOKUP(D83,$C$102:$E$106,3,FALSE()) -> 1 | N83: =IF(L83=M83,"",'12.lan'!$D$240&VLOOKUP(L83,$C$102:$D$106,2,FALSE())&" ("&L83&")") ->  | O83: =C104 -> 1
B84: E2.3 | C84: ='12.lan'!D183 -> Negative aspect: inappropriate non-payment of tax | F84: ='12.lan'!$D$330 -> Introduce negative points between 0 and -200 | H84: 0 | I84: =H84*J81/50 -> 0 | J84: =-200*J81/50 -> -178
B85: E2.4 | C85: ='12.lan'!D184 -> Negative aspect: no anti-corruption policy | F85: ='12.lan'!$D$330 -> Introduce negative points between 0 and -200 | H85: 0 | I85: =H85*J81/50 -> 0 | J85: =-200*J81/50 -> -178
B86: E3 | C86: ='12.lan'!D185 -> Reduction of environmental impact | D86: =IF(K86="trifft nicht zu",C106,'9. Weighting'!O43) -> 1.0 | E86: =VLOOKUP(D86,$C$102:$D$106,2,FALSE()) -> medium | H86: =IF(J86<>0,ROUND(SUM(I87:I89)/J86,1),"-") -> 40 % | I86: =IF(J86=0,0,H86*J86) -> 18 | J86: ='9. Weighting'!O42 -> 44 | K86: =IF(AND(D87="trifft nicht zu",D88="trifft nicht zu"),"trifft nicht zu","") ->  | L86: =VLOOKUP(O86,$C$102:$E$106,3,FALSE()) -> 1 | M86: =VLOOKUP(D86,$C$102:$E$106,3,FALSE()) -> 1 | N86: =IF(L86=M86,"",'12.lan'!$D$240&VLOOKUP(L86,$C$102:$D$106,2,FALSE())&" ("&L86&")") ->  | O86: =IF(K86="trifft nicht zu",C106,'9. Weighting'!O43) -> 1
B87: E3.1 | C87: ='12.lan'!D186 -> Absolute impact and management strategy | D87: =C104 -> 1.0 | E87: =VLOOKUP(D87,$C$102:$D$106,2,FALSE()) -> medium | F87: ='12.lan'!$D$329 -> Introduce value between 0 and 10 | H87: 3 | I87: =IFERROR(J87*H87/10,0) -> 7 | J87: =IFERROR(J86*K87/SUM($K$87:$K$88),0) -> 22 | K87: =VLOOKUP(D87,$C$102:$E$106,3,FALSE()) -> 1 | L87: =VLOOKUP(O87,$C$102:$E$106,3,FALSE()) -> 1 | M87: =VLOOKUP(D87,$C$102:$E$106,3,FALSE()) -> 1 | N87: =IF(L87=M87,"",'12.lan'!$D$240&VLOOKUP(L87,$C$102:$D$106,2,FALSE())&" ("&L87&")") ->  | O87: =C104 -> 1
B88: E3.2 | C88: ='12.lan'!D187 -> Relative impact | D88: =C104 -> 1.0 | E88: =VLOOKUP(D88,$C$102:$D$106,2,FALSE()) -> medium | F88: ='12.lan'!$D$329 -> Introduce value between 0 and 10 | H88: 4 | I88: =IFERROR(J88*H88/10,0) -> 9 | J88: =IFERROR(J86*K88/SUM($K$87:$K$88),0) -> 22 | K88: =VLOOKUP(D88,$C$102:$E$106,3,FALSE()) -> 1 | L88: =VLOOKUP(O88,$C$102:$E$106,3,FALSE()) -> 1 | M88: =VLOOKUP(D88,$C$102:$E$106,3,FALSE()) -> 1 | N88: =IF(L88=M88,"",'12.lan'!$D$240&VLOOKUP(L88,$C$102:$D$106,2,FALSE())&" ("&L88&")") ->  | O88: =C104 -> 1
B89: E3.3 | C89: ='12.lan'!D188 -> Negative aspect: infringement of environmental regulations and disproportionate environmental pollution | F89: ='12.lan'!$D$330 -> Introduce negative points between 0 and -200 | H89: 0 | I89: =H89*J86/50 -> 0 | J89: =-200*J86/50 -> -178
B90: E4 | C90: ='12.lan'!D189 -> Social co-determination and transparency | D90: =IF(K90="trifft nicht zu",C106,'9. Weighting'!P43) -> 1.0 | E90: =VLOOKUP(D90,$C$102:$D$106,2,FALSE()) -> medium | H90: =IF(J90<>0,ROUND(SUM(I91:I93)/J90,1),"-") -> 60 % | I90: =IF(J90=0,0,H90*J90) -> 27 | J90: ='9. Weighting'!P42 -> 44 | K90: =IF(AND(D91="trifft nicht zu",D92="trifft nicht zu"),"trifft nicht zu","") ->  | L90: =VLOOKUP(O90,$C$102:$E$106,3,FALSE()) -> 1 | M90: =VLOOKUP(D90,$C$102:$E$106,3,FALSE()) -> 1 | N90: =IF(L90=M90,"",'12.lan'!$D$240&VLOOKUP(L90,$C$102:$D$106,2,FALSE())&" ("&L90&")") ->  | O90: =IF(K90="trifft nicht zu",C106,'9. Weighting'!P43) -> 1
B91: E4.1 | C91: ='12.lan'!D190 -> Transparency | D91: 1.0 | E91: =VLOOKUP(D91,$C$102:$D$106,2,FALSE()) -> medium | F91: ='12.lan'!$D$329 -> Introduce value between 0 and 10 | H91: 5 | I91: =IFERROR(J91*H91/10,0) -> 11 | J91: =IFERROR($J$90*K91/SUM($K$91:$K$92),0) -> 22 | K91: =VLOOKUP(D91,$C$102:$E$106,3,FALSE()) -> 1 | L91: =VLOOKUP(O91,$C$102:$E$106,3,FALSE()) -> 1 | M91: =VLOOKUP(D91,$C$102:$E$106,3,FALSE()) -> 1 | N91: =IF(L91=M91,"",'12.lan'!$D$240&VLOOKUP(L91,$C$102:$D$106,2,FALSE())&" ("&L91&")") ->  | O91: =C104 -> 1
B92: E4.2 | C92: ='12.lan'!D191 -> Social participation | D92: =C104 -> 1.0 | E92: =VLOOKUP(D92,$C$102:$D$106,2,FALSE()) -> medium | F92: ='12.lan'!$D$329 -> Introduce value between 0 and 10 | H92: 6 | I92: =IFERROR(J92*H92/10,0) -> 13 | J92: =IFERROR($J$90*K92/SUM($K$91:$K$92),0) -> 22 | K92: =VLOOKUP(D92,$C$102:$E$106,3,FALSE()) -> 1 | L92: =VLOOKUP(O92,$C$102:$E$106,3,FALSE()) -> 1 | M92: =VLOOKUP(D92,$C$102:$E$106,3,FALSE()) -> 1 | N92: =IF(L92=M92,"",'12.lan'!$D$240&VLOOKUP(L92,$C$102:$D$106,2,FALSE())&" ("&L92&")") ->  | O92: =C104 -> 1
B93: E4.3 | C93: ='12.lan'!D192 -> Negative aspect: lack of transparency and wilful misinformation | F93: ='12.lan'!$D$330 -> Introduce negative points between 0 and -200 | H93: 0 | I93: =H93*J90/50 -> 0 | J93: =-200*J90/50 -> -178
B95: ='12.lan'!D92 -> Total Balance Score: | H95: =H4 -> 22 % | I95: =I4 -> 223 | J95: =J4 -> 1000
B102: 2 | C102: 2 | D102: ='12.lan'!D97 -> very high | E102: 2
B103: 1.5 | C103: 1.5 | D103: ='12.lan'!D98 -> high | E103: 1.5
B104: 1 | C104: 1 | D104: ='12.lan'!D99 -> medium | E104: 1
B105: 0.5 | C105: 0.5 | D105: ='12.lan'!D100 -> low | E105: 0.5
B106: 0 | C106: 0 | D106: ='12.lan'!D101 -> not applicable | E106: 0

Sheet 9. Weighting (hidden)
E4: MATRIX 5.0 | K4: VALUES WERTE | M4: 1) HUMAN DIGNITY | N4: 2) SOLIDARITY & JUSTICE | O4: 3) ECOLOGICAL SUSTAINABILITY | P4: 4) DEMOCRATIC CO-DETERMINATION AND TRANSPARENCY
B5: Total Sales (in Mio Euro)
B6: Total Assets (in Mio Euro)
H7: fields necessary to fill out | J7: these field contains a comment on the necesarry information for cells to be filled out or on the weighting in general
F8: STAKEHOLDER BERÜHRUNGSGGRUPPE
M9: =M15+M23+M29+M36+M42 -> 256 | N9: =N15+N23+N29+N36+N42 -> 244 | O9: =O15+O23+O29+O36+O42 -> 256 | P9: =P15+P23+P29+P36+P42 -> 244
F10: Gesamt-Ausgaben an Lieferanten / total expenditures on the supply chain | I10: ='2. Company Facts'!C7 -> 10,000 | J10: A: SUPPLIERS | K10: =K49 -> 1 | L10: =M15+N15+O15+P15 -> 178 | M10: A1 | N10: A2 | O10: A3 | P10: A4
E12: NACE | F12: Industry | G12: Product / Services Description | H12: Region | I12: Expenditures
E13: =LEFT(F13,2) -> Pl | F13: ='2. Company Facts'!B10 -> Please choose | G13: ='2. Company Facts'!C10 -> Please enter | H13: ='2. Company Facts'!D10 -> Please choose | I13: ='2. Company Facts'!F10 -> 500
E14: =LEFT(F14,2) -> Pl | F14: ='2. Company Facts'!B11 -> Please choose | G14: ='2. Company Facts'!C11 -> Please enter | H14: ='2. Company Facts'!D11 -> Please choose | I14: ='2. Company Facts'!F11 -> 0 | M14: ='3. Calc'!D10 -> 1.0 | N14: ='3. Calc'!D13 -> 1.0 | O14: ='3. Calc'!D17 -> 1.0 | P14: ='3. Calc'!D20 -> 1.0 | Q14: ='11.Region'!U10 -> 0
E15: =LEFT(F15,2) -> Pl | F15: ='2. Company Facts'!B12 -> Please choose | G15: ='2. Company Facts'!C12 -> Please enter | H15: ='2. Company Facts'!D12 -> Please choose | I15: ='2. Company Facts'!F12 -> 0 | M15: =M49 -> 44 | N15: =N49 -> 44 | O15: =O49 -> 44 | P15: =P49 -> 44
E16: =LEFT(F16,2) -> Pl | F16: ='2. Company Facts'!B13 -> Please choose | G16: ='2. Company Facts'!C13 -> Please enter | H16: ='2. Company Facts'!D13 -> Please choose | I16: ='2. Company Facts'!F13 -> 0 | M16: ='3. Calc'!C104 -> 1 | N16: ='3. Calc'!C104 -> 1 | O16: =IFERROR(IF('11.Region'!N8>1.5,'3. Calc'!C102,IF('11.Region'!N8>1.25,'3. Calc'!C103,IF('11.Region'!N8<0.75,'3. Calc'!C105,'3. Calc'!C104))),'3. Calc'!C104) -> 1 | P16: =IF('11.Region'!I9<1.5,'3. Calc'!C105,IF('11.Region'!I9<3.26,'3. Calc'!C104,IF('11.Region'!I9<4.5,'3. Calc'!C103,'3. Calc'!C102))) -> 1
E17: =LEFT(F17,2) -> Pl | F17: ='2. Company Facts'!B14 -> Please choose | G17: ='2. Company Facts'!C14 -> Please enter | H17: ='2. Company Facts'!D14 -> Please choose | I17: ='2. Company Facts'!F14 -> 0
F18: Rest | H18: ='2. Company Facts'!D15 -> Please choose | I18: ='2. Company Facts'!F15 -> 9,500
F19: profit | I19: ='2. Company Facts'!C18 -> 500 | J19: B: INVESTORS | K19: =K50 -> 0.5 | L19: =M23+N23+O23+P23 -> 111 | M19: B1 | N19: B2 | O19: B3 | P19: B4
F20: profit in % of total Sales | I20: =IFERROR(I19/I32,"-") -> - | N20: profit | P20: EQ-Quote
F21: costs of finance | I21: ='2. Company Facts'!C19 -> 12
E22: =IFERROR((G24+I24)/I23,0.2) -> 2.750 | F22: <-- (zugänge anlageverm.+financial assets)/total assets | G22: finance income | I22: ='2. Company Facts'!C20 -> 23 | M22: ='3. Calc'!D24 -> 1.5 | N22: ='3. Calc'!D28 -> 1.0 | O22: ='3. Calc'!D31 -> 1.5 | P22: ='3. Calc'!D35 -> 1.0
E23: =IFERROR(I32/I23,0.3) -> 0.0 | F23: <-- ratio: sales/assets | G23: total assets | I23: ='2. Company Facts'!C21 -> 44 | M23: =M50 -> 33 | N23: =N50 -> 22 | O23: =O50 -> 33 | P23: =P50 -> 22
F24: "zugänge zum anlagevermögen" | G24: ='2. Company Facts'!C22 -> 55 | H24: "invested money" | I24: ='2. Company Facts'!C23 -> 66 | M24: =IFERROR(IF(H35='10. Industry'!A22,'3. Calc'!C102,IF(E23<0.1,'3. Calc'!C103,IF(E23>0.5,'3. Calc'!C105,'3. Calc'!C104))),'3. Calc'!C104) -> 1.5 | N24: =IFERROR(IF(I20="-",'3. Calc'!C104,IF(I20>0.1,'3. Calc'!C103,IF(I20<0.001,'3. Calc'!C106,IF(I20<0.03,'3. Calc'!C105,'3. Calc'!C104)))),'3. Calc'!C104) -> 1 | O24: =IFERROR(IF(H35='10. Industry'!A22,'3. Calc'!C102,IF(E22<0.1,'3. Calc'!C105,IF(E22>0.25,'3. Calc'!C103,'3. Calc'!C104))),'3. Calc'!C104) -> 1.5 | P24: =IF(H40="Kleinstunternehmen",'3. Calc'!C105,'3. Calc'!C104) -> 1
F25: employee expenditures | I25: ='2. Company Facts'!C27 -> 33,333 | J25: C: EMPLOYEES | K25: =K51 -> 2 | L25: =M29+N29+O29+P29 -> 356 | M25: C1 | N25: C2 | O25: C3 | P25: C4
F26: number of FTE | I26: ='2. Company Facts'!C26 -> 1,234 | O26: Does an Cantine for the majority of employees exist? | P26: companay szie
G27: % employees in | H27: ='2. Company Facts'!B30 -> Please choose | I27: ='2. Company Facts'!D30 -> 0 %
G28: % employees in | H28: ='2. Company Facts'!B31 -> Please choose | I28: ='2. Company Facts'!D31 -> 0 % | M28: ='3. Calc'!D39 -> 1.0 | N28: ='3. Calc'!D44 -> 1.0 | O28: ='3. Calc'!D49 -> 1.0 | P28: ='3. Calc'!D54 -> 1.0
G29: % employees in | H29: ='2. Company Facts'!B32 -> Please choose | I29: ='2. Company Facts'!D32 -> 0 % | M29: =M51 -> 89 | N29: =N51 -> 89 | O29: =O51 -> 89 | P29: =P51 -> 89
F30: potential commuting impact | I30: ='2. Company Facts'!C33 -> 0 | M30: ='3. Calc'!C104 -> 1 | N30: ='3. Calc'!C104 -> 1 | O30: =IF(AND(OR(I31="Nein",I31="No",I31="Nao",I31="Pas"),I30<10),'3. Calc'!C105,IF(I30>25,'3. Calc'!C103,'3. Calc'!C104)) -> 1 | P30: =IF(I26=1,'3. Calc'!C106,IF(H40="Kleinstunternehmen",'3. Calc'!C105,IF('11.Region'!I14>3.25,'3. Calc'!C103,'3. Calc'!C104))) -> 1
F31: existence of a company canteen | I31: ='2. Company Facts'!C34 -> 0 %
F32: total sales | I32: ='2. Company Facts'!C37 -> 0 | J32: D: CUSTOMERS | K32: 1 | L32: =M36+N36+O36+P36 -> 178 | M32: D1 | N32: D2 | O32: D3 | P32: D4
H33: B2B / B2C | I33: ='2. Company Facts'!C38 -> 0
F34: Industry | G34: Product / Services Description | H34: industry | I34: % of total sales
F35: ='2. Company Facts'!B41 -> Please choose | G35: ='2. Company Facts'!C41 -> 0 | H35: =LEFT(F35,2) -> Pl | I35: ='2. Company Facts'!D41 -> 0 % | M35: ='3. Calc'!D60 -> 1.0 | N35: ='3. Calc'!D64 -> 1.0 | O35: ='3. Calc'!D68 -> 1.0 | P35: ='3. Calc'!D72 -> 1.0
F36: ='2. Company Facts'!B42 -> Please choose | G36: ='2. Company Facts'!C42 -> 0 | H36: =LEFT(F36,2) -> Pl | I36: ='2. Company Facts'!D42 -> 0 % | M36: =M52 -> 44 | N36: =N52 -> 44 | O36: =O52 -> 44 | P36: =P52 -> 44
F37: ='2. Company Facts'!B43 -> Please choose | G37: ='2. Company Facts'!C43 -> 0 | H37: =LEFT(F37,2) -> Pl | I37: ='2. Company Facts'!D43 -> 0 % | M37: ='3. Calc'!C104 -> 1 | N37: ='3. Calc'!C104 -> 1 | O37: =VLOOKUP(S37,'3. Calc'!$B$102:$C$106,2,FALSE()) -> 1 | P37: =IFERROR(IF(I33="Ja",'3. Calc'!C103,'3. Calc'!C104),'3. Calc'!C104) -> 1 | S37: =VLOOKUP('10. Industry'!J39,F49:H53,3,FALSE()) -> 1
J38: E: SOCIETY | K38: 1 | L38: =M42+N42+O42+P42 -> 178 | M38: E1 | N38: E2 | O38: E3 | P38: E4
H39: =IF(AND(I26<10,OR(I32<=2000000,I23<=2000000)),'12.lan'!D324,IF(AND(I26<50,OR(I32<=10000000,I23<=10000000)),'12.lan'!D325,IF(AND(I26<250,OR(I32<=50000000,I23<=43000000)),'12.lan'!D326,'12.lan'!D327))) -> Large business
F40: Company Size (EU definition) | H40: =IF(AND(I26=0,I32=0,I23=0),'12.lan'!E326) -> 0
M41: ='3. Calc'!D77 -> 1.0 | N41: ='3. Calc'!D81 -> 1.0 | O41: ='3. Calc'!D86 -> 1.0 | P41: ='3. Calc'!D90 -> 1.0
M42: =M53 -> 44 | N42: =N53 -> 44 | O42: =O53 -> 44 | P42: =P53 -> 44
M43: ='3. Calc'!C104 -> 1 | N43: =IF(I20="-",'3. Calc'!C104,IF(I20<0.05,'3. Calc'!C105,IF(I20<0.1,'3. Calc'!C104,IF(I20>0.1,'3. Calc'!C103,'3. Calc'!C104)))) -> 1 | O43: =VLOOKUP(S37,'3. Calc'!$B$102:$C$106,2,FALSE()) -> 1 | P43: =IF(H35="B",'3. Calc'!C103,IF(H35="F",'3. Calc'!C103,IF(H40="Kleinstunternehmen",'3. Calc'!C105,IF(H40="Kleinunternehmen",'3. Calc'!C105,'3. Calc'!C104)))) -> 1 | S43: =VLOOKUP('10. Industry'!L39,F49:H53,3,FALSE()) -> 1
M45: 1) HUMAN DIGNITY | N45: 2) COOPERATION AND SOLIDARITY | O45: 3) ECOLOGICAL SUSTAINABILITY | P45: 5) DEMOCRATIC CO-DETERMINATION AND TRANSPARENCY
F48: Weighting Points | R48: Selected Weighting
F49: trifft nicht zu | H49: 0 | I49: =IFERROR((60*'11.Region'!G3/('11.Region'!G3+'11.Region'!G10+(I19+I21+I22+G24))*5),100) -> 68 | J49: =IF(I49<60,60,IF(I49>300,300,I49)) -> 68 | K49: =IFERROR(IF(J49=60,0.5,IF(J49=300,2,IF(J49<180,1,1.5))),1) -> 1 | M49: =M62/$Q$67*1000 -> 44 | N49: =N62/$Q$67*1000 -> 44 | O49: =O62/$Q$67*1000 -> 44 | P49: =P62/$Q$67*1000 -> 44 | Q49: =SUM(M49:P49) -> 178 | R49: ='3. Calc'!D9 -> 1
F50: niedrig | H50: 0.5 | I50: =IFERROR((60*(I19+I21+I22+G24)/('11.Region'!G3+'11.Region'!G10+(I19+I21+I22+G24))*10),100) -> 8 | J50: =IF(I50<60,60,IF(I50>300,300,I50)) -> 60 | K50: =IFERROR(IF(J50=60,0.5,IF(J50=300,2,IF(J50<180,1,1.5))),1) -> 0.5 | M50: =M63/$Q$67*1000 -> 33 | N50: =N63/$Q$67*1000 -> 22 | O50: =O63/$Q$67*1000 -> 33 | P50: =P63/$Q$67*1000 -> 22 | Q50: =SUM(M50:P50) -> 111 | R50: ='3. Calc'!D23 -> 0.5
F51: mittel | H51: 1 | I51: =IFERROR((60*'11.Region'!G10/('11.Region'!G3+'11.Region'!G10+(I19+I21+I22+G24))*10),100) -> 455 | J51: =IF(I51<60,60,IF(I51>300,300,I51)) -> 300 | K51: =IFERROR(IF(J51=60,0.5,IF(J51=300,2,IF(J51<180,1,1.5))),1) -> 2 | M51: =M64/$Q$67*1000 -> 89 | N51: =N64/$Q$67*1000 -> 89 | O51: =O64/$Q$67*1000 -> 89 | P51: =P64/$Q$67*1000 -> 89 | Q51: =SUM(M51:P51) -> 356 | R51: ='3. Calc'!D38 -> 2
F52: hoch | H52: 1.5 | K52: =K32 -> 1 | M52: =M65/$Q$67*1000 -> 44 | N52: =N65/$Q$67*1000 -> 44 | O52: =O65/$Q$67*1000 -> 44 | P52: =P65/$Q$67*1000 -> 44 | Q52: =SUM(M52:P52) -> 178 | R52: ='3. Calc'!D59 -> 1
F53: sehr hoch | H53: 2 | K53: =K38 -> 1 | M53: =M66/$Q$67*1000 -> 44 | N53: =N66/$Q$67*1000 -> 44 | O53: =O66/$Q$67*1000 -> 44 | P53: =P66/$Q$67*1000 -> 44 | Q53: =SUM(M53:P53) -> 178 | R53: ='3. Calc'!D76 -> 1
M54: =SUM(M49:M53) -> 256 | N54: =SUM(N49:N53) -> 244 | O54: =SUM(O49:O53) -> 256 | P54: =SUM(P49:P53) -> 244 | Q54: =SUM(Q49:Q53) -> 1000
M59: 1) HUMAN DIGNITY | N59: 2) COOPERATION AND SOLIDARITY | O59: 3) ECOLOGICAL SUSTAINABILITY | P59: 5) DEMOCRATIC CO-DETERMINATION AND TRANSPARENCY
M61: 1 | N61: 1 | O61: 1 | P61: 1
K62: =IF(K49=R49,K49,R49) -> 1.0 | M62: =M14*$K$62 -> 1.0 | N62: =N14*$K$62 -> 1.0 | O62: =O14*$K$62 -> 1.0 | P62: =P14*$K$62 -> 1.0 | Q62: =SUM(M62:P62) -> 4
K63: =IF(K50=R50,K50,R50) -> 0.5 | M63: =M22*$K$63 -> 0.8 | N63: =N22*$K$63 -> 0.5 | O63: =O22*$K$63 -> 0.8 | P63: =P22*$K$63 -> 0.5 | Q63: =SUM(M63:P63) -> 3
K64: =IF(K51=R51,K51,R51) -> 2.0 | M64: =M28*$K$64 -> 2.0 | N64: =N28*$K$64 -> 2.0 | O64: =O28*$K$64 -> 2.0 | P64: =P28*$K$64 -> 2.0 | Q64: =SUM(M64:P64) -> 8
K65: =IF(K52=R52,K52,R52) -> 1.0 | M65: =M35*K65 -> 1.0 | N65: =N35*K65 -> 1.0 | O65: =O35*K65 -> 1.0 | P65: =P35*K65 -> 1.0 | Q65: =SUM(M65:P65) -> 4
K66: =IF(K53=R53,K53,R53) -> 1.0 | M66: =M41*K66 -> 1.0 | N66: =N41*K66 -> 1.0 | O66: =O41*K66 -> 1.0 | P66: =P41*K66 -> 1.0 | Q66: =SUM(M66:P66) -> 4
M67: =SUM(M62:M66) -> 6 | N67: =SUM(N62:N66) -> 6 | O67: =SUM(O62:O66) -> 6 | P67: =SUM(P62:P66) -> 6 | Q67: =SUM(Q62:Q66) -> 23
B70: DIFFERENCE TO MATRIX 4.0 WEIGHTING

Sheet 4. ECG-Matrix
B2: ='12.lan'!D91&" - "&'0. Intro'!B3&" "&'0. Intro'!C3 -> Common Good Balance Calculator - Version 5.04 | I2: ='12.lan'!D212 -> Note: This is not a certificate.
B3: ='12.lan'!D213 -> COMMON GOOD MATRIX
I4: ='12.lan'!D92 -> Total Balance Score: | K4: ='3. Calc'!I4 -> 223 | M4: ='12.lan'!D214&" "&'3. Calc'!$J$4&'12.lan'!D215 -> of 1000points
B5: ='12.lan'!D82&": "&'1. General'!C6&"; "&'12.lan'!D83&": "&'1. General'!C12 -> Company / Organisation: company; Period under review:
B7: ='12.lan'!D206 -> Values ► Stakekolders ▼ | C7: ='12.lan'!D216 -> Human dignity | G7: ='12.lan'!D217 -> Solidarity & social justice | K7: ='12.lan'!D218 -> Environmental sustainability | O7: ='12.lan'!D219 -> Transparency & co-determination
B8: ="A: "&'12.lan'!D108 -> A: Suppliers | C8: ='12.lan'!B109 -> A1: Human dignity in the supply chain | G8: ='12.lan'!B112 -> A2: Solidarity and social justice in the supply chain | K8: ='12.lan'!B116 -> A3: Environmental sustainability in the supply chain | O8: ='12.lan'!B119 -> A4: Transparency & co-determination in the supply chain
C9: ='3. Calc'!I10 -> 4 | D9: ='12.lan'!$D$214 -> of | E9: ='3. Calc'!J10 -> 44 | F9: ='3. Calc'!H10 -> 10 % | G9: ='3. Calc'!I13 -> 4 | H9: ='12.lan'!$D$214 -> of | I9: ='3. Calc'!J13 -> 44 | J9: ='3. Calc'!H13 -> 10 % | K9: ='3. Calc'!I17 -> 4 | L9: ='12.lan'!$D$214 -> of | M9: ='3. Calc'!J17 -> 44 | N9: ='3. Calc'!H17 -> 10 % | O9: ='3. Calc'!I20 -> 27 | P9: ='12.lan'!$D$214 -> of | Q9: ='3. Calc'!J20 -> 44 | R9: ='3. Calc'!H20 -> 60 %
B10: ="B: "&'12.lan'!D122 -> B: Owners, equity- and financial service providers | C10: ='12.lan'!B123 -> B1: Ethical position in relation to financial resources | G10: ='12.lan'!B127 -> B2: Social position in relation to financial resources | K10: ='12.lan'!B130 -> B3: Use of funds in relation to social and environmental impacts | O10: ='12.lan'!B134&IF('9. Weighting'!I28=1,'12.lan'!D211,"") -> B4: Ownership and co-determination
C11: ='3. Calc'!I24 -> 27 | D11: ='12.lan'!$D$214 -> of | E11: ='3. Calc'!J24 -> 33 | F11: ='3. Calc'!H24 -> 80 % | G11: ='3. Calc'!I28 -> 2 | H11: ='12.lan'!$D$214 -> of | I11: ='3. Calc'!J28 -> 22 | J11: ='3. Calc'!H28 -> 10 % | K11: ='3. Calc'!I31 -> 10 | L11: ='12.lan'!$D$214 -> of | M11: ='3. Calc'!J31 -> 33 | N11: ='3. Calc'!H31 -> 30 % | O11: ='3. Calc'!I35 -> 2 | P11: ='12.lan'!$D$214 -> of | Q11: ='3. Calc'!J35 -> 22 | R11: ='3. Calc'!H35 -> 10 %
B12: ="C: "&'12.lan'!D137 -> C: Employees | C12: ='12.lan'!B138 -> C1: Human dignity in the workplace and working environment | G12: ='12.lan'!B143 -> C2: Self-determined working arrangements | K12: ='12.lan'!B148 -> C3: Environmentally-friendly behaviour of staff | O12: ='12.lan'!B153 -> C4: Co-determination and transparency within the organisation
C13: ='3. Calc'!I39 -> 18 | D13: ='12.lan'!$D$214 -> of | E13: ='3. Calc'!J39 -> 89 | F13: ='3. Calc'!H39 -> 20 % | G13: ='3. Calc'!I44 -> 18 | H13: ='12.lan'!$D$214 -> of | I13: ='3. Calc'!J44 -> 89 | J13: ='3. Calc'!H44 -> 20 % | K13: ='3. Calc'!I49 -> 18 | L13: ='12.lan'!$D$214 -> of | M13: ='3. Calc'!J49 -> 89 | N13: ='3. Calc'!H49 -> 20 % | O13: ='3. Calc'!I54 -> 18 | P13: ='12.lan'!$D$214 -> of | Q13: ='3. Calc'!J54 -> 89 | R13: ='3. Calc'!H54 -> 20 %
B14: ="D: "&'12.lan'!D158 -> D: Customers and other companies | C14: ='12.lan'!B159 -> D1: Ethical customer relations | G14: ='12.lan'!B163 -> D2: Cooperation and solidarity with other companies | K14: ='12.lan'!B167 -> D3: Impact on the environment of the use and disposal of products and services | O14: ='12.lan'!B171 -> D4: Customer participation and product transparency
C15: ='3. Calc'!I60 -> 0 | D15: ='12.lan'!$D$214 -> of | E15: ='3. Calc'!J60 -> 44 | F15: ='3. Calc'!H60 -> 0 % | G15: ='3. Calc'!I64 -> 18 | H15: ='12.lan'!$D$214 -> of | I15: ='3. Calc'!J64 -> 44 | J15: ='3. Calc'!H64 -> 40 % | K15: ='3. Calc'!I68 -> 0 | L15: ='12.lan'!$D$214 -> of | M15: ='3. Calc'!J68 -> 44 | N15: ='3. Calc'!H68 -> 0 % | O15: ='3. Calc'!I72 -> 0 | P15: ='12.lan'!$D$214 -> of | Q15: ='3. Calc'!J72 -> 44 | R15: ='3. Calc'!H72 -> 0 %
B16: ="E: "&'12.lan'!D175 -> E: Social environment | C16: ='12.lan'!B176 -> E1: Purpose of products and services and their effects on society | G16: ='12.lan'!B180 -> E2: Contribution to the community | K16: ='12.lan'!B185 -> E3: Reduction of environmental impact | O16: ='12.lan'!B189 -> E4: Social co-determination and transparency
C17: ='3. Calc'!I77 -> 0 | D17: ='12.lan'!$D$214 -> of | E17: ='3. Calc'!J77 -> 44 | F17: ='3. Calc'!H77 -> 0 % | G17: ='3. Calc'!I81 -> 9 | H17: ='12.lan'!$D$214 -> of | I17: ='3. Calc'!J81 -> 44 | J17: ='3. Calc'!H81 -> 20 % | K17: ='3. Calc'!I86 -> 18 | L17: ='12.lan'!$D$214 -> of | M17: ='3. Calc'!J86 -> 44 | N17: ='3. Calc'!H86 -> 40 % | O17: ='3. Calc'!I90 -> 27 | P17: ='12.lan'!$D$214 -> of | Q17: ='3. Calc'!J90 -> 44 | R17: ='3. Calc'!H90 -> 60 %

Sheet 5. Values
B2: ='12.lan'!D91&" - "&'0. Intro'!B3&" "&'0. Intro'!C3 -> Common Good Balance Calculator - Version 5.04
B3: ='12.lan'!D241&'1. General'!C6 -> Values star for company
B17: ='12.lan'!D221 -> BALANCE OVERVIEW
B18: ='12.lan'!D216 -> Human dignity | C18: ='4. ECG-Matrix'!C9+'4. ECG-Matrix'!C11+'4. ECG-Matrix'!C13+'4. ECG-Matrix'!C15+'4. ECG-Matrix'!C17 -> 49 | D18: ='12.lan'!$D$214 -> of | E18: ='4. ECG-Matrix'!E9+'4. ECG-Matrix'!E11+'4. ECG-Matrix'!E13+'4. ECG-Matrix'!E15+'4. ECG-Matrix'!E17 -> 256 | F18: =C18/E18 -> 19 % | G18: =IF(F18<0,0,F18) -> 19 %
B19: ='12.lan'!D217 -> Solidarity & social justice | C19: ='4. ECG-Matrix'!G9+'4. ECG-Matrix'!G11+'4. ECG-Matrix'!G13+'4. ECG-Matrix'!G15+'4. ECG-Matrix'!G17 -> 51 | D19: ='12.lan'!$D$214 -> of | E19: ='4. ECG-Matrix'!I9+'4. ECG-Matrix'!I11+'4. ECG-Matrix'!I13+'4. ECG-Matrix'!I15+'4. ECG-Matrix'!I17 -> 244 | F19: =C19/E19 -> 21 % | G19: =IF(F19<0,0,F19) -> 21 %
B20: ='12.lan'!D218 -> Environmental sustainability | C20: ='4. ECG-Matrix'!K9+'4. ECG-Matrix'!K11+'4. ECG-Matrix'!K13+'4. ECG-Matrix'!K15+'4. ECG-Matrix'!K17 -> 50 | D20: ='12.lan'!$D$214 -> of | E20: ='4. ECG-Matrix'!M9+'4. ECG-Matrix'!M11+'4. ECG-Matrix'!M13+'4. ECG-Matrix'!M15+'4. ECG-Matrix'!M17 -> 256 | F20: =C20/E20 -> 20 % | G20: =IF(F20<0,0,F20) -> 20 %
B21: ='12.lan'!D219 -> Transparency & co-determination | C21: ='4. ECG-Matrix'!O9+'4. ECG-Matrix'!O11+'4. ECG-Matrix'!O13+'4. ECG-Matrix'!O15+'4. ECG-Matrix'!O17 -> 73 | D21: ='12.lan'!$D$214 -> of | E21: ='4. ECG-Matrix'!Q9+'4. ECG-Matrix'!Q11+'4. ECG-Matrix'!Q13+'4. ECG-Matrix'!Q15+'4. ECG-Matrix'!Q17 -> 244 | F21: =C21/E21 -> 30 % | G21: =IF(F21<0,0,F21) -> 30 %
B22: ='12.lan'!D228 -> TOTAL | C22: ='3. Calc'!I4 -> 223 | D22: ='12.lan'!$D$214 -> of | E22: ='3. Calc'!J4 -> 1000 | F22: =C22/E22 -> 22 %

Sheet 6. Stakeholder
B2: ='12.lan'!D91&" - "&'0. Intro'!B3&" "&'0. Intro'!C3 -> Common Good Balance Calculator - Version 5.04
B3: ='12.lan'!D242&'1. General'!C6 -> Group star for company
B17: ='12.lan'!D221 -> BALANCE OVERVIEW
B18: ='12.lan'!D108 -> Suppliers | C18: ='3. Calc'!I9 -> 40 | D18: ='12.lan'!$D$214 -> of | E18: ='3. Calc'!J9 -> 178 | F18: =C18/E18 -> 23 % | G18: =IF(F18<0,0,F18) -> 23 %
B19: ='12.lan'!D122 -> Owners, equity- and financial service providers | C19: ='3. Calc'!I23 -> 41 | D19: ='12.lan'!$D$214 -> of | E19: ='3. Calc'!J23 -> 111 | F19: =C19/E19 -> 37 % | G19: =IF(F19<0,0,F19) -> 37 %
B20: ='12.lan'!D137 -> Employees | C20: ='3. Calc'!I38 -> 71 | D20: ='12.lan'!$D$214 -> of | E20: ='3. Calc'!J38 -> 356 | F20: =C20/E20 -> 20 % | G20: =IF(F20<0,0,F20) -> 20 %
B21: ='12.lan'!D158 -> Customers and other companies | C21: ='3. Calc'!I59 -> 18 | D21: ='12.lan'!$D$214 -> of | E21: ='3. Calc'!J59 -> 178 | F21: =C21/E21 -> 10 % | G21: =IF(F21<0,0,F21) -> 10 %
B22: ='12.lan'!D175 -> Social environment | C22: ='3. Calc'!I76 -> 53 | D22: ='12.lan'!$D$214 -> of | E22: ='3. Calc'!J76 -> 178 | F22: =C22/E22 -> 30 % | G22: =IF(F22<0,0,F22) -> 30 %
B23: ='12.lan'!D228 -> TOTAL | C23: ='3. Calc'!I4 -> 223 | D23: ='12.lan'!$D$214 -> of | E23: ='3. Calc'!J4 -> 1000 | F23: =C23/E23 -> 22 %

Sheet 7. Topics
B2: ='12.lan'!D91&" - "&'0. Intro'!B3&" "&'0. Intro'!C3 -> Common Good Balance Calculator - Version 5.04
B3: ='12.lan'!D243&'1. General'!C6 -> Theme star for company
B17: ='12.lan'!D221 -> BALANCE OVERVIEW
B18: A1 | C18: ='4. ECG-Matrix'!C9 -> 4 | D18: ='12.lan'!$D$214 -> of | E18: ='4. ECG-Matrix'!E9 -> 44 | F18: =C18/E18 -> 10 % | G18: =IF(F18<0,0,F18) -> 10 %
B19: A2 | C19: ='4. ECG-Matrix'!G9 -> 4 | D19: ='12.lan'!$D$214 -> of | E19: ='4. ECG-Matrix'!I9 -> 44 | F19: =C19/E19 -> 10 % | G19: =IF(F19<0,0,F19) -> 10 %
B20: A3 | C20: ='4. ECG-Matrix'!K9 -> 4 | D20: ='12.lan'!$D$214 -> of | E20: ='4. ECG-Matrix'!M9 -> 44 | F20: =C20/E20 -> 10 % | G20: =IF(F20<0,0,F20) -> 10 %
B21: A4 | C21: ='4. ECG-Matrix'!O9 -> 27 | D21: ='12.lan'!$D$214 -> of | E21: ='4. ECG-Matrix'!Q9 -> 44 | F21: =C21/E21 -> 60 % | G21: =IF(F21<0,0,F21) -> 60 %
B22: B1 | C22: ='4. ECG-Matrix'!C11 -> 27 | D22: ='12.lan'!$D$214 -> of | E22: ='4. ECG-Matrix'!E11 -> 33 | F22: =C22/E22 -> 80 % | G22: =IF(F22<0,0,F22) -> 80 %
B23: B2 | C23: ='4. ECG-Matrix'!G11 -> 2 | D23: ='12.lan'!$D$214 -> of | E23: ='4. ECG-Matrix'!I11 -> 22 | F23: =C23/E23 -> 10 % | G23: =IF(F23<0,0,F23) -> 10 %
B24: B3 | C24: ='4. ECG-Matrix'!K11 -> 10 | D24: ='12.lan'!$D$214 -> of | E24: ='4. ECG-Matrix'!M11 -> 33 | F24: =C24/E24 -> 30 % | G24: =IF(F24<0,0,F24) -> 30 %
B25: B4 | C25: ='4. ECG-Matrix'!O11 -> 2 | D25: ='12.lan'!$D$214 -> of | E25: ='4. ECG-Matrix'!Q11 -> 22 | F25: =C25/E25 -> 10 % | G25: =IF(F25<0,0,F25) -> 10 %
B26: C1 | C26: ='4. ECG-Matrix'!C13 -> 18 | D26: ='12.lan'!$D$214 -> of | E26: ='4. ECG-Matrix'!E13 -> 89 | F26: =C26/E26 -> 20 % | G26: =IF(F26<0,0,F26) -> 20 %
B27: C2 | C27: ='4. ECG-Matrix'!G13 -> 18 | D27: ='12.lan'!$D$214 -> of | E27: ='4. ECG-Matrix'!I13 -> 89 | F27: =C27/E27 -> 20 % | G27: =IF(F27<0,0,F27) -> 20 %
B28: C3 | C28: ='4. ECG-Matrix'!K13 -> 18 | D28: ='12.lan'!$D$214 -> of | E28: ='4. ECG-Matrix'!M13 -> 89 | F28: =C28/E28 -> 20 % | G28: =IF(F28<0,0,F28) -> 20 %
B29: C4 | C29: ='4. ECG-Matrix'!O13 -> 18 | D29: ='12.lan'!$D$214 -> of | E29: ='4. ECG-Matrix'!Q13 -> 89 | F29: =C29/E29 -> 20 % | G29: =IF(F29<0,0,F29) -> 20 %
B30: D1 | C30: ='4. ECG-Matrix'!C15 -> 0 | D30: ='12.lan'!$D$214 -> of | E30: ='4. ECG-Matrix'!E15 -> 44 | F30: =C30/E30 -> 0 % | G30: =IF(F30<0,0,F30) -> 0 %
B31: D2 | C31: ='4. ECG-Matrix'!G15 -> 18 | D31: ='12.lan'!$D$214 -> of | E31: ='4. ECG-Matrix'!I15 -> 44 | F31: =C31/E31 -> 40 % | G31: =IF(F31<0,0,F31) -> 40 %
B32: D3 | C32: ='4. ECG-Matrix'!K15 -> 0 | D32: ='12.lan'!$D$214 -> of | E32: ='4. ECG-Matrix'!M15 -> 44 | F32: =C32/E32 -> 0 % | G32: =IF(F32<0,0,F32) -> 0 %
B33: D4 | C33: ='4. ECG-Matrix'!O15 -> 0 | D33: ='12.lan'!$D$214 -> of | E33: ='4. ECG-Matrix'!Q15 -> 44 | F33: =C33/E33 -> 0 % | G33: =IF(F33<0,0,F33) -> 0 %
B34: E1 | C34: ='4. ECG-Matrix'!C17 -> 0 | D34: ='12.lan'!$D$214 -> of | E34: ='4. ECG-Matrix'!E17 -> 44 | F34: =C34/E34 -> 0 % | G34: =IF(F34<0,0,F34) -> 0 %
B35: E2 | C35: ='4. ECG-Matrix'!G17 -> 9 | D35: ='12.lan'!$D$214 -> of | E35: ='4. ECG-Matrix'!I17 -> 44 | F35: =C35/E35 -> 20 % | G35: =IF(F35<0,0,F35) -> 20 %
B36: E3 | C36: ='4. ECG-Matrix'!K17 -> 18 | D36: ='12.lan'!$D$214 -> of | E36: ='4. ECG-Matrix'!M17 -> 44 | F36: =C36/E36 -> 40 % | G36: =IF(F36<0,0,F36) -> 40 %
B37: E4 | C37: ='4. ECG-Matrix'!O17 -> 27 | D37: ='12.lan'!$D$214 -> of | E37: ='4. ECG-Matrix'!Q17 -> 44 | F37: =C37/E37 -> 60 % | G37: =IF(F37<0,0,F37) -> 60 %
B38: ='12.lan'!D228 -> TOTAL | C38: ='3. Calc'!I4 -> 223 | D38: ='12.lan'!$D$214 -> of | E38: ='3. Calc'!J4 -> 1000 | F38: =C38/E38 -> 22 %

Sheet 8. Descr.Weighting
A1: ='12.lan'!D91&" - "&'0. Intro'!B3&" "&'0. Intro'!C3 -> Common Good Balance Calculator - Version 5.04
A2: ='12.lan'!D204 -> Description of the weighting model
A4: ='12.lan'!D208 -> General | C4: ='12.lan'!D244 -> The allocation of equal and fixed scores for all companies has been the subject of much discussion within the Matrix-development team during the past few years. Outside sources have also raised many questions and provided feedback. Untill now, the way points are distributed for themes has been the same for all companies (with the exception of one-person companies), regardless of company size, industry and other parameters (regional background, B2B versus B2C, etc.). However, these variables may well have an effect on the relevance to and effect on the common good.For example, the supply chain of an electronics trading company (A1-A4) is more significant than for a mining company, which, in turn, leaves a huge, direct environmental impact, amongst other things (E3). The new weighting model addresses these issues and highlights the significant factors. A survey on the changes was conducted, with feedback clearly favouring a new approach.
A5: ='12.lan'!D207 -> Stakekolders & values | C5: ='12.lan'!D245 -> For the weighting of three stakeholder groups, A) suppliers, B) investors and C) employees, the matrix takes into account the following financial flows to these stakeholders: A) procurement expenditure, B) profit and borrowing costs C) wages and salaries. We are aware of the limited significance attached to money in the current matrix and have plans for how this can be improved in the future. At the same time, this information is readily available in companies' financial balance sheets, and easily meets the needs of many companies. Since taxes and borrowing costs are included in procurement expenditure, these account for only 50% of the weighting.
A6: ='12.lan'!D205 -> Themes | C6: ='12.lan'!D246 -> There are also criteria for the weighting of the themes, for example a company's size or industry or the relevant local employment law. The United Nations' International Standard Industrial Classification of All Economic Activities (ISIC Rev.4) is used for all industry sector definitions. For size classification, definitions as set out by the EU are used. The table below summarises the current weighting factors (as at May 2017):
A7: A1 | C7: -
A8: A2 | C8: ='12.lan'!D248 -> -
A9: A3 | C9: ='12.lan'!D249 -> The weighting of this theme is dependent on the environmental effect of the supplier's sector (see sheet “Industry").
A10: A4 | C10: ='12.lan'!D250 -> The weighting of this theme is dependent on co-determination rights in the countries of the most important supply industries (based on the ILUC index of the International Labour Union).
A11: B1 | C11: ='12.lan'!D251 -> The weighting of this theme depends on the ratio turnover to the balance sheet total.
A12: B2 | C12: ='12.lan'!D252 -> The weighting of this theme depends on the ratio profit to turnover
A13: B3 | C13: ='12.lan'!D253 -> The weighting of this theme is dependent on additions to fixed-assets and financial assets in relation to the balance sheet total.
A14: B4 | C14: ='12.lan'!D254 -> The weighting of this theme is dependent on the size of the company.
A15: C1 | C15: ='12.lan'!D255 -> -
A16: C2 | C16: ='12.lan'!D256 -> -
A17: C3 | C17: ='12.lan'!D257 -> The weighting of this theme is dependent on the existence of a canteen for most of the employees as well as an (estimated) average commute to work.
A18: C4 | C18: ='12.lan'!D258 -> The weighting of this theme is dependent on company size and co-determination rights in the countries of the most important supply industries (based on the ILUC index of the International Labour Union).
A19: D1 | C19: ='12.lan'!D259 -> -
A20: D2 | C20: ='12.lan'!D260 -> -
A21: D3 | C21: ='12.lan'!D261 -> The weighting of this theme depends on the industry sector.
A22: D4 | C22: ='12.lan'!D262 -> The weighting of this theme depends on whether customers are primarily individuals or companies.
A23: E1 | C23: ='12.lan'!D263 -> -
A24: E2 | C24: ='12.lan'!D264 -> The weighting of this theme is dependent on the return on sales (profit/turnover).
A25: E3 | C25: ='12.lan'!D265 -> The weighting of this theme depends on the industry sector.
A26: E4 | C26: ='12.lan'!D266 -> The weighting of this theme depends on the company size and the industry sector.

Sheet 10. Industry (hidden)
A1: INDUSTRY WEIGHTING - COMMON GOOD MATRIX
B2: INDUSTRY | E2: A1 -social risks in the Supply Chain | G2: A3 -ecological sustainability in the Supply Chain | I2: D3 - Ecological Design of products and services | K2: E3 - Reduction of Environmental Impact | M2: E4 - Social transparency and co- determination | O2: A3 - Ecologicla Supply Chain Risk
B3: (based UN International Standard Industrial Classification of All Economic Activities, Rev.4 -http://unstats.un.org/unsd/cr/registry/regcst.asp?Cl=27) | E3: weighting | F3: argumentation: based on the social risks in the industry | G3: weighting | H3: argumentation: based on ecological impact on the planterary boundaries in the supply cahin (studies and the use of quantitative models - e.g. ecological footprint - will be applied herefor) | I3: weighting | J3: argumentation: based on the products / service impact on the planterary boundaries in the use phase (studies and the use of quantitative models - e.g. ecological footprint - will be applied herefor) | K3: weighting | L3: argumentation: based on the sectors direct impact in the production phase on the planterary boundaries (studies and the use of quantitative models will be applied herefor); e.g. sehr hoch: The sector has a major impact of various planetary boundaries | M3: weighting | N3: argumentation: the weighting is depending on the impact the industry has particularly on the adjacent environment | P3: weighting | Q3: argumentation: based on the sectors direct impact in the production phase on the planterary boundaries (studies and the use of quantitative models will be applied herefor) sehr hoch: The sector has a major impact of various planetary boundaries
A4: A | B4: ='12.lan'!D268 -> A - agriculture, forestry management, fishing industry | E4: sehr hoch | H4: ist E3? | I4: mittel | J4: the main impacts are in the production phase | K4: sehr hoch | L4: major direct impact on various planetary boundaries in the production (climate change, N/P-cycle, biodiversity, land-use-change) | M4: mittel | P4: sehr hoch
A5: B | B5: ='12.lan'!D269 -> B - Mining and quarrying | E5: sehr hoch | I5: mittel | K5: sehr hoch | L5: major impact on eco-systems | M5: sehr hoch | P5: sehr hoch
A6: C | B6: ='12.lan'!D270 -> C - Manufacturing industries (not further specified) | E6: hoch | I6: mittel | K6: hoch | L6: Please note: This industry is very heterogen. | M6: hoch | P6: hoch
A7: Ca | B7: ='12.lan'!D271 -> Ca - Food production, drinks and tobacco (C10, C11, C12) | E7: sehr hoch | I7: mittel | K7: mittel | M7: mittel | P7: sehr hoch
A8: Cb | B8: ='12.lan'!D272 -> Cb - Textile production, clothing, leather and leather products (C13, C14, C15) | E8: sehr hoch | I8: mittel | K8: hoch | M8: mittel | P8: sehr hoch
A9: Cc | B9: ='12.lan'!D273 -> Cc - Paper and forest products, also printed matter (C16, C17, C18) | E9: hoch | I9: mittel | K9: hoch | M9: mittel | P9: sehr hoch
A10: Cd | B10: ='12.lan'!D274 -> Cd - Production of petrochemical products and plastics (C19, C20;C22) | E10: sehr hoch | I10: mittel | K10: hoch | M10: hoch | P10: sehr hoch
A11: Ce | B11: ='12.lan'!D275 -> Ce - Pharmaceutical products and preparations (C21) | E11: mittel | I11: hoch | J11: residues for some pharmaproducts critical | K11: hoch | M11: hoch | P11: hoch
A12: Cf | B12: ='12.lan'!D276 -> Cf - Production of non-metallic minerals (C23) | E12: hoch | I12: mittel | K12: hoch | M12: hoch | P12: hoch
A13: Cg | B13: ='12.lan'!D277 -> Cg - Production of metal and metallic products (excl. machines and equipment) (C24, C25) | E13: sehr hoch | I13: mittel | K13: hoch | M13: hoch | P13: sehr hoch
A14: Ch | B14: ='12.lan'!D278 -> Ch - Production of electronic equipment, instruments and components as well as computers (C26, C27, C28) | E14: sehr hoch | I14: hoch | K14: hoch | M14: hoch | P14: sehr hoch
A15: D | B15: ='12.lan'!D279 -> D - Electric, Gas, Steam and Refrigeration | E15: mittel | I15: mittel | K15: sehr hoch | L15: major impact on climate change | M15: hoch | P15: sehr hoch
A16: E | B16: ='12.lan'!D280 -> E - Water supply, waste management | E16: mittel | I16: hoch | K16: hoch | M16: hoch | P16: mittel
A17: F | B17: ='12.lan'!D281 -> F - Construction industry | E17: sehr hoch | I17: sehr hoch | K17: sehr hoch | L17: major impact on climate change (see d3) and impacting land-use-change | M17: sehr hoch | P17: sehr hoch
A18: G | B18: ='12.lan'!D282 -> G - Wholesale and retail | E18: mittel | I18: sehr hoch | K18: mittel | M18: mittel | P18: hoch
A19: H | B19: ='12.lan'!D283 -> H - Transport and warehousing | E19: mittel | I19: mittel | K19: sehr hoch | M19: mittel | P19: hoch
A20: I | B20: ='12.lan'!D284 -> I - Accommodation and catering | E20: hoch | I20: mittel | K20: hoch | M20: mittel | P20: hoch
A21: J | B21: ='12.lan'!D285 -> J - Information and Communication | E21: mittel | I21: mittel | K21: hoch | M21: mittel | P21: hoch
A22: K | B22: ='12.lan'!D286 -> K - Financial services | E22: mittel | I22: sehr hoch | K22: mittel | M22: mittel | P22: mittel
A23: L | B23: ='12.lan'!D287 -> L - Real estate | E23: mittel | I23: sehr hoch | K23: mittel | M23: mittel | P23: hoch
A24: M | B24: ='12.lan'!D288 -> M - Professional, technical and scientific services | E24: mittel | I24: mittel | K24: mittel | M24: mittel | P24: mittel
A25: N | B25: ='12.lan'!D289 -> N - Administrative and support services | E25: mittel | I25: mittel | K25: mittel | M25: mittel | P25: mittel
A26: O | B26: ='12.lan'!D290 -> O - Public administration; defence; social security | E26: mittel | I26: mittel | K26: mittel | M26: mittel | P26: mittel
A27: P | B27: ='12.lan'!D291 -> P - Education | E27: mittel | I27: mittel | K27: mittel | M27: mittel | P27: mittel
A28: Q | B28: ='12.lan'!D292 -> Q - Health and social work | E28: mittel | I28: mittel | K28: mittel | M28: mittel | P28: mittel
A29: R | B29: ='12.lan'!D293 -> R - Art, education and leisure | E29: mittel | I29: mittel | K29: mittel | M29: mittel | P29: mittel
A30: S | B30: ='12.lan'!D294 -> S - Other services | E30: mittel | I30: mittel | K30: mittel | M30: mittel | P30: mittel
A31: T | B31: ='12.lan'!D295 -> Please enter | E31: mittel | I31: mittel | K31: mittel | M31: mittel | P31: mittel
A32: U | B32: ='12.lan'!D296 -> U - Extraterritorial organisations and bodies | E32: mittel | I32: mittel | K32: mittel | M32: mittel | P32: mittel
A34: ='9. Weighting'!H35 -> Pl | B34: Branche 1 | C34: ='9. Weighting'!I35 -> 0 % | I34: =IFERROR(VLOOKUP(A34,'10. Industry'!$A$4:$O$32,9,FALSE()),"mittel") -> mittel | J34: =VLOOKUP(I34,'9. Weighting'!$F$49:$H$53,3,FALSE()) -> 1.00 | K34: =IFERROR(VLOOKUP(A34,'10. Industry'!$A$4:$O$32,11,FALSE()),"mittel") -> mittel | L34: =VLOOKUP(K34,'9. Weighting'!$F$49:$H$53,3,FALSE()) -> 1.00
A35: ='9. Weighting'!H36 -> Pl | B35: Branche 2 | C35: ='9. Weighting'!I36 -> 0 % | I35: =IFERROR(VLOOKUP(A35,'10. Industry'!$A$4:$O$32,9,FALSE()),"mittel") -> mittel | J35: =VLOOKUP(I35,'9. Weighting'!$F$49:$H$53,3,FALSE()) -> 1.00 | K35: =IFERROR(VLOOKUP(A35,'10. Industry'!$A$4:$O$32,11,FALSE()),"mittel") -> mittel | L35: =VLOOKUP(K35,'9. Weighting'!$F$49:$H$53,3,FALSE()) -> 1.00
A36: ='9. Weighting'!H37 -> Pl | B36: Branche 3 | C36: ='9. Weighting'!I37 -> 0 % | I36: =IFERROR(VLOOKUP(A36,'10. Industry'!$A$4:$O$32,9,FALSE()),"mittel") -> mittel | J36: =VLOOKUP(I36,'9. Weighting'!$F$49:$H$53,3,FALSE()) -> 1.00 | K36: =IFERROR(VLOOKUP(A36,'10. Industry'!$A$4:$O$32,11,FALSE()),"mittel") -> mittel | L36: =VLOOKUP(K36,'9. Weighting'!$F$49:$H$53,3,FALSE()) -> 1.00
C37: =1-SUM(C34:C36) -> 100 % | I37: mittel | J37: =VLOOKUP(I37,'9. Weighting'!$F$49:$H$53,3,FALSE()) -> 1.00 | K37: mittel | L37: =VLOOKUP(K37,'9. Weighting'!$F$49:$H$53,3,FALSE()) -> 1.00
C38: =SUM(C34:C37) -> 100 % | J38: =C34*J34+C35*J35+C36*J36+C37*J37 -> 1.00 | L38: =C34*L34+C35*L35+C36*L36+C37*L37 -> 1.00
B39: ÖKOLOGISCHE BRANCHENGEWICHTUNGEN | J39: =IF(J38<0.75,"niedrig",IF(J38<1.25,"mittel",IF(J38>1.75,"sehr hoch","hoch"))) -> mittel | L39: =IF(L38<0.75,"niedrig",IF(L38<1.25,"mittel",IF(L38>1.75,"sehr hoch","hoch"))) -> mittel

Sheet 11.Region (hidden)
A1: SUPPLIERS AND EMPLOYEE WEIGHTING RATIO
B2: added value of suppliers (source: income statement) | C2: Splitted added value (source¿?) | D2: Country | E2: PPP index (source¿?) | F2: Added value adjusted | G2: Total | H2: % | I2: ITUC (average) | J2: Industry | K2: nace | L2: ecol. Impact (A3) | O2: social impact (A1)
A3: Supplier 1 | B3: ='9. Weighting'!I10 -> 10,000 | C3: ='9. Weighting'!I13 -> 500 | D3: ='9. Weighting'!H13 -> Please choose | E3: =IFERROR(VLOOKUP(D3,$A$22:$G$400,3,FALSE()),$C$243) -> 0.98 | F3: =IFERROR(C3*E3,"0") -> 489 | G3: =SUM(F3:F8) -> 9,780 | H3: =IFERROR(F3/$G$3,"-") -> 5 % | I3: =IFERROR(VLOOKUP(D3,$A$21:$I$134,6,FALSE()),2.99) -> 2.99 | J3: ='9. Weighting'!E13 -> Pl | K3: ='9. Weighting'!G13 -> Please enter | L3: =IFERROR(VLOOKUP(J3,'10. Industry'!$A$4:$P$32,16,FALSE()),'3. Calc'!C104) -> 1 | M3: =VLOOKUP(L3,'9. Weighting'!$F$49:$H$53,3,FALSE()) ->  | N3: =M3*H3 ->  | O3: =IFERROR(VLOOKUP(J3,'10. Industry'!$A$4:$N$32,5,FALSE()),'3. Calc'!C104) -> 1 | P3: =VLOOKUP(O3,'9. Weighting'!$F$49:$H$53,3,FALSE()) ->  | Q3: =P3*H3 -> 
A4: Supplier 2 | C4: ='9. Weighting'!I14 -> 0 | D4: ='9. Weighting'!H14 -> Please choose | E4: =IFERROR(VLOOKUP(D4,$A$22:$G$400,3,FALSE()),$C$243) -> 0.98 | F4: =IFERROR(C4*E4,"0") -> 0 | H4: =IFERROR(F4/$G$3,"-") -> 0 % | I4: =IFERROR(VLOOKUP(D4,$A$21:$I$134,6,FALSE()),2.99) -> 2.99 | J4: ='9. Weighting'!E14 -> Pl | K4: ='9. Weighting'!G14 -> Please enter | L4: =IFERROR(VLOOKUP(J4,'10. Industry'!$A$4:$P$32,16,FALSE()),'3. Calc'!C104) -> 1 | M4: =VLOOKUP(L4,'9. Weighting'!$F$49:$H$53,3,FALSE()) ->  | N4: =M4*H4 ->  | O4: =IFERROR(VLOOKUP(J4,'10. Industry'!$A$4:$N$32,5,FALSE()),'3. Calc'!C104) -> 1 | P4: =VLOOKUP(O4,'9. Weighting'!$F$49:$H$53,3,FALSE()) ->  | Q4: =P4*H4 -> 
A5: Supplier 3 | C5: ='9. Weighting'!I15 -> 0 | D5: ='9. Weighting'!H15 -> Please choose | E5: =IFERROR(VLOOKUP(D5,$A$22:$G$400,3,FALSE()),$C$243) -> 0.98 | F5: =IFERROR(C5*E5,"0") -> 0 | H5: =IFERROR(F5/$G$3,"-") -> 0 % | I5: =IFERROR(VLOOKUP(D5,$A$21:$I$134,6,FALSE()),2.99) -> 2.99 | J5: ='9. Weighting'!E15 -> Pl | K5: ='9. Weighting'!G15 -> Please enter | L5: =IFERROR(VLOOKUP(J5,'10. Industry'!$A$4:$P$32,16,FALSE()),'3. Calc'!C104) -> 1 | M5: =VLOOKUP(L5,'9. Weighting'!$F$49:$H$53,3,FALSE()) ->  | N5: =M5*H5 ->  | O5: =IFERROR(VLOOKUP(J5,'10. Industry'!$A$4:$N$32,5,FALSE()),'3. Calc'!C104) -> 1 | P5: =VLOOKUP(O5,'9. Weighting'!$F$49:$H$53,3,FALSE()) ->  | Q5: =P5*H5 -> 
A6: Supplier 4 | C6: ='9. Weighting'!I16 -> 0 | D6: ='9. Weighting'!H16 -> Please choose | E6: =IFERROR(VLOOKUP(D6,$A$22:$G$400,3,FALSE()),$C$243) -> 0.98 | F6: =IFERROR(C6*E6,"0") -> 0 | H6: =IFERROR(F6/$G$3,"-") -> 0 % | I6: =IFERROR(VLOOKUP(D6,$A$21:$I$134,6,FALSE()),2.99) -> 2.99 | J6: ='9. Weighting'!E16 -> Pl | K6: ='9. Weighting'!G16 -> Please enter | L6: =IFERROR(VLOOKUP(J6,'10. Industry'!$A$4:$P$32,16,FALSE()),'3. Calc'!C104) -> 1 | M6: =VLOOKUP(L6,'9. Weighting'!$F$49:$H$53,3,FALSE()) ->  | N6: =M6*H6 ->  | O6: =IFERROR(VLOOKUP(J6,'10. Industry'!$A$4:$N$32,5,FALSE()),'3. Calc'!C104) -> 1 | P6: =VLOOKUP(O6,'9. Weighting'!$F$49:$H$53,3,FALSE()) ->  | Q6: =P6*H6 -> 
A7: Supplier 5 | C7: ='9. Weighting'!I17 -> 0 | D7: ='9. Weighting'!H17 -> Please choose | E7: =IFERROR(VLOOKUP(D7,$A$22:$G$400,3,FALSE()),$C$243) -> 0.98 | F7: =IFERROR(C7*E7,"0") -> 0 | H7: =IFERROR(F7/$G$3,"-") -> 0 % | I7: =IFERROR(VLOOKUP(D7,$A$21:$I$134,6,FALSE()),2.99) -> 2.99 | J7: ='9. Weighting'!E17 -> Pl | K7: ='9. Weighting'!G17 -> Please enter | L7: =IFERROR(VLOOKUP(J7,'10. Industry'!$A$4:$P$32,16,FALSE()),'3. Calc'!C104) -> 1 | M7: =VLOOKUP(L7,'9. Weighting'!$F$49:$H$53,3,FALSE()) ->  | N7: =M7*H7 ->  | O7: =IFERROR(VLOOKUP(J7,'10. Industry'!$A$4:$N$32,5,FALSE()),'3. Calc'!C104) -> 1 | P7: =VLOOKUP(O7,'9. Weighting'!$F$49:$H$53,3,FALSE()) ->  | Q7: =P7*H7 -> 
A8: Rest of suppliers | C8: ='9. Weighting'!I18 -> 9,500 | D8: ='9. Weighting'!H18 -> Please choose | E8: =IFERROR(VLOOKUP(D8,$A$22:$G$400,3,FALSE()),$C$243) -> 0.98 | F8: =IFERROR(C8*E8,"0") -> 9,291 | H8: =IFERROR(F8/$G$3,"-") -> 95 % | I8: =IFERROR(VLOOKUP(D8,$A$21:$I$134,6,FALSE()),2.99) -> 2.99 | J8: Supply Chain Gewichtung | N8: =IFERROR((SUM(N3:N7)*1)/SUM(H3:H7),1) -> 1 | Q8: =IFERROR((SUM(Q3:Q7)*1)/SUM(H3:H7),1) -> 1
I9: =IFERROR(I3*H3+I4*H4+I5*H5+I6*H6+I7*H7+I8*H8,I21) -> 2.99
A10: Workers | B10: ='9. Weighting'!I25 -> 33,333 | C10: ='2. Company Facts'!D30 -> 0 % | D10: ='2. Company Facts'!B30 -> Please choose | E10: =IFERROR(VLOOKUP(D10,$A$22:$G$400,3,FALSE()),$C$243) -> 0.98 | F10: =C10*E10*B10 -> 0 | G10: =F10+F11+F12+F13 -> 32,601 | H10: =SUM(H3:H8) -> 100 % | I10: =IFERROR(VLOOKUP(D10,$A$21:$I$134,6,FALSE()),I28) -> 0
C11: ='2. Company Facts'!D31 -> 0 % | D11: ='2. Company Facts'!B31 -> Please choose | E11: =IFERROR(VLOOKUP(D11,$A$22:$G$400,3,FALSE()),$C$243) -> 0.98 | F11: =C11*E11*B10 -> 0 | I11: =IFERROR(VLOOKUP(D11,$A$21:$I$134,6,FALSE()),I29) -> 0
C12: ='2. Company Facts'!D32 -> 0 % | D12: ='2. Company Facts'!B32 -> Please choose | E12: =IFERROR(VLOOKUP(D12,$A$22:$G$400,3,FALSE()),$C$243) -> 0.98 | F12: =C12*E12*B10 -> 0 | I12: =IFERROR(VLOOKUP(D12,$A$21:$I$134,6,FALSE()),I30) -> 0
C13: =1-C10-C11-C12 -> 100 % | D13: =A21 -> Country Code | E13: =IFERROR(VLOOKUP(D13,$A$22:$G$400,3,FALSE()),$C$243) -> 0.98 | F13: =C13*E13*B10 -> 32,601 | I13: =IFERROR(VLOOKUP(D13,$A$21:$I$134,9,FALSE()),"0") -> 0
A14: Please note that the boxes with a red frame have to be filled out. | I14: =I10*C10+I11*C11+I12*C12+I13*C13 -> 0
A17: Purchasing Power Parity Tables
A18: Data Source | B18: Worldbank Data
A19: Last Updated Date | B19: 2_2018 | E19: http://data.worldbank.org/indicator/NY.GDP.MKTP.PP.CD
A21: Country Code | B21: Country Name | C21: PPP Factor | E21: Region | F21: ITUC | J21: code
A22: ='12.lan'!D339 -> ABW Aruba | B22: Aruba | C22: =VLOOKUP(B22,'12.ppp data'!$C$3:$J$273,7,FALSE()) -> 2.0 | D22: =IF(VLOOKUP(B22,'12.ppp data'!$C$3:$J$273,8,FALSE())="est","est","-") -> est | E22: Americas | F22: 3.4 | G22: est | J22: ABW
A23: ='12.lan'!D340 -> AFG Afghanistan | B23: Afghanistan | C23: =VLOOKUP(B23,'12.ppp data'!$C$3:$J$273,7,FALSE()) -> 3.8 | D23: =IF(VLOOKUP(B23,'12.ppp data'!$C$3:$J$273,8,FALSE())="est","est","-") -> - | E23: Asia | F23: 4.2 | G23: est | J23: AFG
A24: ='12.lan'!D341 -> AGO Angola | B24: Angola | C24: =VLOOKUP(B24,'12.ppp data'!$C$3:$J$273,7,FALSE()) -> 1.7 | D24: =IF(VLOOKUP(B24,'12.ppp data'!$C$3:$J$273,8,FALSE())="est","est","-") -> - | E24: Africa | F24: 2.0 | J24: AGO
A25: ='12.lan'!D342 -> ALB Albania | B25: Albania | C25: =VLOOKUP(B25,'12.ppp data'!$C$3:$J$273,7,FALSE()) -> 3.0 | D25: =IF(VLOOKUP(B25,'12.ppp data'!$C$3:$J$273,8,FALSE())="est","est","-") -> - | E25: Europe | F25: 2.0 | J25: ALB
A26: ='12.lan'!D343 -> AND Andorra | B26: Andorra | C26: =VLOOKUP(B26,'12.ppp data'!$C$3:$J$273,7,FALSE()) -> 1.9 | D26: =IF(VLOOKUP(B26,'12.ppp data'!$C$3:$J$273,8,FALSE())="est","est","-") -> est | E26: Europe | F26: 2.0 | G26: est | J26: AND
A27: ='12.lan'!D344 -> ARE United Arab Emirates | B27: United Arab Emirates | C27: =VLOOKUP(B27,'12.ppp data'!$C$3:$J$273,7,FALSE()) -> 2.1 | D27: =IF(VLOOKUP(B27,'12.ppp data'!$C$3:$J$273,8,FALSE())="est","est","-") -> - | E27: Asia | F27: 5.0 | J27: ARE
A28: ='12.lan'!D345 -> ARG Argentina | B28: Argentina | C28: =VLOOKUP(B28,'12.ppp data'!$C$3:$J$273,7,FALSE()) -> 1.6 | D28: =IF(VLOOKUP(B28,'12.ppp data'!$C$3:$J$273,8,FALSE())="est","est","-") -> - | E28: Americas | F28: 4.0 | J28: ARG
A29: ='12.lan'!D346 -> ARM Armenia | B29: Armenia | C29: =VLOOKUP(B29,'12.ppp data'!$C$3:$J$273,7,FALSE()) -> 2.7 | D29: =IF(VLOOKUP(B29,'12.ppp data'!$C$3:$J$273,8,FALSE())="est","est","-") -> - | E29: Asia | F29: 4.2 | G29: est | J29: ARM
A30: ='12.lan'!D347 -> ASM American Samoa | B30: American Samoa | C30: =VLOOKUP(B30,'12.ppp data'!$C$3:$J$273,7,FALSE()) -> 1.4 | D30: =IF(VLOOKUP(B30,'12.ppp data'!$C$3:$J$273,8,FALSE())="est","est","-") -> est | E30: Oceania | F30: 3.0 | J30: ASM
A31: ='12.lan'!D348 -> ATG Antigua and Barbuda | B31: Antigua and Barbuda | C31: =VLOOKUP(B31,'12.ppp data'!$C$3:$J$273,7,FALSE()) -> 1.8 | D31: =IF(VLOOKUP(B31,'12.ppp data'!$C$3:$J$273,8,FALSE())="est","est","-") -> - | E31: Americas | F31: 3.4 | G31: est | J31: ATG
A32: ='12.lan'!D349 -> AUS Australia | B32: Australia | C32: =VLOOKUP(B32,'12.ppp data'!$C$3:$J$273,7,FALSE()) -> 1.0 | D32: =IF(VLOOKUP(B32,'12.ppp data'!$C$3:$J$273,8,FALSE())="est","est","-") -> - | E32: Oceania | F32: 3.0 | G32: est | J32: AUS
A33: ='12.lan'!D350 -> AUT Austria | B33: Austria | C33: =VLOOKUP(B33,'12.ppp data'!$C$3:$J$273,7,FALSE()) -> 1.3 | D33: =IF(VLOOKUP(B33,'12.ppp data'!$C$3:$J$273,8,FALSE())="est","est","-") -> - | E33: Europe | F33: 1.0 | J33: AUT
A34: ='12.lan'!D351 -> AZE Azerbaijan | B34: Azerbaijan | C34: =VLOOKUP(B34,'12.ppp data'!$C$3:$J$273,7,FALSE()) -> 4.7 | D34: =IF(VLOOKUP(B34,'12.ppp data'!$C$3:$J$273,8,FALSE())="est","est","-") -> - | E34: Asia | F34: 4.2 | G34: est | J34: AZE
A35: ='12.lan'!D352 -> BDI Burundi | B35: Burundi | C35: =VLOOKUP(B35,'12.ppp data'!$C$3:$J$273,7,FALSE()) -> 2.7 | D35: =IF(VLOOKUP(B35,'12.ppp data'!$C$3:$J$273,8,FALSE())="est","est","-") -> - | E35: Africa | F35: 3.7 | G35: est | J35: BDI
A36: ='12.lan'!D353 -> BEL Belgium | B36: Belgium | C36: =VLOOKUP(B36,'12.ppp data'!$C$3:$J$273,7,FALSE()) -> 1.2 | D36: =IF(VLOOKUP(B36,'12.ppp data'!$C$3:$J$273,8,FALSE())="est","est","-") -> - | E36: Europe | F36: 1.0 | J36: BEL
A37: ='12.lan'!D354 -> BEN Benin | B37: Benin | C37: =VLOOKUP(B37,'12.ppp data'!$C$3:$J$273,7,FALSE()) -> 3.1 | D37: =IF(VLOOKUP(B37,'12.ppp data'!$C$3:$J$273,8,FALSE())="est","est","-") -> - | E37: Africa | F37: 3.7 | G37: est | J37: BEN
A38: ='12.lan'!D355 -> BFA Burkina Faso | B38: Burkina Faso | C38: =VLOOKUP(B38,'12.ppp data'!$C$3:$J$273,7,FALSE()) -> 3.1 | D38: =IF(VLOOKUP(B38,'12.ppp data'!$C$3:$J$273,8,FALSE())="est","est","-") -> - | E38: Africa | F38: 3.7 | G38: est | J38: BFA
A39: ='12.lan'!D356 -> BGD Bangladesh | B39: Bangladesh | C39: =VLOOKUP(B39,'12.ppp data'!$C$3:$J$273,7,FALSE()) -> 2.9 | D39: =IF(VLOOKUP(B39,'12.ppp data'!$C$3:$J$273,8,FALSE())="est","est","-") -> - | E39: Asia | F39: 5.0 | J39: BGD
A40: ='12.lan'!D357 -> BGR Bulgaria | B40: Bulgaria | C40: =VLOOKUP(B40,'12.ppp data'!$C$3:$J$273,7,FALSE()) -> 2.8 | D40: =IF(VLOOKUP(B40,'12.ppp data'!$C$3:$J$273,8,FALSE())="est","est","-") -> - | E40: Europe | F40: 3.0 | J40: BGR
A41: ='12.lan'!D358 -> BHR Bahrain | B41: Bahrain | C41: =VLOOKUP(B41,'12.ppp data'!$C$3:$J$273,7,FALSE()) -> 2.3 | D41: =IF(VLOOKUP(B41,'12.ppp data'!$C$3:$J$273,8,FALSE())="est","est","-") -> - | E41: Asia | F41: 4.0 | J41: BHR
A42: ='12.lan'!D359 -> BHS Bahamas | B42: Bahamas, The | C42: =VLOOKUP(B42,'12.ppp data'!$C$3:$J$273,7,FALSE()) -> 1.1 | D42: =IF(VLOOKUP(B42,'12.ppp data'!$C$3:$J$273,8,FALSE())="est","est","-") -> - | E42: Americas | F42: 3.4 | G42: est | J42: BHS
A43: ='12.lan'!D360 -> BIH Bosnia and Herzegovina | B43: Bosnia and Herzegovina | C43: =VLOOKUP(B43,'12.ppp data'!$C$3:$J$273,7,FALSE()) -> 2.8 | D43: =IF(VLOOKUP(B43,'12.ppp data'!$C$3:$J$273,8,FALSE())="est","est","-") -> - | E43: Europe | F43: 2.0 | J43: BIH
A44: ='12.lan'!D361 -> BLR Belarus | B44: Belarus | C44: =VLOOKUP(B44,'12.ppp data'!$C$3:$J$273,7,FALSE()) -> 3.8 | D44: =IF(VLOOKUP(B44,'12.ppp data'!$C$3:$J$273,8,FALSE())="est","est","-") -> - | E44: Europe | F44: 5.0 | J44: BLR
A45: ='12.lan'!D362 -> BLZ Belize | B45: Belize | C45: =VLOOKUP(B45,'12.ppp data'!$C$3:$J$273,7,FALSE()) -> 2.0 | D45: =IF(VLOOKUP(B45,'12.ppp data'!$C$3:$J$273,8,FALSE())="est","est","-") -> - | E45: Americas | F45: 3.4 | G45: est | J45: BLZ
A46: ='12.lan'!D363 -> BMU Bermuda | B46: Bermuda | C46: =VLOOKUP(B46,'12.ppp data'!$C$3:$J$273,7,FALSE()) -> 2.0 | D46: =IF(VLOOKUP(B46,'12.ppp data'!$C$3:$J$273,8,FALSE())="est","est","-") -> est | E46: Americas | F46: 3.4 | G46: est | J46: BMU
A47: ='12.lan'!D364 -> BOL Bolivia, Plurinational State of | B47: Bolivia | C47: =VLOOKUP(B47,'12.ppp data'!$C$3:$J$273,7,FALSE()) -> 2.5 | D47: =IF(VLOOKUP(B47,'12.ppp data'!$C$3:$J$273,8,FALSE())="est","est","-") -> - | E47: Americas | F47: 3.0 | J47: BOL
A48: ='12.lan'!D365 -> BRA Brazil | B48: Brazil | C48: =VLOOKUP(B48,'12.ppp data'!$C$3:$J$273,7,FALSE()) -> 1.8 | D48: =IF(VLOOKUP(B48,'12.ppp data'!$C$3:$J$273,8,FALSE())="est","est","-") -> - | E48: Americas | F48: 3.0 | J48: BRA
A49: ='12.lan'!D366 -> BRB Barbados | B49: Barbados | C49: =VLOOKUP(B49,'12.ppp data'!$C$3:$J$273,7,FALSE()) -> 1.3 | D49: =IF(VLOOKUP(B49,'12.ppp data'!$C$3:$J$273,8,FALSE())="est","est","-") -> - | E49: Americas | F49: 3.4 | G49: est | J49: BRB
A50: ='12.lan'!D367 -> BRN Brunei Darussalam | B50: Brunei Darussalam | C50: =VLOOKUP(B50,'12.ppp data'!$C$3:$J$273,7,FALSE()) -> 3.1 | D50: =IF(VLOOKUP(B50,'12.ppp data'!$C$3:$J$273,8,FALSE())="est","est","-") -> - | E50: Asia | F50: 4.2 | G50: est | J50: BRN
A51: ='12.lan'!D368 -> BTN Bhutan | B51: Bhutan | C51: =VLOOKUP(B51,'12.ppp data'!$C$3:$J$273,7,FALSE()) -> 3.3 | D51: =IF(VLOOKUP(B51,'12.ppp data'!$C$3:$J$273,8,FALSE())="est","est","-") -> - | E51: Asia | F51: 4.2 | G51: est | J51: BTN
A52: ='12.lan'!D369 -> BWA Botswana | B52: Botswana | C52: =VLOOKUP(B52,'12.ppp data'!$C$3:$J$273,7,FALSE()) -> 2.6 | D52: =IF(VLOOKUP(B52,'12.ppp data'!$C$3:$J$273,8,FALSE())="est","est","-") -> - | E52: Africa | F52: 4.0 | J52: BWA
A53: ='12.lan'!D370 -> CAF Central African Republic | B53: Central African Republic | C53: =VLOOKUP(B53,'12.ppp data'!$C$3:$J$273,7,FALSE()) -> 2.0 | D53: =IF(VLOOKUP(B53,'12.ppp data'!$C$3:$J$273,8,FALSE())="est","est","-") -> - | E53: Africa | F53: 3.7 | G53: est | J53: CAF
A54: ='12.lan'!D371 -> CAN Canada | B54: Canada | C54: =VLOOKUP(B54,'12.ppp data'!$C$3:$J$273,7,FALSE()) -> 1.2 | D54: =IF(VLOOKUP(B54,'12.ppp data'!$C$3:$J$273,8,FALSE())="est","est","-") -> - | E54: Americas | F54: 3.0 | J54: CAN
A55: ='12.lan'!D372 -> CHE Switzerland | B55: Switzerland | C55: =VLOOKUP(B55,'12.ppp data'!$C$3:$J$273,7,FALSE()) -> 0.9 | D55: =IF(VLOOKUP(B55,'12.ppp data'!$C$3:$J$273,8,FALSE())="est","est","-") -> - | E55: Europe | F55: 2.0 | G55: est | J55: CHE
A56: ='12.lan'!D373 -> CHL Chile | B56: Chile | C56: =VLOOKUP(B56,'12.ppp data'!$C$3:$J$273,7,FALSE()) -> 1.8 | D56: =IF(VLOOKUP(B56,'12.ppp data'!$C$3:$J$273,8,FALSE())="est","est","-") -> - | E56: Americas | F56: 3.0 | J56: CHL
A57: ='12.lan'!D374 -> CHN China | B57: China | C57: =VLOOKUP(B57,'12.ppp data'!$C$3:$J$273,7,FALSE()) -> 2.2 | D57: =IF(VLOOKUP(B57,'12.ppp data'!$C$3:$J$273,8,FALSE())="est","est","-") -> - | E57: Asia | F57: 5.0 | J57: CHN
A58: ='12.lan'!D375 -> CIV Côte d'Ivoire | B58: Cote d'Ivoire | C58: =VLOOKUP(B58,'12.ppp data'!$C$3:$J$273,7,FALSE()) -> 2.7 | D58: =IF(VLOOKUP(B58,'12.ppp data'!$C$3:$J$273,8,FALSE())="est","est","-") -> - | E58: Africa | F58: 5.0 | J58: CIV
A59: ='12.lan'!D376 -> CMR Cameroon | B59: Cameroon | C59: =VLOOKUP(B59,'12.ppp data'!$C$3:$J$273,7,FALSE()) -> 2.9 | D59: =IF(VLOOKUP(B59,'12.ppp data'!$C$3:$J$273,8,FALSE())="est","est","-") -> - | E59: Africa | F59: 2.0 | J59: CMR
A60: ='12.lan'!D377 -> COD Congo, the Democratic Republic of the | B60: Congo, Dem. Rep. | C60: =VLOOKUP(B60,'12.ppp data'!$C$3:$J$273,7,FALSE()) -> 2.1 | D60: =IF(VLOOKUP(B60,'12.ppp data'!$C$3:$J$273,8,FALSE())="est","est","-") -> - | E60: Africa | F60: 4.0 | J60: COD
A61: ='12.lan'!D378 -> COG Congo | B61: Congo, Rep. | C61: =VLOOKUP(B61,'12.ppp data'!$C$3:$J$273,7,FALSE()) -> 3.6 | D61: =IF(VLOOKUP(B61,'12.ppp data'!$C$3:$J$273,8,FALSE())="est","est","-") -> - | E61: Africa | F61: 3.0 | J61: COG
A62: ='12.lan'!D379 -> COL Colombia | B62: Colombia | C62: =VLOOKUP(B62,'12.ppp data'!$C$3:$J$273,7,FALSE()) -> 2.6 | D62: =IF(VLOOKUP(B62,'12.ppp data'!$C$3:$J$273,8,FALSE())="est","est","-") -> - | E62: Americas | F62: 5.0 | J62: COL
A63: ='12.lan'!D380 -> COM Comoros | B63: Comoros | C63: =VLOOKUP(B63,'12.ppp data'!$C$3:$J$273,7,FALSE()) -> 2.2 | D63: =IF(VLOOKUP(B63,'12.ppp data'!$C$3:$J$273,8,FALSE())="est","est","-") -> - | E63: Africa | F63: 3.7 | G63: est | J63: COM
A64: ='12.lan'!D381 -> CPV Cape Verde | B64: Cabo Verde | C64: =VLOOKUP(B64,'12.ppp data'!$C$3:$J$273,7,FALSE()) -> 2.4 | D64: =IF(VLOOKUP(B64,'12.ppp data'!$C$3:$J$273,8,FALSE())="est","est","-") -> - | E64: Africa | F64: 3.7 | G64: est | J64: CPV
A65: ='12.lan'!D382 -> CRI Costa Rica | B65: Costa Rica | C65: =VLOOKUP(B65,'12.ppp data'!$C$3:$J$273,7,FALSE()) -> 1.6 | D65: =IF(VLOOKUP(B65,'12.ppp data'!$C$3:$J$273,8,FALSE())="est","est","-") -> - | E65: Americas | F65: 3.0 | J65: CRI
A66: ='12.lan'!D383 -> CUB Cuba | B66: Cuba | C66: =VLOOKUP(B66,'12.ppp data'!$C$3:$J$273,7,FALSE()) -> 2.0 | D66: =IF(VLOOKUP(B66,'12.ppp data'!$C$3:$J$273,8,FALSE())="est","est","-") -> est | E66: Americas | F66: 3.4 | G66: est | J66: CUB
A67: ='12.lan'!D384 -> CUW Curaçao | B67: Curacao | C67: =VLOOKUP(B67,'12.ppp data'!$C$3:$J$273,7,FALSE()) -> 2.0 | D67: =IF(VLOOKUP(B67,'12.ppp data'!$C$3:$J$273,8,FALSE())="est","est","-") -> est | E67: Americas | F67: 3.4 | G67: est | J67: CUW
A68: ='12.lan'!D385 -> CYM Cayman Islands | B68: Cayman Islands | C68: =VLOOKUP(B68,'12.ppp data'!$C$3:$J$273,7,FALSE()) -> 2.0 | D68: =IF(VLOOKUP(B68,'12.ppp data'!$C$3:$J$273,8,FALSE())="est","est","-") -> est | E68: Americas | F68: 3.4 | G68: est | J68: CYM
A69: ='12.lan'!D386 -> CYP Cyprus | B69: Cyprus | C69: =VLOOKUP(B69,'12.ppp data'!$C$3:$J$273,7,FALSE()) -> 1.5 | D69: =IF(VLOOKUP(B69,'12.ppp data'!$C$3:$J$273,8,FALSE())="est","est","-") -> - | E69: Asia | F69: 4.2 | G69: est | J69: CYP
A70: ='12.lan'!D387 -> CZE Czech Republic | B70: Czech Republic | C70: =VLOOKUP(B70,'12.ppp data'!$C$3:$J$273,7,FALSE()) -> 2.0 | D70: =IF(VLOOKUP(B70,'12.ppp data'!$C$3:$J$273,8,FALSE())="est","est","-") -> - | E70: Europe | F70: 2.0 | J70: CZE
A71: ='12.lan'!D388 -> DEU Germany | B71: Germany | C71: =VLOOKUP(B71,'12.ppp data'!$C$3:$J$273,7,FALSE()) -> 1.3 | D71: =IF(VLOOKUP(B71,'12.ppp data'!$C$3:$J$273,8,FALSE())="est","est","-") -> - | E71: Europe | F71: 1.0 | J71: DEU
A72: ='12.lan'!D389 -> DJI Djibouti | B72: Djibouti | C72: =VLOOKUP(B72,'12.ppp data'!$C$3:$J$273,7,FALSE()) -> 3.0 | D72: =IF(VLOOKUP(B72,'12.ppp data'!$C$3:$J$273,8,FALSE())="est","est","-") -> est | E72: Africa | F72: 3.7 | G72: est | J72: DJI
A73: ='12.lan'!D390 -> DMA Dominica | B73: Dominica | C73: =VLOOKUP(B73,'12.ppp data'!$C$3:$J$273,7,FALSE()) -> 1.6 | D73: =IF(VLOOKUP(B73,'12.ppp data'!$C$3:$J$273,8,FALSE())="est","est","-") -> - | E73: Americas | F73: 3.4 | G73: est | J73: DMA
A74: ='12.lan'!D391 -> DNK Denmark | B74: Denmark | C74: =VLOOKUP(B74,'12.ppp data'!$C$3:$J$273,7,FALSE()) -> 1.0 | D74: =IF(VLOOKUP(B74,'12.ppp data'!$C$3:$J$273,8,FALSE())="est","est","-") -> - | E74: Europe | F74: 1.0 | J74: DNK
A75: ='12.lan'!D392 -> DOM Dominican Republic | B75: Dominican Republic | C75: =VLOOKUP(B75,'12.ppp data'!$C$3:$J$273,7,FALSE()) -> 2.5 | D75: =IF(VLOOKUP(B75,'12.ppp data'!$C$3:$J$273,8,FALSE())="est","est","-") -> - | E75: Americas | F75: 2.0 | J75: DOM
A76: ='12.lan'!D393 -> DZA Algeria | B76: Algeria | C76: =VLOOKUP(B76,'12.ppp data'!$C$3:$J$273,7,FALSE()) -> 4.2 | D76: =IF(VLOOKUP(B76,'12.ppp data'!$C$3:$J$273,8,FALSE())="est","est","-") -> - | E76: Africa | F76: 5.0 | J76: DZA
A77: ='12.lan'!D394 -> ECU Ecuador | B77: Ecuador | C77: =VLOOKUP(B77,'12.ppp data'!$C$3:$J$273,7,FALSE()) -> 2.1 | D77: =IF(VLOOKUP(B77,'12.ppp data'!$C$3:$J$273,8,FALSE())="est","est","-") -> - | E77: Americas | F77: 3.0 | J77: ECU
A78: ='12.lan'!D395 -> EGY Egypt | B78: Egypt, Arab Rep. | C78: =VLOOKUP(B78,'12.ppp data'!$C$3:$J$273,7,FALSE()) -> 6.6 | D78: =IF(VLOOKUP(B78,'12.ppp data'!$C$3:$J$273,8,FALSE())="est","est","-") -> - | E78: Africa | F78: 5.0 | J78: EGY
A79: ='12.lan'!D396 -> ERI Eritrea | B79: Eritrea | C79: =VLOOKUP(B79,'12.ppp data'!$C$3:$J$273,7,FALSE()) -> 3.0 | D79: =IF(VLOOKUP(B79,'12.ppp data'!$C$3:$J$273,8,FALSE())="est","est","-") -> est | E79: Africa | F79: 3.7 | G79: est | J79: ERI
A80: ='12.lan'!D397 -> ESP Spain | B80: Spain | C80: =VLOOKUP(B80,'12.ppp data'!$C$3:$J$273,7,FALSE()) -> 1.5 | D80: =IF(VLOOKUP(B80,'12.ppp data'!$C$3:$J$273,8,FALSE())="est","est","-") -> - | E80: Europe | F80: 2.0 | J80: ESP
A81: ='12.lan'!D398 -> EST Estonia | B81: Estonia | C81: =VLOOKUP(B81,'12.ppp data'!$C$3:$J$273,7,FALSE()) -> 1.8 | D81: =IF(VLOOKUP(B81,'12.ppp data'!$C$3:$J$273,8,FALSE())="est","est","-") -> - | E81: Europe | F81: 1.0 | J81: EST
A82: ='12.lan'!D399 -> ETH Ethiopia | B82: Ethiopia | C82: =VLOOKUP(B82,'12.ppp data'!$C$3:$J$273,7,FALSE()) -> 3.0 | D82: =IF(VLOOKUP(B82,'12.ppp data'!$C$3:$J$273,8,FALSE())="est","est","-") -> - | E82: Africa | F82: 3.0 | J82: ETH
A83: ='12.lan'!D400 -> FIN Finland | B83: Finland | C83: =VLOOKUP(B83,'12.ppp data'!$C$3:$J$273,7,FALSE()) -> 1.1 | D83: =IF(VLOOKUP(B83,'12.ppp data'!$C$3:$J$273,8,FALSE())="est","est","-") -> - | E83: Europe | F83: 1.0 | J83: FIN
A84: ='12.lan'!D401 -> FJI Fiji | B84: Fiji | C84: =VLOOKUP(B84,'12.ppp data'!$C$3:$J$273,7,FALSE()) -> 1.9 | D84: =IF(VLOOKUP(B84,'12.ppp data'!$C$3:$J$273,8,FALSE())="est","est","-") -> - | E84: Oceania | F84: 3.0 | G84: est | J84: FJI
A85: ='12.lan'!D402 -> FRA France | B85: France | C85: =VLOOKUP(B85,'12.ppp data'!$C$3:$J$273,7,FALSE()) -> 1.3 | D85: =IF(VLOOKUP(B85,'12.ppp data'!$C$3:$J$273,8,FALSE())="est","est","-") -> - | E85: Europe | F85: 1.0 | J85: FRA
A86: ='12.lan'!D403 -> FRO Faroe Islands | B86: Faroe Islands | C86: =VLOOKUP(B86,'12.ppp data'!$C$3:$J$273,7,FALSE()) -> 1.9 | D86: =IF(VLOOKUP(B86,'12.ppp data'!$C$3:$J$273,8,FALSE())="est","est","-") -> est | E86: Europe | F86: 2.0 | G86: est | J86: FRO
A87: ='12.lan'!D404 -> FSM Micronesia, Federated States of | B87: Micronesia, Fed. Sts. | C87: =VLOOKUP(B87,'12.ppp data'!$C$3:$J$273,7,FALSE()) -> 1.3 | D87: =IF(VLOOKUP(B87,'12.ppp data'!$C$3:$J$273,8,FALSE())="est","est","-") -> - | E87: Oceania | F87: 3.0 | G87: est | J87: FSM
A88: ='12.lan'!D405 -> GAB Gabon | B88: Gabon | C88: =VLOOKUP(B88,'12.ppp data'!$C$3:$J$273,7,FALSE()) -> 2.8 | D88: =IF(VLOOKUP(B88,'12.ppp data'!$C$3:$J$273,8,FALSE())="est","est","-") -> - | E88: Africa | F88: 3.7 | G88: est | J88: GAB
A89: ='12.lan'!D406 -> GBR United Kingdom | B89: United Kingdom | C89: =VLOOKUP(B89,'12.ppp data'!$C$3:$J$273,7,FALSE()) -> 1.2 | D89: =IF(VLOOKUP(B89,'12.ppp data'!$C$3:$J$273,8,FALSE())="est","est","-") -> - | E89: Europe | F89: 3.0 | J89: GBR
A90: ='12.lan'!D407 -> GEO Georgia | B90: Georgia | C90: =VLOOKUP(B90,'12.ppp data'!$C$3:$J$273,7,FALSE()) -> 2.9 | D90: =IF(VLOOKUP(B90,'12.ppp data'!$C$3:$J$273,8,FALSE())="est","est","-") -> - | E90: Asia | F90: 3.0 | J90: GEO
A91: ='12.lan'!D408 -> GHA Ghana | B91: Ghana | C91: =VLOOKUP(B91,'12.ppp data'!$C$3:$J$273,7,FALSE()) -> 3.2 | D91: =IF(VLOOKUP(B91,'12.ppp data'!$C$3:$J$273,8,FALSE())="est","est","-") -> - | E91: Africa | F91: 3.0 | J91: GHA
A92: ='12.lan'!D409 -> GIB Gibraltar | B92: Gibraltar | C92: =VLOOKUP(B92,'12.ppp data'!$C$3:$J$273,7,FALSE()) -> 1.9 | D92: =IF(VLOOKUP(B92,'12.ppp data'!$C$3:$J$273,8,FALSE())="est","est","-") -> est | E92: Europe | F92: 2.0 | G92: est | J92: GIB
A93: ='12.lan'!D410 -> GIN Guinea | B93: Guinea | C93: =VLOOKUP(B93,'12.ppp data'!$C$3:$J$273,7,FALSE()) -> 3.0 | D93: =IF(VLOOKUP(B93,'12.ppp data'!$C$3:$J$273,8,FALSE())="est","est","-") -> - | E93: Africa | F93: 3.7 | G93: est | J93: GIN
A94: ='12.lan'!D411 -> GMB Gambia | B94: Gambia, The | C94: =VLOOKUP(B94,'12.ppp data'!$C$3:$J$273,7,FALSE()) -> 3.9 | D94: =IF(VLOOKUP(B94,'12.ppp data'!$C$3:$J$273,8,FALSE())="est","est","-") -> - | E94: Africa | F94: 3.7 | G94: est | J94: GMB
A95: ='12.lan'!D412 -> GNB Guinea-Bissau | B95: Guinea-Bissau | C95: =VLOOKUP(B95,'12.ppp data'!$C$3:$J$273,7,FALSE()) -> 2.7 | D95: =IF(VLOOKUP(B95,'12.ppp data'!$C$3:$J$273,8,FALSE())="est","est","-") -> - | E95: Africa | F95: 3.7 | G95: est | J95: GNB
A96: ='12.lan'!D413 -> GNQ Equatorial Guinea | B96: Equatorial Guinea | C96: =VLOOKUP(B96,'12.ppp data'!$C$3:$J$273,7,FALSE()) -> 2.8 | D96: =IF(VLOOKUP(B96,'12.ppp data'!$C$3:$J$273,8,FALSE())="est","est","-") -> - | E96: Africa | F96: 3.7 | G96: est | J96: GNQ
A97: ='12.lan'!D414 -> GRC Greece | B97: Greece | C97: =VLOOKUP(B97,'12.ppp data'!$C$3:$J$273,7,FALSE()) -> 1.7 | D97: =IF(VLOOKUP(B97,'12.ppp data'!$C$3:$J$273,8,FALSE())="est","est","-") -> - | E97: Europe | F97: 5.0 | J97: GRC
A98: ='12.lan'!D415 -> GRD Grenada | B98: Grenada | C98: =VLOOKUP(B98,'12.ppp data'!$C$3:$J$273,7,FALSE()) -> 1.6 | D98: =IF(VLOOKUP(B98,'12.ppp data'!$C$3:$J$273,8,FALSE())="est","est","-") -> - | E98: Americas | F98: 3.4 | G98: est | J98: GRD
A99: ='12.lan'!D416 -> GRL Greenland | B99: Greenland | C99: =VLOOKUP(B99,'12.ppp data'!$C$3:$J$273,7,FALSE()) -> 2.0 | D99: =IF(VLOOKUP(B99,'12.ppp data'!$C$3:$J$273,8,FALSE())="est","est","-") -> est | E99: Americas | F99: 3.4 | G99: est | J99: GRL
A100: ='12.lan'!D417 -> GTM Guatemala | B100: Guatemala | C100: =VLOOKUP(B100,'12.ppp data'!$C$3:$J$273,7,FALSE()) -> 2.0 | D100: =IF(VLOOKUP(B100,'12.ppp data'!$C$3:$J$273,8,FALSE())="est","est","-") -> - | E100: Americas | F100: 5.0 | J100: GTM
A101: ='12.lan'!D418 -> GUM Guam | B101: Guam | C101: =VLOOKUP(B101,'12.ppp data'!$C$3:$J$273,7,FALSE()) -> 1.4 | D101: =IF(VLOOKUP(B101,'12.ppp data'!$C$3:$J$273,8,FALSE())="est","est","-") -> est | E101: Oceania | F101: 3.0 | G101: est | J101: GUM
A102: ='12.lan'!D419 -> GUY Guyana | B102: Guyana | C102: =VLOOKUP(B102,'12.ppp data'!$C$3:$J$273,7,FALSE()) -> 1.9 | D102: =IF(VLOOKUP(B102,'12.ppp data'!$C$3:$J$273,8,FALSE())="est","est","-") -> - | E102: Americas | F102: 3.4 | G102: est | J102: GUY
A103: ='12.lan'!D420 -> HKG Hong Kong | B103: Hong Kong SAR, China | C103: =VLOOKUP(B103,'12.ppp data'!$C$3:$J$273,7,FALSE()) -> 1.5 | D103: =IF(VLOOKUP(B103,'12.ppp data'!$C$3:$J$273,8,FALSE())="est","est","-") -> - | E103: Asia | F103: 4.0 | J103: HKG
A104: ='12.lan'!D421 -> HND Honduras | B104: Honduras | C104: =VLOOKUP(B104,'12.ppp data'!$C$3:$J$273,7,FALSE()) -> 2.2 | D104: =IF(VLOOKUP(B104,'12.ppp data'!$C$3:$J$273,8,FALSE())="est","est","-") -> - | E104: Americas | F104: 4.0 | J104: HND
A105: ='12.lan'!D422 -> HRV Croatia | B105: Croatia | C105: =VLOOKUP(B105,'12.ppp data'!$C$3:$J$273,7,FALSE()) -> 2.1 | D105: =IF(VLOOKUP(B105,'12.ppp data'!$C$3:$J$273,8,FALSE())="est","est","-") -> - | E105: Europe | F105: 2.0 | J105: HRV
A106: ='12.lan'!D423 -> HTI Haiti | B106: Haiti | C106: =VLOOKUP(B106,'12.ppp data'!$C$3:$J$273,7,FALSE()) -> 2.6 | D106: =IF(VLOOKUP(B106,'12.ppp data'!$C$3:$J$273,8,FALSE())="est","est","-") -> - | E106: Americas | F106: 3.4 | G106: est | J106: HTI
A107: ='12.lan'!D424 -> HUN Hungary | B107: Hungary | C107: =VLOOKUP(B107,'12.ppp data'!$C$3:$J$273,7,FALSE()) -> 2.3 | D107: =IF(VLOOKUP(B107,'12.ppp data'!$C$3:$J$273,8,FALSE())="est","est","-") -> - | E107: Europe | F107: 2.0 | J107: HUN
A108: ='12.lan'!D425 -> IDN Indonesia | B108: Indonesia | C108: =VLOOKUP(B108,'12.ppp data'!$C$3:$J$273,7,FALSE()) -> 3.6 | D108: =IF(VLOOKUP(B108,'12.ppp data'!$C$3:$J$273,8,FALSE())="est","est","-") -> - | E108: Asia | F108: 4.0 | J108: IDN
A109: ='12.lan'!D426 -> IMN Isle of Man | B109: Isle of Man | C109: =VLOOKUP(B109,'12.ppp data'!$C$3:$J$273,7,FALSE()) -> 1.9 | D109: =IF(VLOOKUP(B109,'12.ppp data'!$C$3:$J$273,8,FALSE())="est","est","-") -> est | E109: Europe | F109: 2.0 | G109: est | J109: IMN
A110: ='12.lan'!D427 -> IND India | B110: India | C110: =VLOOKUP(B110,'12.ppp data'!$C$3:$J$273,7,FALSE()) -> 4.1 | D110: =IF(VLOOKUP(B110,'12.ppp data'!$C$3:$J$273,8,FALSE())="est","est","-") -> - | E110: Asia | F110: 5.0 | J110: IND
A111: ='12.lan'!D428 -> IRL Ireland | B111: Ireland | C111: =VLOOKUP(B111,'12.ppp data'!$C$3:$J$273,7,FALSE()) -> 1.2 | D111: =IF(VLOOKUP(B111,'12.ppp data'!$C$3:$J$273,8,FALSE())="est","est","-") -> - | E111: Europe | F111: 2.0 | J111: IRL
A112: ='12.lan'!D429 -> IRN Iran, Islamic Republic of | B112: Iran, Islamic Rep. | C112: =VLOOKUP(B112,'12.ppp data'!$C$3:$J$273,7,FALSE()) -> 4.3 | D112: =IF(VLOOKUP(B112,'12.ppp data'!$C$3:$J$273,8,FALSE())="est","est","-") -> - | E112: Asia | F112: 4.0 | J112: IRN
A113: ='12.lan'!D430 -> IRQ Iraq | B113: Iraq | C113: =VLOOKUP(B113,'12.ppp data'!$C$3:$J$273,7,FALSE()) -> 3.7 | D113: =IF(VLOOKUP(B113,'12.ppp data'!$C$3:$J$273,8,FALSE())="est","est","-") -> - | E113: Asia | F113: 4.0 | J113: IRQ
A114: ='12.lan'!D431 -> ISL Iceland | B114: Iceland | C114: =VLOOKUP(B114,'12.ppp data'!$C$3:$J$273,7,FALSE()) -> 0.9 | D114: =IF(VLOOKUP(B114,'12.ppp data'!$C$3:$J$273,8,FALSE())="est","est","-") -> - | E114: Europe | F114: 1.0 | J114: ISL
A115: ='12.lan'!D432 -> ISR Israel | B115: Israel | C115: =VLOOKUP(B115,'12.ppp data'!$C$3:$J$273,7,FALSE()) -> 1.1 | D115: =IF(VLOOKUP(B115,'12.ppp data'!$C$3:$J$273,8,FALSE())="est","est","-") -> - | E115: Asia | F115: 3.0 | J115: ISR
A116: ='12.lan'!D433 -> ITA Italy | B116: Italy | C116: =VLOOKUP(B116,'12.ppp data'!$C$3:$J$273,7,FALSE()) -> 1.4 | D116: =IF(VLOOKUP(B116,'12.ppp data'!$C$3:$J$273,8,FALSE())="est","est","-") -> - | E116: Europe | F116: 1.0 | J116: ITA
A117: ='12.lan'!D434 -> JAM Jamaica | B117: Jamaica | C117: =VLOOKUP(B117,'12.ppp data'!$C$3:$J$273,7,FALSE()) -> 2.0 | D117: =IF(VLOOKUP(B117,'12.ppp data'!$C$3:$J$273,8,FALSE())="est","est","-") -> - | E117: Americas | F117: 3.4 | G117: est | J117: JAM
A118: ='12.lan'!D435 -> JOR Jordan | B118: Jordan | C118: =VLOOKUP(B118,'12.ppp data'!$C$3:$J$273,7,FALSE()) -> 2.5 | D118: =IF(VLOOKUP(B118,'12.ppp data'!$C$3:$J$273,8,FALSE())="est","est","-") -> - | E118: Asia | F118: 4.0 | J118: JOR
A119: ='12.lan'!D436 -> JPN Japan | B119: Japan | C119: =VLOOKUP(B119,'12.ppp data'!$C$3:$J$273,7,FALSE()) -> 1.3 | D119: =IF(VLOOKUP(B119,'12.ppp data'!$C$3:$J$273,8,FALSE())="est","est","-") -> - | E119: Asia | F119: 2.0 | J119: JPN
A120: ='12.lan'!D437 -> KAZ Kazakhstan | B120: Kazakhstan | C120: =VLOOKUP(B120,'12.ppp data'!$C$3:$J$273,7,FALSE()) -> 3.4 | D120: =IF(VLOOKUP(B120,'12.ppp data'!$C$3:$J$273,8,FALSE())="est","est","-") -> - | E120: Asia | F120: 4.2 | G120: est | J120: KAZ
A121: ='12.lan'!D438 -> KEN Kenya | B121: Kenya | C121: =VLOOKUP(B121,'12.ppp data'!$C$3:$J$273,7,FALSE()) -> 2.4 | D121: =IF(VLOOKUP(B121,'12.ppp data'!$C$3:$J$273,8,FALSE())="est","est","-") -> - | E121: Africa | F121: 4.0 | J121: KEN
A122: ='12.lan'!D439 -> KGZ Kyrgyzstan | B122: Kyrgyz Republic | C122: =VLOOKUP(B122,'12.ppp data'!$C$3:$J$273,7,FALSE()) -> 3.4 | D122: =IF(VLOOKUP(B122,'12.ppp data'!$C$3:$J$273,8,FALSE())="est","est","-") -> - | E122: Asia | F122: 4.2 | G122: est | J122: KGZ
A123: ='12.lan'!D440 -> KHM Cambodia | B123: Cambodia | C123: =VLOOKUP(B123,'12.ppp data'!$C$3:$J$273,7,FALSE()) -> 3.2 | D123: =IF(VLOOKUP(B123,'12.ppp data'!$C$3:$J$273,8,FALSE())="est","est","-") -> - | E123: Asia | F123: 5.0 | J123: KHM
A124: ='12.lan'!D441 -> KIR Kiribati | B124: Kiribati | C124: =VLOOKUP(B124,'12.ppp data'!$C$3:$J$273,7,FALSE()) -> 1.5 | D124: =IF(VLOOKUP(B124,'12.ppp data'!$C$3:$J$273,8,FALSE())="est","est","-") -> - | E124: Oceania | F124: 3.0 | G124: est | J124: KIR
A125: ='12.lan'!D442 -> KNA Saint Kitts and Nevis | B125: St. Kitts and Nevis | C125: =VLOOKUP(B125,'12.ppp data'!$C$3:$J$273,7,FALSE()) -> 1.8 | D125: =IF(VLOOKUP(B125,'12.ppp data'!$C$3:$J$273,8,FALSE())="est","est","-") -> - | E125: Americas | F125: 3.4 | G125: est | J125: KNA
A126: ='12.lan'!D443 -> KOR Korea, Republic of | B126: Korea, Rep. | C126: =VLOOKUP(B126,'12.ppp data'!$C$3:$J$273,7,FALSE()) -> 1.5 | D126: =IF(VLOOKUP(B126,'12.ppp data'!$C$3:$J$273,8,FALSE())="est","est","-") -> - | E126: Asia | F126: 5.0 | J126: KOR
A127: ='12.lan'!D444 -> KWT Kuwait | B127: Kuwait | C127: =VLOOKUP(B127,'12.ppp data'!$C$3:$J$273,7,FALSE()) -> 2.8 | D127: =IF(VLOOKUP(B127,'12.ppp data'!$C$3:$J$273,8,FALSE())="est","est","-") -> - | E127: Asia | F127: 4.2 | G127: est | J127: KWT
A128: ='12.lan'!D445 -> LAO Lao People's Democratic Republic | B128: Lao PDR | C128: =VLOOKUP(B128,'12.ppp data'!$C$3:$J$273,7,FALSE()) -> 3.1 | D128: =IF(VLOOKUP(B128,'12.ppp data'!$C$3:$J$273,8,FALSE())="est","est","-") -> - | E128: Asia | F128: 4.2 | G128: est | J128: LAO
A129: ='12.lan'!D446 -> LBN Lebanon | B129: Lebanon | C129: =VLOOKUP(B129,'12.ppp data'!$C$3:$J$273,7,FALSE()) -> 1.9 | D129: =IF(VLOOKUP(B129,'12.ppp data'!$C$3:$J$273,8,FALSE())="est","est","-") -> - | E129: Asia | F129: 4.0 | J129: LBN
A130: ='12.lan'!D447 -> LBR Liberia | B130: Liberia | C130: =VLOOKUP(B130,'12.ppp data'!$C$3:$J$273,7,FALSE()) -> 3.0 | D130: =IF(VLOOKUP(B130,'12.ppp data'!$C$3:$J$273,8,FALSE())="est","est","-") -> est | E130: Africa | F130: 3.7 | G130: est | J130: LBR
A131: ='12.lan'!D448 -> LBY Libya | B131: Libya | C131: =VLOOKUP(B131,'12.ppp data'!$C$3:$J$273,7,FALSE()) -> 2.7 | D131: =IF(VLOOKUP(B131,'12.ppp data'!$C$3:$J$273,8,FALSE())="est","est","-") -> - | E131: Africa | F131: 6.0 | J131: LBY
A132: ='12.lan'!D449 -> LCA Saint Lucia | B132: St. Lucia | C132: =VLOOKUP(B132,'12.ppp data'!$C$3:$J$273,7,FALSE()) -> 1.7 | D132: =IF(VLOOKUP(B132,'12.ppp data'!$C$3:$J$273,8,FALSE())="est","est","-") -> - | E132: Americas | F132: 3.4 | G132: est | J132: LCA
A133: ='12.lan'!D450 -> LIE Liechtenstein | B133: Liechtenstein | C133: =VLOOKUP(B133,'12.ppp data'!$C$3:$J$273,7,FALSE()) -> 1.9 | D133: =IF(VLOOKUP(B133,'12.ppp data'!$C$3:$J$273,8,FALSE())="est","est","-") -> est | E133: Europe | F133: 2.0 | G133: est | J133: LIE
A134: ='12.lan'!D451 -> LKA Sri Lanka | B134: Sri Lanka | C134: =VLOOKUP(B134,'12.ppp data'!$C$3:$J$273,7,FALSE()) -> 3.5 | D134: =IF(VLOOKUP(B134,'12.ppp data'!$C$3:$J$273,8,FALSE())="est","est","-") -> - | E134: Asia | F134: 3.0 | J134: LKA
A135: ='12.lan'!D452 -> LSO Lesotho | B135: Lesotho | C135: =VLOOKUP(B135,'12.ppp data'!$C$3:$J$273,7,FALSE()) -> 3.0 | D135: =IF(VLOOKUP(B135,'12.ppp data'!$C$3:$J$273,8,FALSE())="est","est","-") -> - | E135: Africa | F135: 3.7 | G135: est | J135: LSO
A136: ='12.lan'!D453 -> LTU Lithuania | B136: Lithuania | C136: =VLOOKUP(B136,'12.ppp data'!$C$3:$J$273,7,FALSE()) -> 2.2 | D136: =IF(VLOOKUP(B136,'12.ppp data'!$C$3:$J$273,8,FALSE())="est","est","-") -> - | E136: Europe | F136: 1.0 | J136: LTU
A137: ='12.lan'!D454 -> LUX Luxembourg | B137: Luxembourg | C137: =VLOOKUP(B137,'12.ppp data'!$C$3:$J$273,7,FALSE()) -> 1.1 | D137: =IF(VLOOKUP(B137,'12.ppp data'!$C$3:$J$273,8,FALSE())="est","est","-") -> - | E137: Europe | F137: 2.0 | G137: est | J137: LUX
A138: ='12.lan'!D455 -> LVA Latvia | B138: Latvia | C138: =VLOOKUP(B138,'12.ppp data'!$C$3:$J$273,7,FALSE()) -> 2.0 | D138: =IF(VLOOKUP(B138,'12.ppp data'!$C$3:$J$273,8,FALSE())="est","est","-") -> - | E138: Europe | F138: 2.0 | J138: LVA
A139: ='12.lan'!D456 -> MAC Macao | B139: Macao SAR, China | C139: =VLOOKUP(B139,'12.ppp data'!$C$3:$J$273,7,FALSE()) -> 1.6 | D139: =IF(VLOOKUP(B139,'12.ppp data'!$C$3:$J$273,8,FALSE())="est","est","-") -> - | E139: Asia | F139: 4.2 | G139: est | J139: MAC
A140: ='12.lan'!D457 -> MAF Saint Martin (French part) | B140: St. Martin (French part) | C140: =VLOOKUP(B140,'12.ppp data'!$C$3:$J$273,7,FALSE()) -> 2.0 | D140: =IF(VLOOKUP(B140,'12.ppp data'!$C$3:$J$273,8,FALSE())="est","est","-") -> est | E140: Americas | F140: 3.4 | G140: est | J140: MAF
A141: ='12.lan'!D458 -> MAR Morocco | B141: Morocco | C141: =VLOOKUP(B141,'12.ppp data'!$C$3:$J$273,7,FALSE()) -> 3.1 | D141: =IF(VLOOKUP(B141,'12.ppp data'!$C$3:$J$273,8,FALSE())="est","est","-") -> - | E141: Africa | F141: 4.0 | J141: MAR
A142: ='12.lan'!D459 -> MCO Monaco | B142: Monaco | C142: =VLOOKUP(B142,'12.ppp data'!$C$3:$J$273,7,FALSE()) -> 1.9 | D142: =IF(VLOOKUP(B142,'12.ppp data'!$C$3:$J$273,8,FALSE())="est","est","-") -> est | E142: Europe | F142: 2.0 | G142: est | J142: MCO
A143: ='12.lan'!D460 -> MDA Moldova, Republic of | B143: Moldova | C143: =VLOOKUP(B143,'12.ppp data'!$C$3:$J$273,7,FALSE()) -> 2.8 | D143: =IF(VLOOKUP(B143,'12.ppp data'!$C$3:$J$273,8,FALSE())="est","est","-") -> - | E143: Europe | F143: 2.0 | G143: est | J143: MDA
A144: ='12.lan'!D461 -> MDG Madagascar | B144: Madagascar | C144: =VLOOKUP(B144,'12.ppp data'!$C$3:$J$273,7,FALSE()) -> 3.9 | D144: =IF(VLOOKUP(B144,'12.ppp data'!$C$3:$J$273,8,FALSE())="est","est","-") -> - | E144: Africa | F144: 3.7 | G144: est | J144: MDG
A145: ='12.lan'!D462 -> MDV Maldives | B145: Maldives | C145: =VLOOKUP(B145,'12.ppp data'!$C$3:$J$273,7,FALSE()) -> 1.8 | D145: =IF(VLOOKUP(B145,'12.ppp data'!$C$3:$J$273,8,FALSE())="est","est","-") -> - | E145: Asia | F145: 4.2 | G145: est | J145: MDV
A146: ='12.lan'!D463 -> MEX Mexico | B146: Mexico | C146: =VLOOKUP(B146,'12.ppp data'!$C$3:$J$273,7,FALSE()) -> 2.3 | D146: =IF(VLOOKUP(B146,'12.ppp data'!$C$3:$J$273,8,FALSE())="est","est","-") -> - | E146: Americas | F146: 4.0 | J146: MEX
A147: ='12.lan'!D464 -> MHL Marshall Islands | B147: Marshall Islands | C147: =VLOOKUP(B147,'12.ppp data'!$C$3:$J$273,7,FALSE()) -> 1.3 | D147: =IF(VLOOKUP(B147,'12.ppp data'!$C$3:$J$273,8,FALSE())="est","est","-") -> - | E147: Oceania | F147: 3.0 | G147: est | J147: MHL
A148: ='12.lan'!D465 -> MKD Macedonia, The Former Yugoslav Republic of | B148: Macedonia, FYR | C148: =VLOOKUP(B148,'12.ppp data'!$C$3:$J$273,7,FALSE()) -> 3.1 | D148: =IF(VLOOKUP(B148,'12.ppp data'!$C$3:$J$273,8,FALSE())="est","est","-") -> - | E148: Europe | F148: 2.0 | G148: est | J148: MKD
A149: ='12.lan'!D466 -> MLI Mali | B149: Mali | C149: =VLOOKUP(B149,'12.ppp data'!$C$3:$J$273,7,FALSE()) -> 3.0 | D149: =IF(VLOOKUP(B149,'12.ppp data'!$C$3:$J$273,8,FALSE())="est","est","-") -> - | E149: Africa | F149: 3.7 | G149: est | J149: MLI
A150: ='12.lan'!D467 -> MLT Malta | B150: Malta | C150: =VLOOKUP(B150,'12.ppp data'!$C$3:$J$273,7,FALSE()) -> 0.7 | D150: =IF(VLOOKUP(B150,'12.ppp data'!$C$3:$J$273,8,FALSE())="est","est","-") -> - | E150: Europe | F150: 2.0 | G150: est | J150: MLT
A151: ='12.lan'!D468 -> MMR Myanmar | B151: Myanmar | C151: =VLOOKUP(B151,'12.ppp data'!$C$3:$J$273,7,FALSE()) -> 5.3 | D151: =IF(VLOOKUP(B151,'12.ppp data'!$C$3:$J$273,8,FALSE())="est","est","-") -> - | E151: Asia | F151: 4.0 | J151: MMR
A152: ='12.lan'!D469 -> MNE Montenegro | B152: Montenegro | C152: =VLOOKUP(B152,'12.ppp data'!$C$3:$J$273,7,FALSE()) -> 2.8 | D152: =IF(VLOOKUP(B152,'12.ppp data'!$C$3:$J$273,8,FALSE())="est","est","-") -> - | E152: Europe | F152: 2.0 | G152: est | J152: MNE
A153: ='12.lan'!D470 -> MNG Mongolia | B153: Mongolia | C153: =VLOOKUP(B153,'12.ppp data'!$C$3:$J$273,7,FALSE()) -> 3.9 | D153: =IF(VLOOKUP(B153,'12.ppp data'!$C$3:$J$273,8,FALSE())="est","est","-") -> - | E153: Asia | F153: 4.2 | G153: est | J153: MNG
A154: ='12.lan'!D471 -> MNP Northern Mariana Islands | B154: Northern Mariana Islands | C154: =VLOOKUP(B154,'12.ppp data'!$C$3:$J$273,7,FALSE()) -> 1.4 | D154: =IF(VLOOKUP(B154,'12.ppp data'!$C$3:$J$273,8,FALSE())="est","est","-") -> est | E154: Oceania | F154: 3.0 | G154: est | J154: MNP
A155: ='12.lan'!D472 -> MOZ Mozambique | B155: Mozambique | C155: =VLOOKUP(B155,'12.ppp data'!$C$3:$J$273,7,FALSE()) -> 3.4 | D155: =IF(VLOOKUP(B155,'12.ppp data'!$C$3:$J$273,8,FALSE())="est","est","-") -> - | E155: Africa | F155: 3.0 | J155: MOZ
A156: ='12.lan'!D473 -> MRT Mauritania | B156: Mauritania | C156: =VLOOKUP(B156,'12.ppp data'!$C$3:$J$273,7,FALSE()) -> 3.9 | D156: =IF(VLOOKUP(B156,'12.ppp data'!$C$3:$J$273,8,FALSE())="est","est","-") -> - | E156: Africa | F156: 3.7 | G156: est | J156: MRT
A157: ='12.lan'!D474 -> MUS Mauritius | B157: Mauritius | C157: =VLOOKUP(B157,'12.ppp data'!$C$3:$J$273,7,FALSE()) -> 2.3 | D157: =IF(VLOOKUP(B157,'12.ppp data'!$C$3:$J$273,8,FALSE())="est","est","-") -> - | E157: Africa | F157: 3.7 | G157: est | J157: MUS
A158: ='12.lan'!D475 -> MWI Malawi | B158: Malawi | C158: =VLOOKUP(B158,'12.ppp data'!$C$3:$J$273,7,FALSE()) -> 3.9 | D158: =IF(VLOOKUP(B158,'12.ppp data'!$C$3:$J$273,8,FALSE())="est","est","-") -> - | E158: Africa | F158: 3.7 | G158: est | J158: MWI
A159: ='12.lan'!D476 -> MYS Malaysia | B159: Malaysia | C159: =VLOOKUP(B159,'12.ppp data'!$C$3:$J$273,7,FALSE()) -> 3.3 | D159: =IF(VLOOKUP(B159,'12.ppp data'!$C$3:$J$273,8,FALSE())="est","est","-") -> - | E159: Asia | F159: 5.0 | J159: MYS
A160: ='12.lan'!D477 -> NAM Namibia | B160: Namibia | C160: =VLOOKUP(B160,'12.ppp data'!$C$3:$J$273,7,FALSE()) -> 2.3 | D160: =IF(VLOOKUP(B160,'12.ppp data'!$C$3:$J$273,8,FALSE())="est","est","-") -> - | E160: Africa | F160: 3.0 | J160: NAM
A161: ='12.lan'!D478 -> NCL New Caledonia | B161: New Caledonia | C161: =VLOOKUP(B161,'12.ppp data'!$C$3:$J$273,7,FALSE()) -> 1.4 | D161: =IF(VLOOKUP(B161,'12.ppp data'!$C$3:$J$273,8,FALSE())="est","est","-") -> est | E161: Oceania | F161: 3.0 | G161: est | J161: NCL
A162: ='12.lan'!D479 -> NER Niger | B162: Niger | C162: =VLOOKUP(B162,'12.ppp data'!$C$3:$J$273,7,FALSE()) -> 3.0 | D162: =IF(VLOOKUP(B162,'12.ppp data'!$C$3:$J$273,8,FALSE())="est","est","-") -> - | E162: Africa | F162: 3.7 | G162: est | J162: NER
A163: ='12.lan'!D480 -> NGA Nigeria | B163: Nigeria | C163: =VLOOKUP(B163,'12.ppp data'!$C$3:$J$273,7,FALSE()) -> 3.6 | D163: =IF(VLOOKUP(B163,'12.ppp data'!$C$3:$J$273,8,FALSE())="est","est","-") -> - | E163: Africa | F163: 5.0 | J163: NGA
A164: ='12.lan'!D481 -> NIC Nicaragua | B164: Nicaragua | C164: =VLOOKUP(B164,'12.ppp data'!$C$3:$J$273,7,FALSE()) -> 2.9 | D164: =IF(VLOOKUP(B164,'12.ppp data'!$C$3:$J$273,8,FALSE())="est","est","-") -> - | E164: Americas | F164: 3.4 | G164: est | J164: NIC
A165: ='12.lan'!D482 -> NLD Netherlands | B165: Netherlands | C165: =VLOOKUP(B165,'12.ppp data'!$C$3:$J$273,7,FALSE()) -> 1.2 | D165: =IF(VLOOKUP(B165,'12.ppp data'!$C$3:$J$273,8,FALSE())="est","est","-") -> - | E165: Europe | F165: 1.0 | J165: NLD
A166: ='12.lan'!D483 -> NOR Norway | B166: Norway | C166: =VLOOKUP(B166,'12.ppp data'!$C$3:$J$273,7,FALSE()) -> 0.9 | D166: =IF(VLOOKUP(B166,'12.ppp data'!$C$3:$J$273,8,FALSE())="est","est","-") -> - | E166: Europe | F166: 1.0 | J166: NOR
A167: ='12.lan'!D484 -> NPL Nepal | B167: Nepal | C167: =VLOOKUP(B167,'12.ppp data'!$C$3:$J$273,7,FALSE()) -> 3.5 | D167: =IF(VLOOKUP(B167,'12.ppp data'!$C$3:$J$273,8,FALSE())="est","est","-") -> - | E167: Asia | F167: 4.0 | J167: NPL
A168: ='12.lan'!D485 -> NRU Nauru | B168: Nauru | C168: =VLOOKUP(B168,'12.ppp data'!$C$3:$J$273,7,FALSE()) -> 1.9 | D168: =IF(VLOOKUP(B168,'12.ppp data'!$C$3:$J$273,8,FALSE())="est","est","-") -> - | E168: Oceania | F168: 3.0 | G168: est | J168: NRU
A169: ='12.lan'!D486 -> NZL New Zealand | B169: New Zealand | C169: =VLOOKUP(B169,'12.ppp data'!$C$3:$J$273,7,FALSE()) -> 1.1 | D169: =IF(VLOOKUP(B169,'12.ppp data'!$C$3:$J$273,8,FALSE())="est","est","-") -> - | E169: Oceania | F169: 3.0 | G169: est | J169: NZL
A170: ='12.lan'!D487 -> OMN Oman | B170: Oman | C170: =VLOOKUP(B170,'12.ppp data'!$C$3:$J$273,7,FALSE()) -> 3.0 | D170: =IF(VLOOKUP(B170,'12.ppp data'!$C$3:$J$273,8,FALSE())="est","est","-") -> - | E170: Asia | F170: 4.0 | J170: OMN
A171: ='12.lan'!D488 -> PAK Pakistan | B171: Pakistan | C171: =VLOOKUP(B171,'12.ppp data'!$C$3:$J$273,7,FALSE()) -> 4.0 | D171: =IF(VLOOKUP(B171,'12.ppp data'!$C$3:$J$273,8,FALSE())="est","est","-") -> - | E171: Asia | F171: 4.0 | J171: PAK
A172: ='12.lan'!D489 -> PAN Panama | B172: Panama | C172: =VLOOKUP(B172,'12.ppp data'!$C$3:$J$273,7,FALSE()) -> 1.8 | D172: =IF(VLOOKUP(B172,'12.ppp data'!$C$3:$J$273,8,FALSE())="est","est","-") -> - | E172: Americas | F172: 4.0 | J172: PAN
A173: ='12.lan'!D490 -> PER Peru | B173: Peru | C173: =VLOOKUP(B173,'12.ppp data'!$C$3:$J$273,7,FALSE()) -> 2.3 | D173: =IF(VLOOKUP(B173,'12.ppp data'!$C$3:$J$273,8,FALSE())="est","est","-") -> - | E173: Americas | F173: 4.0 | J173: PER
A174: ='12.lan'!D491 -> PHL Philippines | B174: Philippines | C174: =VLOOKUP(B174,'12.ppp data'!$C$3:$J$273,7,FALSE()) -> 3.1 | D174: =IF(VLOOKUP(B174,'12.ppp data'!$C$3:$J$273,8,FALSE())="est","est","-") -> - | E174: Asia | F174: 5.0 | J174: PHL
A175: ='12.lan'!D492 -> PLW Palau | B175: Palau | C175: =VLOOKUP(B175,'12.ppp data'!$C$3:$J$273,7,FALSE()) -> 1.2 | D175: =IF(VLOOKUP(B175,'12.ppp data'!$C$3:$J$273,8,FALSE())="est","est","-") -> - | E175: Oceania | F175: 3.0 | G175: est | J175: PLW
A176: ='12.lan'!D493 -> PNG Papua New Guinea | B176: Papua New Guinea | C176: =VLOOKUP(B176,'12.ppp data'!$C$3:$J$273,7,FALSE()) -> 1.8 | D176: =IF(VLOOKUP(B176,'12.ppp data'!$C$3:$J$273,8,FALSE())="est","est","-") -> - | E176: Oceania | F176: 3.0 | G176: est | J176: PNG
A177: ='12.lan'!D494 -> POL Poland | B177: Poland | C177: =VLOOKUP(B177,'12.ppp data'!$C$3:$J$273,7,FALSE()) -> 2.4 | D177: =IF(VLOOKUP(B177,'12.ppp data'!$C$3:$J$273,8,FALSE())="est","est","-") -> - | E177: Europe | F177: 3.0 | J177: POL
A178: ='12.lan'!D495 -> PRI Puerto Rico | B178: Puerto Rico | C178: =VLOOKUP(B178,'12.ppp data'!$C$3:$J$273,7,FALSE()) -> 2.0 | D178: =IF(VLOOKUP(B178,'12.ppp data'!$C$3:$J$273,8,FALSE())="est","est","-") -> est | E178: Americas | F178: 3.4 | G178: est | J178: PRI
A179: ='12.lan'!D496 -> PRK Korea, Democratic People's Republic of | B179: Korea, Dem. People’s Rep. | C179: =VLOOKUP(B179,'12.ppp data'!$C$3:$J$273,7,FALSE()) -> 3.0 | D179: =IF(VLOOKUP(B179,'12.ppp data'!$C$3:$J$273,8,FALSE())="est","est","-") -> est | E179: Asia | F179: 4.2 | G179: est | J179: PRK
A180: ='12.lan'!D497 -> PRT Portugal | B180: Portugal | C180: =VLOOKUP(B180,'12.ppp data'!$C$3:$J$273,7,FALSE()) -> 1.7 | D180: =IF(VLOOKUP(B180,'12.ppp data'!$C$3:$J$273,8,FALSE())="est","est","-") -> - | E180: Europe | F180: 3.0 | J180: PRT
A181: ='12.lan'!D498 -> PRY Paraguay | B181: Paraguay | C181: =VLOOKUP(B181,'12.ppp data'!$C$3:$J$273,7,FALSE()) -> 2.5 | D181: =IF(VLOOKUP(B181,'12.ppp data'!$C$3:$J$273,8,FALSE())="est","est","-") -> - | E181: Americas | F181: 3.0 | J181: PRY
A182: ='12.lan'!D499 -> PSE Palestinian Territory, Occupied | B182: West Bank and Gaza | C182: =VLOOKUP(B182,'12.ppp data'!$C$3:$J$273,7,FALSE()) -> 3.0 | D182: =IF(VLOOKUP(B182,'12.ppp data'!$C$3:$J$273,8,FALSE())="est","est","-") -> est | E182: Asia | F182: 4.2 | G182: est | J182: PSE
A183: ='12.lan'!D500 -> PYF French Polynesia | B183: French Polynesia | C183: =VLOOKUP(B183,'12.ppp data'!$C$3:$J$273,7,FALSE()) -> 1.4 | D183: =IF(VLOOKUP(B183,'12.ppp data'!$C$3:$J$273,8,FALSE())="est","est","-") -> est | E183: Oceania | F183: 3.0 | G183: est | J183: PYF
A184: ='12.lan'!D501 -> QAT Qatar | B184: Qatar | C184: =VLOOKUP(B184,'12.ppp data'!$C$3:$J$273,7,FALSE()) -> 2.3 | D184: =IF(VLOOKUP(B184,'12.ppp data'!$C$3:$J$273,8,FALSE())="est","est","-") -> - | E184: Asia | F184: 5.0 | J184: QAT
A185: ='12.lan'!D502 -> ROU Romania | B185: Romania | C185: =VLOOKUP(B185,'12.ppp data'!$C$3:$J$273,7,FALSE()) -> 2.7 | D185: =IF(VLOOKUP(B185,'12.ppp data'!$C$3:$J$273,8,FALSE())="est","est","-") -> - | E185: Europe | F185: 3.0 | J185: ROU
A186: ='12.lan'!D503 -> RUS Russian Federation | B186: Russian Federation | C186: =VLOOKUP(B186,'12.ppp data'!$C$3:$J$273,7,FALSE()) -> 2.7 | D186: =IF(VLOOKUP(B186,'12.ppp data'!$C$3:$J$273,8,FALSE())="est","est","-") -> - | E186: Europe | F186: 2.0 | J186: RUS
A187: ='12.lan'!D504 -> RWA Rwanda | B187: Rwanda | C187: =VLOOKUP(B187,'12.ppp data'!$C$3:$J$273,7,FALSE()) -> 3.0 | D187: =IF(VLOOKUP(B187,'12.ppp data'!$C$3:$J$273,8,FALSE())="est","est","-") -> - | E187: Africa | F187: 3.7 | G187: est | J187: RWA
A188: ='12.lan'!D505 -> SAU Saudi Arabia | B188: Saudi Arabia | C188: =VLOOKUP(B188,'12.ppp data'!$C$3:$J$273,7,FALSE()) -> 2.9 | D188: =IF(VLOOKUP(B188,'12.ppp data'!$C$3:$J$273,8,FALSE())="est","est","-") -> - | E188: Asia | F188: 5.0 | J188: SAU
A189: ='12.lan'!D506 -> SDN Sudan | B189: Sudan | C189: =VLOOKUP(B189,'12.ppp data'!$C$3:$J$273,7,FALSE()) -> 1.8 | D189: =IF(VLOOKUP(B189,'12.ppp data'!$C$3:$J$273,8,FALSE())="est","est","-") -> - | E189: Africa | F189: 6.0 | J189: SDN
A190: ='12.lan'!D507 -> SEN Senegal | B190: Senegal | C190: =VLOOKUP(B190,'12.ppp data'!$C$3:$J$273,7,FALSE()) -> 3.0 | D190: =IF(VLOOKUP(B190,'12.ppp data'!$C$3:$J$273,8,FALSE())="est","est","-") -> - | E190: Africa | F190: 2.0 | J190: SEN
A191: ='12.lan'!D508 -> SGP Singapore | B191: Singapore | C191: =VLOOKUP(B191,'12.ppp data'!$C$3:$J$273,7,FALSE()) -> 1.8 | D191: =IF(VLOOKUP(B191,'12.ppp data'!$C$3:$J$273,8,FALSE())="est","est","-") -> - | E191: Asia | F191: 3.0 | J191: SGP
A192: ='12.lan'!D509 -> SLB Solomon Islands | B192: Solomon Islands | C192: =VLOOKUP(B192,'12.ppp data'!$C$3:$J$273,7,FALSE()) -> 1.2 | D192: =IF(VLOOKUP(B192,'12.ppp data'!$C$3:$J$273,8,FALSE())="est","est","-") -> - | E192: Oceania | F192: 3.0 | G192: est | J192: SLB
A193: ='12.lan'!D510 -> SLE Sierra Leone | B193: Sierra Leone | C193: =VLOOKUP(B193,'12.ppp data'!$C$3:$J$273,7,FALSE()) -> 3.5 | D193: =IF(VLOOKUP(B193,'12.ppp data'!$C$3:$J$273,8,FALSE())="est","est","-") -> - | E193: Africa | F193: 3.7 | G193: est | J193: SLE
A194: ='12.lan'!D511 -> SLV El Salvador | B194: El Salvador | C194: =VLOOKUP(B194,'12.ppp data'!$C$3:$J$273,7,FALSE()) -> 2.3 | D194: =IF(VLOOKUP(B194,'12.ppp data'!$C$3:$J$273,8,FALSE())="est","est","-") -> - | E194: Americas | F194: 4.0 | J194: SLV
A195: ='12.lan'!D512 -> SMR San Marino | B195: San Marino | C195: =VLOOKUP(B195,'12.ppp data'!$C$3:$J$273,7,FALSE()) -> 1.4 | D195: =IF(VLOOKUP(B195,'12.ppp data'!$C$3:$J$273,8,FALSE())="est","est","-") -> - | E195: Europe | F195: 2.0 | G195: est | J195: SMR
A196: ='12.lan'!D513 -> SOM Somalia | B196: Somalia | C196: =VLOOKUP(B196,'12.ppp data'!$C$3:$J$273,7,FALSE()) -> 3.0 | D196: =IF(VLOOKUP(B196,'12.ppp data'!$C$3:$J$273,8,FALSE())="est","est","-") -> est | E196: Africa | F196: 3.7 | G196: est | J196: SOM
A197: ='12.lan'!D514 -> SRB Serbia | B197: Serbia | C197: =VLOOKUP(B197,'12.ppp data'!$C$3:$J$273,7,FALSE()) -> 2.9 | D197: =IF(VLOOKUP(B197,'12.ppp data'!$C$3:$J$273,8,FALSE())="est","est","-") -> - | E197: Europe | F197: 2.0 | J197: SRB
A198: ='12.lan'!D515 -> SSD South Sudan | B198: South Sudan | C198: =VLOOKUP(B198,'12.ppp data'!$C$3:$J$273,7,FALSE()) -> 3.0 | D198: =IF(VLOOKUP(B198,'12.ppp data'!$C$3:$J$273,8,FALSE())="est","est","-") -> est | E198: Africa | F198: 3.7 | G198: est | J198: SSD
A199: ='12.lan'!D516 -> STP Sao Tome and Principe | B199: Sao Tome and Principe | C199: =VLOOKUP(B199,'12.ppp data'!$C$3:$J$273,7,FALSE()) -> 3.0 | D199: =IF(VLOOKUP(B199,'12.ppp data'!$C$3:$J$273,8,FALSE())="est","est","-") -> est | E199: Africa | F199: 3.7 | G199: est | J199: STP
A200: ='12.lan'!D517 -> SUR Suriname | B200: Suriname | C200: =VLOOKUP(B200,'12.ppp data'!$C$3:$J$273,7,FALSE()) -> 2.9 | D200: =IF(VLOOKUP(B200,'12.ppp data'!$C$3:$J$273,8,FALSE())="est","est","-") -> - | E200: Americas | F200: 3.4 | G200: est | J200: SUR
A201: ='12.lan'!D518 -> SVK Slovakia | B201: Slovak Republic | C201: =VLOOKUP(B201,'12.ppp data'!$C$3:$J$273,7,FALSE()) -> 2.1 | D201: =IF(VLOOKUP(B201,'12.ppp data'!$C$3:$J$273,8,FALSE())="est","est","-") -> - | E201: Europe | F201: 1.0 | J201: SVK
A202: ='12.lan'!D519 -> SVN Slovenia | B202: Slovenia | C202: =VLOOKUP(B202,'12.ppp data'!$C$3:$J$273,7,FALSE()) -> 1.7 | D202: =IF(VLOOKUP(B202,'12.ppp data'!$C$3:$J$273,8,FALSE())="est","est","-") -> - | E202: Europe | F202: 1.0 | J202: SVN
A203: ='12.lan'!D520 -> SWE Sweden | B203: Sweden | C203: =VLOOKUP(B203,'12.ppp data'!$C$3:$J$273,7,FALSE()) -> 1.1 | D203: =IF(VLOOKUP(B203,'12.ppp data'!$C$3:$J$273,8,FALSE())="est","est","-") -> - | E203: Europe | F203: 1.0 | J203: SWE
... 40 more rows

Sheet 12.ppp data (hidden)
C2: Country Name | D2: Exchange Rate $ 2017 | E2: Exchange Rate country 2017 (oanda) | F2: ppp gdp conversion factor 2017 | G2: conversion factor | H2: Region | J2: est | K2: Regional Estimate calculationen
C3: Sao Tome and Principe | D3: 1.129 | F3: 12,463.564 | G3: =D3*E3/F3 -> 0 | H3: =VLOOKUP(C3,'11.Region'!$B$22:$E$243,4,FALSE()) -> Africa | I3: =$K$3 -> 3.03 | J3: est | K3: =AVERAGE(G5:G51) -> 3.03 | L3: Africa
C4: Zimbabwe | D4: 1.129 | F4: 0.518 | G4: =D4*E4/F4 -> 0 | H4: =VLOOKUP(C4,'11.Region'!$B$22:$E$243,4,FALSE()) -> Africa | I4: =$K$3 -> 3.03 | J4: est
C5: Angola | D5: 1.129 | E5: 165.090 | F5: 108.299 | G5: =D5*E5/F5 -> 1.72 | H5: =VLOOKUP(C5,'11.Region'!$B$22:$E$243,4,FALSE()) -> Africa | I5: =G5 -> 1.72
C6: Sudan | D6: 1.129 | E6: 6.607 | F6: 4.138 | G6: =D6*E6/F6 -> 1.80 | H6: =VLOOKUP(C6,'11.Region'!$B$22:$E$243,4,FALSE()) -> Africa | I6: =G6 -> 1.80
C7: Central African Republic | D7: 1.129 | E7: 581.903 | F7: 335.500 | G7: =D7*E7/F7 -> 1.96 | H7: =VLOOKUP(C7,'11.Region'!$B$22:$E$243,4,FALSE()) -> Africa | I7: =G7 -> 1.96
C8: Seychelles | D8: 1.129 | E8: 12.723 | F8: 7.306 | G8: =D8*E8/F8 -> 1.97 | H8: =VLOOKUP(C8,'11.Region'!$B$22:$E$243,4,FALSE()) -> Africa | I8: =G8 -> 1.97
C9: Congo, Dem. Rep. | D9: 1.129 | E9: 1,440.443 | F9: 763.856 | G9: =D9*E9/F9 -> 2.13 | H9: =VLOOKUP(C9,'11.Region'!$B$22:$E$243,4,FALSE()) -> Africa | I9: =G9 -> 2.13
C10: Comoros | D10: 1.129 | E10: 436.447 | F10: 224.238 | G10: =D10*E10/F10 -> 2.20 | H10: =VLOOKUP(C10,'11.Region'!$B$22:$E$243,4,FALSE()) -> Africa | I10: =G10 -> 2.20
C11: Namibia | D11: 1.129 | E11: 13.299 | F11: 6.643 | G11: =D11*E11/F11 -> 2.26 | H11: =VLOOKUP(C11,'11.Region'!$B$22:$E$243,4,FALSE()) -> Africa | I11: =G11 -> 2.26
C12: Mauritius | D12: 1.129 | E12: 33.257 | F12: 16.324 | G12: =D12*E12/F12 -> 2.30 | H12: =VLOOKUP(C12,'11.Region'!$B$22:$E$243,4,FALSE()) -> Africa | I12: =G12 -> 2.30
C13: Cabo Verde | D13: 1.129 | E13: 97.817 | F13: 45.993 | G13: =D13*E13/F13 -> 2.40 | H13: =VLOOKUP(C13,'11.Region'!$B$22:$E$243,4,FALSE()) -> Africa | I13: =G13 -> 2.40
C14: Kenya | D14: 1.129 | E14: 101.769 | F14: 47.452 | G14: =D14*E14/F14 -> 2.42 | H14: =VLOOKUP(C14,'11.Region'!$B$22:$E$243,4,FALSE()) -> Africa | I14: =G14 -> 2.42
C15: South Africa | D15: 1.129 | E15: 13.299 | F15: 6.076 | G15: =D15*E15/F15 -> 2.47 | H15: =VLOOKUP(C15,'11.Region'!$B$22:$E$243,4,FALSE()) -> Africa | I15: =G15 -> 2.47
C16: Botswana | D16: 1.129 | E16: 10.226 | F16: 4.529 | G16: =D16*E16/F16 -> 2.55 | H16: =VLOOKUP(C16,'11.Region'!$B$22:$E$243,4,FALSE()) -> Africa | I16: =G16 -> 2.55
C17: Guinea-Bissau | D17: 1.129 | E17: 581.574 | F17: 247.755 | G17: =D17*E17/F17 -> 2.65 | H17: =VLOOKUP(C17,'11.Region'!$B$22:$E$243,4,FALSE()) -> Africa | I17: =G17 -> 2.65
C18: Burundi | D18: 1.129 | E18: 1,699.343 | F18: 717.886 | G18: =D18*E18/F18 -> 2.67 | H18: =VLOOKUP(C18,'11.Region'!$B$22:$E$243,4,FALSE()) -> Africa | I18: =G18 -> 2.67
C19: Cote d'Ivoire | D19: 1.129 | E19: 581.574 | F19: 244.777 | G19: =D19*E19/F19 -> 2.68 | H19: =VLOOKUP(C19,'11.Region'!$B$22:$E$243,4,FALSE()) -> Africa | I19: =G19 -> 2.68
C20: Libya | D20: 1.129 | E20: 1.371 | F20: 0.564 | G20: =D20*E20/F20 -> 2.74 | H20: =VLOOKUP(C20,'11.Region'!$B$22:$E$243,4,FALSE()) -> Africa | I20: =G20 -> 2.74
C21: Gabon | D21: 1.129 | E21: 581.903 | F21: 231.155 | G21: =D21*E21/F21 -> 2.84 | H21: =VLOOKUP(C21,'11.Region'!$B$22:$E$243,4,FALSE()) -> Africa | I21: =G21 -> 2.84
C22: Equatorial Guinea | D22: 1.129 | E22: 581.903 | F22: 231.038 | G22: =D22*E22/F22 -> 2.84 | H22: =VLOOKUP(C22,'11.Region'!$B$22:$E$243,4,FALSE()) -> Africa | I22: =G22 -> 2.84
C23: Togo | D23: 1.129 | E23: 581.574 | F23: 228.865 | G23: =D23*E23/F23 -> 2.87 | H23: =VLOOKUP(C23,'11.Region'!$B$22:$E$243,4,FALSE()) -> Africa | I23: =G23 -> 2.87
C24: Cameroon | D24: 1.129 | E24: 581.903 | F24: 227.957 | G24: =D24*E24/F24 -> 2.88 | H24: =VLOOKUP(C24,'11.Region'!$B$22:$E$243,4,FALSE()) -> Africa | I24: =G24 -> 2.88
C25: Ethiopia | D25: 1.129 | E25: 23.721 | F25: 9.063 | G25: =D25*E25/F25 -> 2.96 | H25: =VLOOKUP(C25,'11.Region'!$B$22:$E$243,4,FALSE()) -> Africa | I25: =G25 -> 2.96
C26: Senegal | D26: 1.129 | E26: 581.574 | F26: 221.707 | G26: =D26*E26/F26 -> 2.96 | H26: =VLOOKUP(C26,'11.Region'!$B$22:$E$243,4,FALSE()) -> Africa | I26: =G26 -> 2.96
C27: Swaziland | D27: 1.129 | E27: 13.299 | F27: 5.060 | G27: =D27*E27/F27 -> 2.97 | H27: =VLOOKUP(C27,'11.Region'!$B$22:$E$243,4,FALSE()) -> Africa | I27: =G27 -> 2.97
C28: Lesotho | D28: 1.129 | E28: 13.299 | F28: 5.034 | G28: =D28*E28/F28 -> 2.98 | H28: =VLOOKUP(C28,'11.Region'!$B$22:$E$243,4,FALSE()) -> Africa | I28: =G28 -> 2.98
C29: Guinea | D29: 1.129 | E29: 9,041.485 | F29: 3,386.118 | G29: =D29*E29/F29 -> 3.02 | H29: =VLOOKUP(C29,'11.Region'!$B$22:$E$243,4,FALSE()) -> Africa | I29: =G29 -> 3.02
C30: Zambia | D30: 1.129 | E30: 9.494 | F30: 3.549 | G30: =D30*E30/F30 -> 3.02 | H30: =VLOOKUP(C30,'11.Region'!$B$22:$E$243,4,FALSE()) -> Africa | I30: =G30 -> 3.02
C31: Mali | D31: 1.129 | E31: 581.574 | F31: 217.031 | G31: =D31*E31/F31 -> 3.03 | H31: =VLOOKUP(C31,'11.Region'!$B$22:$E$243,4,FALSE()) -> Africa | I31: =G31 -> 3.03
C32: Niger | D32: 1.129 | E32: 581.574 | F32: 216.470 | G32: =D32*E32/F32 -> 3.03 | H32: =VLOOKUP(C32,'11.Region'!$B$22:$E$243,4,FALSE()) -> Africa | I32: =G32 -> 3.03
C33: Rwanda | D33: 1.129 | E33: 823.421 | F33: 305.706 | G33: =D33*E33/F33 -> 3.04 | H33: =VLOOKUP(C33,'11.Region'!$B$22:$E$243,4,FALSE()) -> Africa | I33: =G33 -> 3.04
C34: Morocco | D34: 1.129 | E34: 9.580 | F34: 3.547 | G34: =D34*E34/F34 -> 3.05 | H34: =VLOOKUP(C34,'11.Region'!$B$22:$E$243,4,FALSE()) -> Africa | I34: =G34 -> 3.05
C35: Benin | D35: 1.129 | E35: 581.574 | F35: 212.701 | G35: =D35*E35/F35 -> 3.09 | H35: =VLOOKUP(C35,'11.Region'!$B$22:$E$243,4,FALSE()) -> Africa | I35: =G35 -> 3.09
C36: Burkina Faso | D36: 1.129 | E36: 581.574 | F36: 208.924 | G36: =D36*E36/F36 -> 3.14 | H36: =VLOOKUP(C36,'11.Region'!$B$22:$E$243,4,FALSE()) -> Africa | I36: =G36 -> 3.14
C37: Ghana | D37: 1.129 | E37: 4.380 | F37: 1.539 | G37: =D37*E37/F37 -> 3.21 | H37: =VLOOKUP(C37,'11.Region'!$B$22:$E$243,4,FALSE()) -> Africa | I37: =G37 -> 3.21
C38: Chad | D38: 1.129 | E38: 581.903 | F38: 200.877 | G38: =D38*E38/F38 -> 3.27 | H38: =VLOOKUP(C38,'11.Region'!$B$22:$E$243,4,FALSE()) -> Africa | I38: =G38 -> 3.27
C39: Mozambique | D39: 1.129 | E39: 63.952 | F39: 21.203 | G39: =D39*E39/F39 -> 3.41 | H39: =VLOOKUP(C39,'11.Region'!$B$22:$E$243,4,FALSE()) -> Africa | I39: =G39 -> 3.41
C40: Tanzania | D40: 1.129 | E40: 2,203.982 | F40: 708.430 | G40: =D40*E40/F40 -> 3.51 | H40: =VLOOKUP(C40,'11.Region'!$B$22:$E$243,4,FALSE()) -> Africa | I40: =G40 -> 3.51
C41: Sierra Leone | D41: 1.129 | E41: 7,455.175 | F41: 2,393.510 | G41: =D41*E41/F41 -> 3.52 | H41: =VLOOKUP(C41,'11.Region'!$B$22:$E$243,4,FALSE()) -> Africa | I41: =G41 -> 3.52
C42: Uganda | D42: 1.129 | E42: 3,572.016 | F42: 1,143.472 | G42: =D42*E42/F42 -> 3.53 | H42: =VLOOKUP(C42,'11.Region'!$B$22:$E$243,4,FALSE()) -> Africa | I42: =G42 -> 3.53
C43: Nigeria | D43: 1.129 | E43: 331.667 | F43: 102.709 | G43: =D43*E43/F43 -> 3.65 | H43: =VLOOKUP(C43,'11.Region'!$B$22:$E$243,4,FALSE()) -> Africa | I43: =G43 -> 3.65
C44: Congo, Rep. | D44: 1.129 | E44: 581.903 | F44: 180.094 | G44: =D44*E44/F44 -> 3.65 | H44: =VLOOKUP(C44,'11.Region'!$B$22:$E$243,4,FALSE()) -> Africa | I44: =G44 -> 3.65
C45: Tunisia | D45: 1.129 | E45: 2.394 | F45: 0.709 | G45: =D45*E45/F45 -> 3.81 | H45: =VLOOKUP(C45,'11.Region'!$B$22:$E$243,4,FALSE()) -> Africa | I45: =G45 -> 3.81
C46: Madagascar | D46: 1.129 | E46: 3,082.791 | F46: 901.186 | G46: =D46*E46/F46 -> 3.86 | H46: =VLOOKUP(C46,'11.Region'!$B$22:$E$243,4,FALSE()) -> Africa | I46: =G46 -> 3.86
C47: Gambia, The | D47: 1.129 | E47: 44.955 | F47: 13.130 | G47: =D47*E47/F47 -> 3.87 | H47: =VLOOKUP(C47,'11.Region'!$B$22:$E$243,4,FALSE()) -> Africa | I47: =G47 -> 3.87
C48: Mauritania | D48: 1.129 | E48: 354.702 | F48: 102.915 | G48: =D48*E48/F48 -> 3.89 | H48: =VLOOKUP(C48,'11.Region'!$B$22:$E$243,4,FALSE()) -> Africa | I48: =G48 -> 3.89
C49: Malawi | D49: 1.129 | E49: 718.937 | F49: 205.612 | G49: =D49*E49/F49 -> 3.95 | H49: =VLOOKUP(C49,'11.Region'!$B$22:$E$243,4,FALSE()) -> Africa | I49: =G49 -> 3.95
C50: Algeria | D50: 1.129 | E50: 110.442 | F50: 29.956 | G50: =D50*E50/F50 -> 4.16 | H50: =VLOOKUP(C50,'11.Region'!$B$22:$E$243,4,FALSE()) -> Africa | I50: =G50 -> 4.16
C51: Egypt, Arab Rep. | D51: 1.129 | E51: 17.814 | F51: 3.071 | G51: =D51*E51/F51 -> 6.55 | H51: =VLOOKUP(C51,'11.Region'!$B$22:$E$243,4,FALSE()) -> Africa | I51: =G51 -> 6.55
C52: Liberia | D52: 1.129 | E52: 102.733 | F52: 0.552 | G52: =D52*E52/F52 -> 210.28 | H52: =VLOOKUP(C52,'11.Region'!$B$22:$E$243,4,FALSE()) -> Africa | I52: =$K$3 -> 3.03 | J52: est
C53: Djibouti | D53: 1.129 | E53: 177.720 | G53: =D53*E53/F53 ->  | H53: =VLOOKUP(C53,'11.Region'!$B$22:$E$243,4,FALSE()) -> Africa | I53: =$K$3 -> 3.03 | J53: est
C54: Eritrea | D54: 1.129 | G54: =D54*E54/F54 ->  | H54: =VLOOKUP(C54,'11.Region'!$B$22:$E$243,4,FALSE()) -> Africa | I54: =$K$3 -> 3.03 | J54: est
C55: Somalia | D55: 1.129 | E55: 545.656 | G55: =D55*E55/F55 ->  | H55: =VLOOKUP(C55,'11.Region'!$B$22:$E$243,4,FALSE()) -> Africa | I55: =$K$3 -> 3.03 | J55: est
C56: South Sudan | D56: 1.129 | F56: -.0 | G56: =D56*E56/F56 ->  | H56: =VLOOKUP(C56,'11.Region'!$B$22:$E$243,4,FALSE()) -> Africa | I56: =$K$3 -> 3.03 | J56: est
C57: Bahamas, The | D57: 1.129 | E57: 1.000 | F57: 1.011 | G57: =D57*E57/F57 -> 1.12 | H57: =VLOOKUP(C57,'11.Region'!$B$22:$E$243,4,FALSE()) -> Americas | I57: =G57 -> 1.12 | K57: =AVERAGE(G57:G89) -> 1.96 | L57: Americas
C58: United States | D58: 1.129 | E58: 1.000 | F58: 1.000 | G58: =D58*E58/F58 -> 1.13 | H58: =VLOOKUP(C58,'11.Region'!$B$22:$E$243,4,FALSE()) -> Americas | I58: =G58 -> 1.13
C59: Canada | D59: 1.129 | E59: 1.298 | F59: 1.260 | G59: =D59*E59/F59 -> 1.16 | H59: =VLOOKUP(C59,'11.Region'!$B$22:$E$243,4,FALSE()) -> Americas | I59: =G59 -> 1.16
C60: Barbados | D60: 1.129 | E60: 2.000 | F60: 1.801 | G60: =D60*E60/F60 -> 1.25 | H60: =VLOOKUP(C60,'11.Region'!$B$22:$E$243,4,FALSE()) -> Americas | I60: =G60 -> 1.25
C61: Uruguay | D61: 1.129 | E61: 28.236 | F61: 21.759 | G61: =D61*E61/F61 -> 1.47 | H61: =VLOOKUP(C61,'11.Region'!$B$22:$E$243,4,FALSE()) -> Americas | I61: =G61 -> 1.47
C62: Dominica | D62: 1.129 | E62: 2.700 | F62: 1.935 | G62: =D62*E62/F62 -> 1.58 | H62: =VLOOKUP(C62,'11.Region'!$B$22:$E$243,4,FALSE()) -> Americas | I62: =G62 -> 1.58
C63: Costa Rica | D63: 1.129 | E63: 553.850 | F63: 390.705 | G63: =D63*E63/F63 -> 1.60 | H63: =VLOOKUP(C63,'11.Region'!$B$22:$E$243,4,FALSE()) -> Americas | I63: =G63 -> 1.60
C64: Grenada | D64: 1.129 | E64: 2.700 | F64: 1.877 | G64: =D64*E64/F64 -> 1.62 | H64: =VLOOKUP(C64,'11.Region'!$B$22:$E$243,4,FALSE()) -> Americas | I64: =G64 -> 1.62
C65: Argentina | D65: 1.129 | E65: 17 | F65: 11.474 | G65: =D65*E65/F65 -> 1.63 | H65: =VLOOKUP(C65,'11.Region'!$B$22:$E$243,4,FALSE()) -> Americas | I65: =G65 -> 1.63
C66: St. Lucia | D66: 1.129 | E66: 2.700 | F66: 1.818 | G66: =D66*E66/F66 -> 1.68 | H66: =VLOOKUP(C66,'11.Region'!$B$22:$E$243,4,FALSE()) -> Americas | I66: =G66 -> 1.68
C67: Chile | D67: 1.129 | E67: 645.827 | F67: 413.424 | G67: =D67*E67/F67 -> 1.76 | H67: =VLOOKUP(C67,'11.Region'!$B$22:$E$243,4,FALSE()) -> Americas | I67: =G67 -> 1.76
C68: Antigua and Barbuda | D68: 1.129 | E68: 2.700 | F68: 1.719 | G68: =D68*E68/F68 -> 1.77 | H68: =VLOOKUP(C68,'11.Region'!$B$22:$E$243,4,FALSE()) -> Americas | I68: =G68 -> 1.77
C69: Brazil | D69: 1.129 | E69: 3.191 | F69: 2.024 | G69: =D69*E69/F69 -> 1.78 | H69: =VLOOKUP(C69,'11.Region'!$B$22:$E$243,4,FALSE()) -> Americas | I69: =G69 -> 1.78
C70: St. Kitts and Nevis | D70: 1.129 | E70: 2.700 | F70: 1.705 | G70: =D70*E70/F70 -> 1.79 | H70: =VLOOKUP(C70,'11.Region'!$B$22:$E$243,4,FALSE()) -> Americas | I70: =G70 -> 1.79
C71: Panama | D71: 1.129 | E71: 1.000 | F71: 0.617 | G71: =D71*E71/F71 -> 1.83 | H71: =VLOOKUP(C71,'11.Region'!$B$22:$E$243,4,FALSE()) -> Americas | I71: =G71 -> 1.83
C72: St. Vincent and the Grenadines | D72: 1.129 | E72: 2.700 | F72: 1.647 | G72: =D72*E72/F72 -> 1.85 | H72: =VLOOKUP(C72,'11.Region'!$B$22:$E$243,4,FALSE()) -> Americas | I72: =G72 -> 1.85
C73: Guyana | D73: 1.129 | E73: 198.802 | F73: 119.543 | G73: =D73*E73/F73 -> 1.88 | H73: =VLOOKUP(C73,'11.Region'!$B$22:$E$243,4,FALSE()) -> Americas | I73: =G73 -> 1.88
C74: Jamaica | D74: 1.129 | E74: 126.885 | F74: 72.687 | G74: =D74*E74/F74 -> 1.97 | H74: =VLOOKUP(C74,'11.Region'!$B$22:$E$243,4,FALSE()) -> Americas | I74: =G74 -> 1.97
C75: Belize | D75: 1.129 | E75: 2.000 | F75: 1.142 | G75: =D75*E75/F75 -> 1.98 | H75: =VLOOKUP(C75,'11.Region'!$B$22:$E$243,4,FALSE()) -> Americas | I75: =G75 -> 1.98
C76: Guatemala | D76: 1.129 | E76: 7.183 | F76: 4.031 | G76: =D76*E76/F76 -> 2.01 | H76: =VLOOKUP(C76,'11.Region'!$B$22:$E$243,4,FALSE()) -> Americas | I76: =G76 -> 2.01
C77: Ecuador | D77: 1.129 | E77: 1.000 | F77: 0.534 | G77: =D77*E77/F77 -> 2.12 | H77: =VLOOKUP(C77,'11.Region'!$B$22:$E$243,4,FALSE()) -> Americas | I77: =G77 -> 2.12
C78: Trinidad and Tobago | D78: 1.129 | E78: 6.629 | F78: 3.462 | G78: =D78*E78/F78 -> 2.16 | H78: =VLOOKUP(C78,'11.Region'!$B$22:$E$243,4,FALSE()) -> Americas | I78: =G78 -> 2.16
C79: Honduras | D79: 1.129 | E79: 23.125 | F79: 11.682 | G79: =D79*E79/F79 -> 2.24 | H79: =VLOOKUP(C79,'11.Region'!$B$22:$E$243,4,FALSE()) -> Americas | I79: =G79 -> 2.24
C80: Peru | D80: 1.129 | E80: 3.223 | F80: 1.595 | G80: =D80*E80/F80 -> 2.28 | H80: =VLOOKUP(C80,'11.Region'!$B$22:$E$243,4,FALSE()) -> Americas | I80: =G80 -> 2.28
C81: Mexico | D81: 1.129 | E81: 18.904 | F81: 9.285 | G81: =D81*E81/F81 -> 2.30 | H81: =VLOOKUP(C81,'11.Region'!$B$22:$E$243,4,FALSE()) -> Americas | I81: =G81 -> 2.30
C82: El Salvador | D82: 1.129 | E82: 1.000 | F82: 0.486 | G82: =D82*E82/F82 -> 2.33 | H82: =VLOOKUP(C82,'11.Region'!$B$22:$E$243,4,FALSE()) -> Americas | I82: =G82 -> 2.33
C83: Bolivia | D83: 1.129 | E83: 6.777 | F83: 3.102 | G83: =D83*E83/F83 -> 2.47 | H83: =VLOOKUP(C83,'11.Region'!$B$22:$E$243,4,FALSE()) -> Americas | I83: =G83 -> 2.47
C84: Paraguay | D84: 1.129 | E84: 5,513.890 | F84: 2,505.709 | G84: =D84*E84/F84 -> 2.49 | H84: =VLOOKUP(C84,'11.Region'!$B$22:$E$243,4,FALSE()) -> Americas | I84: =G84 -> 2.49
C85: Dominican Republic | D85: 1.129 | E85: 46.839 | F85: 20.935 | G85: =D85*E85/F85 -> 2.53 | H85: =VLOOKUP(C85,'11.Region'!$B$22:$E$243,4,FALSE()) -> Americas | I85: =G85 -> 2.53
C86: Colombia | D86: 1.129 | E86: 2,941.835 | F86: 1,278.040 | G86: =D86*E86/F86 -> 2.60 | H86: =VLOOKUP(C86,'11.Region'!$B$22:$E$243,4,FALSE()) -> Americas | I86: =G86 -> 2.60
C87: Haiti | D87: 1.129 | E87: 64.113 | F87: 27.692 | G87: =D87*E87/F87 -> 2.61 | H87: =VLOOKUP(C87,'11.Region'!$B$22:$E$243,4,FALSE()) -> Americas | I87: =G87 -> 2.61
C88: Suriname | D88: 1.129 | E88: 7.424 | F88: 2.923 | G88: =D88*E88/F88 -> 2.87 | H88: =VLOOKUP(C88,'11.Region'!$B$22:$E$243,4,FALSE()) -> Americas | I88: =G88 -> 2.87
C89: Nicaragua | D89: 1.129 | E89: 29.583 | F89: 11.428 | G89: =D89*E89/F89 -> 2.92 | H89: =VLOOKUP(C89,'11.Region'!$B$22:$E$243,4,FALSE()) -> Americas | I89: =G89 -> 2.92
C90: Aruba | D90: 1.129 | E90: 1.787 | G90: =D90*E90/F90 ->  | H90: =VLOOKUP(C90,'11.Region'!$B$22:$E$243,4,FALSE()) -> Americas | I90: =$K$57 -> 1.96 | J90: est
C91: Bermuda | D91: 1.129 | E91: 1.000 | G91: =D91*E91/F91 ->  | H91: =VLOOKUP(C91,'11.Region'!$B$22:$E$243,4,FALSE()) -> Americas | I91: =$K$57 -> 1.96 | J91: est
C92: Cuba | D92: 1.129 | G92: =D92*E92/F92 ->  | H92: =VLOOKUP(C92,'11.Region'!$B$22:$E$243,4,FALSE()) -> Americas | I92: =$K$57 -> 1.96 | J92: est
C93: Curacao | D93: 1.129 | G93: =D93*E93/F93 ->  | H93: =VLOOKUP(C93,'11.Region'!$B$22:$E$243,4,FALSE()) -> Americas | I93: =$K$57 -> 1.96 | J93: est
C94: Cayman Islands | D94: 1.129 | G94: =D94*E94/F94 ->  | H94: =VLOOKUP(C94,'11.Region'!$B$22:$E$243,4,FALSE()) -> Americas | I94: =$K$57 -> 1.96 | J94: est
C95: Greenland | D95: 1.129 | E95: 6.597 | G95: =D95*E95/F95 ->  | H95: =VLOOKUP(C95,'11.Region'!$B$22:$E$243,4,FALSE()) -> Americas | I95: =$K$57 -> 1.96 | J95: est
C96: St. Martin (French part) | D96: 1.129 | G96: =D96*E96/F96 ->  | H96: =VLOOKUP(C96,'11.Region'!$B$22:$E$243,4,FALSE()) -> Americas | I96: =$K$57 -> 1.96 | J96: est
C97: Puerto Rico | D97: 1.129 | G97: =D97*E97/F97 ->  | H97: =VLOOKUP(C97,'11.Region'!$B$22:$E$243,4,FALSE()) -> Americas | I97: =$K$57 -> 1.96 | J97: est
C98: Sint Maarten (Dutch part) | D98: 1.129 | G98: =D98*E98/F98 ->  | H98: =VLOOKUP(C98,'11.Region'!$B$22:$E$243,4,FALSE()) -> Americas | I98: =$K$57 -> 1.96 | J98: est
C99: Turks and Caicos Islands | D99: 1.129 | G99: =D99*E99/F99 ->  | H99: =VLOOKUP(C99,'11.Region'!$B$22:$E$243,4,FALSE()) -> Americas | I99: =$K$57 -> 1.96 | J99: est
C100: Venezuela, RB | D100: 1.129 | G100: =D100*E100/F100 ->  | H100: =VLOOKUP(C100,'11.Region'!$B$22:$E$243,4,FALSE()) -> Americas | I100: =$K$57 -> 1.96 | J100: est
C101: British Virgin Islands | D101: 1.129 | G101: =D101*E101/F101 ->  | H101: =VLOOKUP(C101,'11.Region'!$B$22:$E$243,4,FALSE()) -> Americas | I101: =$K$57 -> 1.96 | J101: est
C102: Virgin Islands (U.S.) | D102: 1.129 | G102: =D102*E102/F102 ->  | H102: =VLOOKUP(C102,'11.Region'!$B$22:$E$243,4,FALSE()) -> Americas | I102: =$K$57 -> 1.96 | J102: est
C103: West Bank and Gaza | D103: 1.129 | F103: 2.280 | G103: =D103*E103/F103 -> 0 | H103: =VLOOKUP(C103,'11.Region'!$B$22:$E$243,4,FALSE()) -> Asia | I103: =$K$103 -> 3.00 | J103: est | K103: =AVERAGE(G104:G149) -> 3.00 | L103: Asia
C104: Israel | D104: 1.129 | E104: 3.596 | F104: 3.774 | G104: =D104*E104/F104 -> 1.08 | H104: =VLOOKUP(C104,'11.Region'!$B$22:$E$243,4,FALSE()) -> Asia | I104: =G104 -> 1.08
C105: Japan | D105: 1.129 | E105: 112.149 | F105: 98.239 | G105: =D105*E105/F105 -> 1.29 | H105: =VLOOKUP(C105,'11.Region'!$B$22:$E$243,4,FALSE()) -> Asia | I105: =G105 -> 1.29
C106: Korea, Rep. | D106: 1.129 | E106: 1,128.646 | F106: 878.774 | G106: =D106*E106/F106 -> 1.45 | H106: =VLOOKUP(C106,'11.Region'!$B$22:$E$243,4,FALSE()) -> Asia | I106: =G106 -> 1.45
C107: Hong Kong SAR, China | D107: 1.129 | E107: 7.792 | F107: 5.850 | G107: =D107*E107/F107 -> 1.50 | H107: =VLOOKUP(C107,'11.Region'!$B$22:$E$243,4,FALSE()) -> Asia | I107: =G107 -> 1.50
C108: Cyprus | D108: 1.129 | E108: =1/1.12949 -> 0.885 | F108: 0.649 | G108: =D108*E108/F108 -> 1.54 | H108: =VLOOKUP(C108,'11.Region'!$B$22:$E$243,4,FALSE()) -> Asia | I108: =G108 -> 1.54
C109: Macao SAR, China | D109: 1.129 | E109: 7.855 | F109: 5.640 | G109: =D109*E109/F109 -> 1.57 | H109: =VLOOKUP(C109,'11.Region'!$B$22:$E$243,4,FALSE()) -> Asia | I109: =G109 -> 1.57
C110: Maldives | D110: 1.129 | E110: 15.230 | F110: 9.712 | G110: =D110*E110/F110 -> 1.77 | H110: =VLOOKUP(C110,'11.Region'!$B$22:$E$243,4,FALSE()) -> Asia | I110: =G110 -> 1.77
C111: Singapore | D111: 1.129 | E111: 1.381 | F111: 0.849 | G111: =D111*E111/F111 -> 1.84 | H111: =VLOOKUP(C111,'11.Region'!$B$22:$E$243,4,FALSE()) -> Asia | I111: =G111 -> 1.84
C112: Lebanon | D112: 1.129 | E112: 1,485.828 | F112: 875.570 | G112: =D112*E112/F112 -> 1.92 | H112: =VLOOKUP(C112,'11.Region'!$B$22:$E$243,4,FALSE()) -> Asia | I112: =G112 -> 1.92
C113: United Arab Emirates | D113: 1.129 | E113: 3.672 | F113: 2.023 | G113: =D113*E113/F113 -> 2.05 | H113: =VLOOKUP(C113,'11.Region'!$B$22:$E$243,4,FALSE()) -> Asia | I113: =G113 -> 2.05
C114: China | D114: 1.129 | E114: 6.758 | F114: 3.550 | G114: =D114*E114/F114 -> 2.15 | H114: =VLOOKUP(C114,'11.Region'!$B$22:$E$243,4,FALSE()) -> Asia | I114: =G114 -> 2.15
C115: Bahrain | D115: 1.129 | E115: 0.374 | F115: 0.187 | G115: =D115*E115/F115 -> 2.26 | H115: =VLOOKUP(C115,'11.Region'!$B$22:$E$243,4,FALSE()) -> Asia | I115: =G115 -> 2.26
C116: Qatar | D116: 1.129 | E116: 3.627 | F116: 1.801 | G116: =D116*E116/F116 -> 2.28 | H116: =VLOOKUP(C116,'11.Region'!$B$22:$E$243,4,FALSE()) -> Asia | I116: =G116 -> 2.28
C117: Jordan | D117: 1.129 | E117: 0.707 | F117: 0.320 | G117: =D117*E117/F117 -> 2.49 | H117: =VLOOKUP(C117,'11.Region'!$B$22:$E$243,4,FALSE()) -> Asia | I117: =G117 -> 2.49
C118: Armenia | D118: 1.129 | E118: 466.052 | F118: 196.980 | G118: =D118*E118/F118 -> 2.67 | H118: =VLOOKUP(C118,'11.Region'!$B$22:$E$243,4,FALSE()) -> Asia | I118: =G118 -> 2.67
C119: Turkmenistan | D119: 1.129 | E119: 3.411 | F119: 1.431 | G119: =D119*E119/F119 -> 2.69 | H119: =VLOOKUP(C119,'11.Region'!$B$22:$E$243,4,FALSE()) -> Asia | I119: =G119 -> 2.69
C120: Kuwait | D120: 1.129 | E120: 0.303 | F120: 0.122 | G120: =D120*E120/F120 -> 2.79 | H120: =VLOOKUP(C120,'11.Region'!$B$22:$E$243,4,FALSE()) -> Asia | I120: =G120 -> 2.79
C121: Bangladesh | D121: 1.129 | E121: 79.939 | F121: 31.014 | G121: =D121*E121/F121 -> 2.91 | H121: =VLOOKUP(C121,'11.Region'!$B$22:$E$243,4,FALSE()) -> Asia | I121: =G121 -> 2.91
C122: Saudi Arabia | D122: 1.129 | E122: 3.748 | F122: 1.446 | G122: =D122*E122/F122 -> 2.93 | H122: =VLOOKUP(C122,'11.Region'!$B$22:$E$243,4,FALSE()) -> Asia | I122: =G122 -> 2.93
C123: Georgia | D123: 1.129 | E123: 2.492 | F123: 0.957 | G123: =D123*E123/F123 -> 2.94 | H123: =VLOOKUP(C123,'11.Region'!$B$22:$E$243,4,FALSE()) -> Asia | I123: =G123 -> 2.94
C124: Turkey | D124: 1.129 | E124: 3.643 | F124: 1.377 | G124: =D124*E124/F124 -> 2.99 | H124: =VLOOKUP(C124,'11.Region'!$B$22:$E$243,4,FALSE()) -> Asia | I124: =G124 -> 2.99
C125: Oman | D125: 1.129 | E125: 0.384 | F125: 0.145 | G125: =D125*E125/F125 -> 3.00 | H125: =VLOOKUP(C125,'11.Region'!$B$22:$E$243,4,FALSE()) -> Asia | I125: =G125 -> 3.00
C126: Thailand | D126: 1.129 | E126: 33.867 | F126: 12.523 | G126: =D126*E126/F126 -> 3.05 | H126: =VLOOKUP(C126,'11.Region'!$B$22:$E$243,4,FALSE()) -> Asia | I126: =G126 -> 3.05
C127: Brunei Darussalam | D127: 1.129 | E127: 1.368 | F127: 0.496 | G127: =D127*E127/F127 -> 3.12 | H127: =VLOOKUP(C127,'11.Region'!$B$22:$E$243,4,FALSE()) -> Asia | I127: =G127 -> 3.12
C128: Lao PDR | D128: 1.129 | E128: 8,103.409 | F128: 2,922.080 | G128: =D128*E128/F128 -> 3.13 | H128: =VLOOKUP(C128,'11.Region'!$B$22:$E$243,4,FALSE()) -> Asia | I128: =G128 -> 3.13
C129: Philippines | D129: 1.129 | E129: 50.325 | F129: 18.058 | G129: =D129*E129/F129 -> 3.15 | H129: =VLOOKUP(C129,'11.Region'!$B$22:$E$243,4,FALSE()) -> Asia | I129: =G129 -> 3.15
C130: Cambodia | D130: 1.129 | E130: 3,982.285 | F130: 1,401.314 | G130: =D130*E130/F130 -> 3.21 | H130: =VLOOKUP(C130,'11.Region'!$B$22:$E$243,4,FALSE()) -> Asia | I130: =G130 -> 3.21
C131: Vietnam | D131: 1.129 | E131: 22,456.300 | F131: 7,735.714 | G131: =D131*E131/F131 -> 3.28 | H131: =VLOOKUP(C131,'11.Region'!$B$22:$E$243,4,FALSE()) -> Asia | I131: =G131 -> 3.28
C132: Bhutan | D132: 1.129 | E132: 65.089 | F132: 22.121 | G132: =D132*E132/F132 -> 3.32 | H132: =VLOOKUP(C132,'11.Region'!$B$22:$E$243,4,FALSE()) -> Asia | I132: =G132 -> 3.32
C133: Malaysia | D133: 1.129 | E133: 4.298 | F133: 1.453 | G133: =D133*E133/F133 -> 3.34 | H133: =VLOOKUP(C133,'11.Region'!$B$22:$E$243,4,FALSE()) -> Asia | I133: =G133 -> 3.34
C134: Kazakhstan | D134: 1.129 | E134: 324.408 | F134: 109.090 | G134: =D134*E134/F134 -> 3.36 | H134: =VLOOKUP(C134,'11.Region'!$B$22:$E$243,4,FALSE()) -> Asia | I134: =G134 -> 3.36
C135: Kyrgyz Republic | D135: 1.129 | E135: 68.864 | F135: 22.548 | G135: =D135*E135/F135 -> 3.45 | H135: =VLOOKUP(C135,'11.Region'!$B$22:$E$243,4,FALSE()) -> Asia | I135: =G135 -> 3.45
C136: Nepal | D136: 1.129 | E136: 102.715 | F136: 33.073 | G136: =D136*E136/F136 -> 3.51 | H136: =VLOOKUP(C136,'11.Region'!$B$22:$E$243,4,FALSE()) -> Asia | I136: =G136 -> 3.51
C137: Sri Lanka | D137: 1.129 | E137: 150.559 | F137: 48.375 | G137: =D137*E137/F137 -> 3.52 | H137: =VLOOKUP(C137,'11.Region'!$B$22:$E$243,4,FALSE()) -> Asia | I137: =G137 -> 3.52
C138: Timor-Leste | D138: 1.129 | E138: 1.000 | F138: 0.316 | G138: =D138*E138/F138 -> 3.57 | H138: =VLOOKUP(C138,'11.Region'!$B$22:$E$243,4,FALSE()) -> Asia | I138: =G138 -> 3.57
C139: Indonesia | D139: 1.129 | E139: 13,337.403 | F139: 4,190.492 | G139: =D139*E139/F139 -> 3.59 | H139: =VLOOKUP(C139,'11.Region'!$B$22:$E$243,4,FALSE()) -> Asia | I139: =G139 -> 3.59
C140: Iraq | D140: 1.129 | E140: 1,155.560 | F140: 355.059 | G140: =D140*E140/F140 -> 3.68 | H140: =VLOOKUP(C140,'11.Region'!$B$22:$E$243,4,FALSE()) -> Asia | I140: =G140 -> 3.68
C141: Afghanistan | D141: 1.129 | E141: 67.553 | F141: 20.205 | G141: =D141*E141/F141 -> 3.78 | H141: =VLOOKUP(C141,'11.Region'!$B$22:$E$243,4,FALSE()) -> Asia | I141: =G141 -> 3.78
C142: Mongolia | D142: 1.129 | E142: 2,431.002 | F142: 701.023 | G142: =D142*E142/F142 -> 3.92 | H142: =VLOOKUP(C142,'11.Region'!$B$22:$E$243,4,FALSE()) -> Asia | I142: =G142 -> 3.92
C143: Pakistan | D143: 1.129 | E143: 104.364 | F143: 29.351 | G143: =D143*E143/F143 -> 4.02 | H143: =VLOOKUP(C143,'11.Region'!$B$22:$E$243,4,FALSE()) -> Asia | I143: =G143 -> 4.02
C144: India | D144: 1.129 | E144: 65.048 | F144: 17.729 | G144: =D144*E144/F144 -> 4.14 | H144: =VLOOKUP(C144,'11.Region'!$B$22:$E$243,4,FALSE()) -> Asia | I144: =G144 -> 4.14
C145: Iran, Islamic Rep. | D145: 1.129 | E145: 32,929.177 | F145: 8,720.165 | G145: =D145*E145/F145 -> 4.27 | H145: =VLOOKUP(C145,'11.Region'!$B$22:$E$243,4,FALSE()) -> Asia | I145: =G145 -> 4.27
C146: Tajikistan | D146: 1.129 | E146: 8.492 | F146: 2.153 | G146: =D146*E146/F146 -> 4.45 | H146: =VLOOKUP(C146,'11.Region'!$B$22:$E$243,4,FALSE()) -> Asia | I146: =G146 -> 4.45
C147: Azerbaijan | D147: 1.129 | E147: 1.712 | F147: 0.409 | G147: =D147*E147/F147 -> 4.73 | H147: =VLOOKUP(C147,'11.Region'!$B$22:$E$243,4,FALSE()) -> Asia | I147: =G147 -> 4.73
C148: Uzbekistan | D148: 1.129 | E148: 5,070.345 | F148: 1,120.529 | G148: =D148*E148/F148 -> 5.11 | H148: =VLOOKUP(C148,'11.Region'!$B$22:$E$243,4,FALSE()) -> Asia | I148: =G148 -> 5.11
C149: Myanmar | D149: 1.129 | E149: 1,342.909 | F149: 285.353 | G149: =D149*E149/F149 -> 5.32 | H149: =VLOOKUP(C149,'11.Region'!$B$22:$E$243,4,FALSE()) -> Asia | I149: =G149 -> 5.32
C150: Korea, Dem. People’s Rep. | D150: 1.129 | G150: =D150*E150/F150 ->  | H150: =VLOOKUP(C150,'11.Region'!$B$22:$E$243,4,FALSE()) -> Asia | I150: =$K$103 -> 3.00 | J150: est
C151: Syrian Arab Republic | D151: 1.129 | G151: =D151*E151/F151 ->  | H151: =VLOOKUP(C151,'11.Region'!$B$22:$E$243,4,FALSE()) -> Asia | I151: =$K$103 -> 3.00 | J151: est
C152: Yemen, Rep. | D152: 1.129 | F152: -.0 | G152: =D152*E152/F152 ->  | H152: =VLOOKUP(C152,'11.Region'!$B$22:$E$243,4,FALSE()) -> Asia | I152: =$K$103 -> 3.00 | J152: est
C153: Norway | D153: 1.129 | E153: 8.265 | F153: 10.242 | G153: =D153*E153/F153 -> 0.91 | H153: =VLOOKUP(C153,'11.Region'!$B$22:$E$243,4,FALSE()) -> Europe | I153: =G153 -> 0.91 | K153: =AVERAGE(G153:G193) -> 1.93 | L153: Europe
C154: Poland | D154: 1.129 | E154: 3.774 | F154: 1.782 | G154: =D154*E154/F154 -> 2.39 | H154: =VLOOKUP(C154,'11.Region'!$B$22:$E$243,4,FALSE()) -> Europe | I154: =G154 -> 2.39
C155: Malta | D155: 1.129 | E155: 0.381 | F155: 0.605 | G155: =D155*E155/F155 -> 0.71 | H155: =VLOOKUP(C155,'11.Region'!$B$22:$E$243,4,FALSE()) -> Europe | I155: =G155 -> 0.71
C156: Iceland | D156: 1.129 | E156: 106.395 | F156: 139.862 | G156: =D156*E156/F156 -> 0.86 | H156: =VLOOKUP(C156,'11.Region'!$B$22:$E$243,4,FALSE()) -> Europe | I156: =G156 -> 0.86
C157: Switzerland | D157: 1.129 | E157: 0.984 | F157: 1.215 | G157: =D157*E157/F157 -> 0.92 | H157: =VLOOKUP(C157,'11.Region'!$B$22:$E$243,4,FALSE()) -> Europe | I157: =G157 -> 0.92
C158: Denmark | D158: 1.129 | E158: 6.597 | F158: 7.356 | G158: =D158*E158/F158 -> 1.01 | H158: =VLOOKUP(C158,'11.Region'!$B$22:$E$243,4,FALSE()) -> Europe | I158: =G158 -> 1.01
C159: Sweden | D159: 1.129 | E159: 8.541 | F159: 9.125 | G159: =D159*E159/F159 -> 1.06 | H159: =VLOOKUP(C159,'11.Region'!$B$22:$E$243,4,FALSE()) -> Europe | I159: =G159 -> 1.06
C160: Finland | D160: 1.129 | E160: =1/1.12949 -> 0.885 | F160: 0.897 | G160: =D160*E160/F160 -> 1.11 | H160: =VLOOKUP(C160,'11.Region'!$B$22:$E$243,4,FALSE()) -> Europe | I160: =G160 -> 1.11
C161: Luxembourg | D161: 1.129 | E161: =1/1.12949 -> 0.885 | F161: 0.891 | G161: =D161*E161/F161 -> 1.12 | H161: =VLOOKUP(C161,'11.Region'!$B$22:$E$243,4,FALSE()) -> Europe | I161: =G161 -> 1.12
C162: Belgium | D162: 1.129 | E162: =1/1.12949 -> 0.885 | F162: 0.808 | G162: =D162*E162/F162 -> 1.24 | H162: =VLOOKUP(C162,'11.Region'!$B$22:$E$243,4,FALSE()) -> Europe | I162: =G162 -> 1.24
C163: Netherlands | D163: 1.129 | E163: =1/1.12949 -> 0.885 | F163: 0.808 | G163: =D163*E163/F163 -> 1.24 | H163: =VLOOKUP(C163,'11.Region'!$B$22:$E$243,4,FALSE()) -> Europe | I163: =G163 -> 1.24
C164: Ireland | D164: 1.129 | E164: =1/1.12949 -> 0.885 | F164: 0.806 | G164: =D164*E164/F164 -> 1.24 | H164: =VLOOKUP(C164,'11.Region'!$B$22:$E$243,4,FALSE()) -> Europe | I164: =G164 -> 1.24
C165: United Kingdom | D165: 1.129 | E165: 0.777 | F165: 0.703 | G165: =D165*E165/F165 -> 1.25 | H165: =VLOOKUP(C165,'11.Region'!$B$22:$E$243,4,FALSE()) -> Europe | I165: =G165 -> 1.25
C166: Austria | D166: 1.129 | E166: =1/1.12949 -> 0.885 | F166: 0.798 | G166: =D166*E166/F166 -> 1.25 | H166: =VLOOKUP(C166,'11.Region'!$B$22:$E$243,4,FALSE()) -> Europe | I166: =G166 -> 1.25
C167: France | D167: 1.129 | E167: =1/1.12949 -> 0.885 | F167: 0.798 | G167: =D167*E167/F167 -> 1.25 | H167: =VLOOKUP(C167,'11.Region'!$B$22:$E$243,4,FALSE()) -> Europe | I167: =G167 -> 1.25
C168: Germany | D168: 1.129 | E168: =1/1.12949 -> 0.885 | F168: 0.778 | G168: =D168*E168/F168 -> 1.29 | H168: =VLOOKUP(C168,'11.Region'!$B$22:$E$243,4,FALSE()) -> Europe | I168: =G168 -> 1.29
C169: Italy | D169: 1.129 | E169: =1/1.12949 -> 0.885 | F169: 0.712 | G169: =D169*E169/F169 -> 1.40 | H169: =VLOOKUP(C169,'11.Region'!$B$22:$E$243,4,FALSE()) -> Europe | I169: =G169 -> 1.40
C170: San Marino | D170: 1.129 | E170: =1/1.12949 -> 0.885 | F170: 0.706 | G170: =D170*E170/F170 -> 1.42 | H170: =VLOOKUP(C170,'11.Region'!$B$22:$E$243,4,FALSE()) -> Europe | I170: =G170 -> 1.42
C171: Spain | D171: 1.129 | E171: =1/1.12949 -> 0.885 | F171: 0.656 | G171: =D171*E171/F171 -> 1.52 | H171: =VLOOKUP(C171,'11.Region'!$B$22:$E$243,4,FALSE()) -> Europe | I171: =G171 -> 1.52
C172: Slovenia | D172: 1.129 | E172: =1/1.12949 -> 0.885 | F172: 0.602 | G172: =D172*E172/F172 -> 1.66 | H172: =VLOOKUP(C172,'11.Region'!$B$22:$E$243,4,FALSE()) -> Europe | I172: =G172 -> 1.66
C173: Greece | D173: 1.129 | E173: =1/1.12949 -> 0.885 | F173: 0.594 | G173: =D173*E173/F173 -> 1.68 | H173: =VLOOKUP(C173,'11.Region'!$B$22:$E$243,4,FALSE()) -> Europe | I173: =G173 -> 1.68
C174: Portugal | D174: 1.129 | E174: =1/1.12949 -> 0.885 | F174: 0.583 | G174: =D174*E174/F174 -> 1.72 | H174: =VLOOKUP(C174,'11.Region'!$B$22:$E$243,4,FALSE()) -> Europe | I174: =G174 -> 1.72
C175: Estonia | D175: 1.129 | E175: =1/1.12949 -> 0.885 | F175: 0.553 | G175: =D175*E175/F175 -> 1.81 | H175: =VLOOKUP(C175,'11.Region'!$B$22:$E$243,4,FALSE()) -> Europe | I175: =G175 -> 1.81
C176: Latvia | D176: 1.129 | E176: =1/1.12949 -> 0.885 | F176: 0.501 | G176: =D176*E176/F176 -> 1.99 | H176: =VLOOKUP(C176,'11.Region'!$B$22:$E$243,4,FALSE()) -> Europe | I176: =G176 -> 1.99
C177: Czech Republic | D177: 1.129 | E177: 23.362 | F177: 12.898 | G177: =D177*E177/F177 -> 2.05 | H177: =VLOOKUP(C177,'11.Region'!$B$22:$E$243,4,FALSE()) -> Europe | I177: =G177 -> 2.05
C178: Slovak Republic | D178: 1.129 | E178: =1/1.12949 -> 0.885 | F178: 0.487 | G178: =D178*E178/F178 -> 2.06 | H178: =VLOOKUP(C178,'11.Region'!$B$22:$E$243,4,FALSE()) -> Europe | I178: =G178 -> 2.06
C179: Croatia | D179: 1.129 | E179: 6.614 | F179: 3.486 | G179: =D179*E179/F179 -> 2.14 | H179: =VLOOKUP(C179,'11.Region'!$B$22:$E$243,4,FALSE()) -> Europe | I179: =G179 -> 2.14
C180: Lithuania | D180: 1.129 | E180: =1/1.12949 -> 0.885 | F180: 0.461 | G180: =D180*E180/F180 -> 2.17 | H180: =VLOOKUP(C180,'11.Region'!$B$22:$E$243,4,FALSE()) -> Europe | I180: =G180 -> 2.17
C181: Hungary | D181: 1.129 | E181: 274.100 | F181: 137.576 | G181: =D181*E181/F181 -> 2.25 | H181: =VLOOKUP(C181,'11.Region'!$B$22:$E$243,4,FALSE()) -> Europe | I181: =G181 -> 2.25
C182: Russian Federation | D182: 1.129 | E182: 58.292 | F182: 24.548 | G182: =D182*E182/F182 -> 2.68 | H182: =VLOOKUP(C182,'11.Region'!$B$22:$E$243,4,FALSE()) -> Europe | I182: =G182 -> 2.68
C183: Romania | D183: 1.129 | E183: 4.047 | F183: 1.696 | G183: =D183*E183/F183 -> 2.70 | H183: =VLOOKUP(C183,'11.Region'!$B$22:$E$243,4,FALSE()) -> Europe | I183: =G183 -> 2.70
C184: Montenegro | D184: 1.129 | E184: =1/1.12949 -> 0.885 | F184: 0.363 | G184: =D184*E184/F184 -> 2.76 | H184: =VLOOKUP(C184,'11.Region'!$B$22:$E$243,4,FALSE()) -> Europe | I184: =G184 -> 2.76
C185: Moldova | D185: 1.129 | E185: 18.213 | F185: 7.434 | G185: =D185*E185/F185 -> 2.77 | H185: =VLOOKUP(C185,'11.Region'!$B$22:$E$243,4,FALSE()) -> Europe | I185: =G185 -> 2.77
C186: Bosnia and Herzegovina | D186: 1.129 | E186: 1.732 | F186: 0.698 | G186: =D186*E186/F186 -> 2.80 | H186: =VLOOKUP(C186,'11.Region'!$B$22:$E$243,4,FALSE()) -> Europe | I186: =G186 -> 2.80
C187: Bulgaria | D187: 1.129 | E187: 1.728 | F187: 0.686 | G187: =D187*E187/F187 -> 2.85 | H187: =VLOOKUP(C187,'11.Region'!$B$22:$E$243,4,FALSE()) -> Europe | I187: =G187 -> 2.85
C188: Serbia | D188: 1.129 | E188: 107.400 | F188: 42.133 | G188: =D188*E188/F188 -> 2.88 | H188: =VLOOKUP(C188,'11.Region'!$B$22:$E$243,4,FALSE()) -> Europe | I188: =G188 -> 2.88
C189: Albania | D189: 1.129 | E189: 117.691 | F189: 44.961 | G189: =D189*E189/F189 -> 2.96 | H189: =VLOOKUP(C189,'11.Region'!$B$22:$E$243,4,FALSE()) -> Europe | I189: =G189 -> 2.96
C190: Macedonia, FYR | D190: 1.129 | E190: 54.246 | F190: 19.534 | G190: =D190*E190/F190 -> 3.14 | H190: =VLOOKUP(C190,'11.Region'!$B$22:$E$243,4,FALSE()) -> Europe | I190: =G190 -> 3.14
C191: Kosovo | D191: 1.129 | E191: 1.000 | F191: 0.321 | G191: =D191*E191/F191 -> 3.52 | H191: =VLOOKUP(C191,'11.Region'!$B$22:$E$243,4,FALSE()) -> Europe | I191: =G191 -> 3.52
C192: Ukraine | D192: 1.129 | E192: 26.407 | F192: 8.101 | G192: =D192*E192/F192 -> 3.68 | H192: =VLOOKUP(C192,'11.Region'!$B$22:$E$243,4,FALSE()) -> Europe | I192: =G192 -> 3.68
C193: Belarus | D193: 1.129 | E193: 1.977 | F193: 0.587 | G193: =D193*E193/F193 -> 3.80 | H193: =VLOOKUP(C193,'11.Region'!$B$22:$E$243,4,FALSE()) -> Europe | I193: =G193 -> 3.80
C194: Andorra | D194: 1.129 | E194: =1/1.12949 -> 0.885 | G194: =D194*E194/F194 ->  | H194: =VLOOKUP(C194,'11.Region'!$B$22:$E$243,4,FALSE()) -> Europe | I194: =$K$153 -> 1.93 | J194: est
C195: Faroe Islands | D195: 1.129 | G195: =D195*E195/F195 ->  | H195: =VLOOKUP(C195,'11.Region'!$B$22:$E$243,4,FALSE()) -> Europe | I195: =$K$153 -> 1.93 | J195: est
C196: Gibraltar | D196: 1.129 | G196: =D196*E196/F196 ->  | H196: =VLOOKUP(C196,'11.Region'!$B$22:$E$243,4,FALSE()) -> Europe | I196: =$K$153 -> 1.93 | J196: est
C197: Isle of Man | D197: 1.129 | G197: =D197*E197/F197 ->  | H197: =VLOOKUP(C197,'11.Region'!$B$22:$E$243,4,FALSE()) -> Europe | I197: =$K$153 -> 1.93 | J197: est
C198: Liechtenstein | D198: 1.129 | G198: =D198*E198/F198 ->  | H198: =VLOOKUP(C198,'11.Region'!$B$22:$E$243,4,FALSE()) -> Europe | I198: =$K$153 -> 1.93 | J198: est
C199: Monaco | D199: 1.129 | E199: =1/1.12949 -> 0.885 | G199: =D199*E199/F199 ->  | H199: =VLOOKUP(C199,'11.Region'!$B$22:$E$243,4,FALSE()) -> Europe | I199: =$K$153 -> 1.93 | J199: est
C200: Samoa | D200: 1.129 | E200: 1.000 | F200: 1.643 | G200: =D200*E200/F200 -> 0.69 | H200: =VLOOKUP(C200,'11.Region'!$B$22:$E$243,4,FALSE()) -> Oceania | I200: =G200 -> 0.69 | K200: =AVERAGE(G200:G213) -> 1.36 | L200: Oceania
C201: Australia | D201: 1.129 | E201: 1.305 | F201: 1.516 | G201: =D201*E201/F201 -> 0.97 | H201: =VLOOKUP(C201,'11.Region'!$B$22:$E$243,4,FALSE()) -> Oceania | I201: =G201 -> 0.97
... 65 more rows

Sheet 12.lan (hidden)
C1: =VLOOKUP('0. Intro'!B1,'12.lan'!B2:C12,2,FALSE()) -> 3 | D1: =HLOOKUP($C$1,$E$1:$X$4910,ROW(D1)) -> 3 | E1: 1 | F1: 2 | G1: 3 | H1: 4 | I1: 5 | J1: 6 | K1: 7
A2: 3 | B2: Select your language | C2: =A2 -> 3 | D2: =HLOOKUP($C$1,$E$1:$X$4910,ROW(D2)) -> English | E2: Deutsch | F2: Italiano | G2: English | H2: Español | I2: Francais | J2: Portugues | K2: Griechisch
A3: 1 | B3: Deutsch | C3: =A3 -> 1 | D3: =HLOOKUP($C$1,$E$1:$X$4910,ROW(D3)) -> 0
A4: 2 | B4: Italiano | C4: =A4 -> 2 | D4: =HLOOKUP($C$1,$E$1:$X$4910,ROW(D4)) -> BALANCE SHEET CALCULATOR | E4: GEMEINWOHL-RECHNER | F4: Calcolatore del Bene Comune | G4: BALANCE SHEET CALCULATOR | H4: CALCULADORA DEL BIEN COMÚN | I4: ="[fr]"&E4 -> [fr]GEMEINWOHL-RECHNER | J4: ="[pt]"&E4 -> [pt]GEMEINWOHL-RECHNER | K4: ="[gr]"&E4 -> [gr]GEMEINWOHL-RECHNER
A5: 3 | B5: English | C5: =A5 -> 3 | D5: =HLOOKUP($C$1,$E$1:$X$4910,ROW(D5)) -> © ECG | E5: © GWÖ | F5: © Economia del Bene Comune | G5: © ECG | H5: © Economía del Bien Común | I5: ="[fr]"&E5 -> [fr]© GWÖ | J5: ="[pt]"&E5 -> [pt]© GWÖ | K5: ="[gr]"&E5 -> [gr]© GWÖ
A6: 4 | B6: Español | C6: =A6 -> 4 | D6: =HLOOKUP($C$1,$E$1:$X$4910,ROW(D6)) -> Version | E6: Version | F6: Versione | G6: Version | H6: Versión | I6: ="[fr]"&E6 -> [fr]Version | J6: Versão | K6: ="[gr]"&E6 -> [gr]Version
A7: 5 | B7: Francais | C7: =A7 -> 5 | D7: =HLOOKUP($C$1,$E$1:$X$4910,ROW(D7)) -> WELCOME! | E7: HERZLICH WILLKOMMEN! | F7: Benvenuto! | G7: WELCOME! | H7: ¡Bienvenid@! | I7: ="[fr]"&E7 -> [fr]HERZLICH WILLKOMMEN! | J7: ="[pt]"&E7 -> [pt]HERZLICH WILLKOMMEN! | K7: ="[gr]"&E7 -> [gr]HERZLICH WILLKOMMEN!
A8: 6 | B8: Portugues | C8: =A8 -> 6 | D8: =HLOOKUP($C$1,$E$1:$X$4910,ROW(D8)) -> This tool is for calculating the overall Common Good Points for your company or organisation. It complements the Common Good Report and has to be used together with it. Have fun with your calculation! | E8: Dieses Tool dient zur Berechnung der Gemeinwohl-Punkte Ihres Unternehmens. Es ist eine Ergänzung zum Gemeinwohlbericht und muss gemeinsam mit diesem genutzt werden. Wir wünschen gutes Gelingen! | F8: Può utilizzare questo strumento per calcolare i punti del bene comune della sua impresa. Serve quale completamento alla relazione del bene comune e deve essere utilizzato assieme a questo. Le auguriamo buon divertimento in questa attività di calcolo! | G8: This tool is for calculating the overall Common Good Points for your company or organisation. It complements the Common Good Report and has to be used together with it. Have fun with your calculation! | H8: Esta herramienta sirve para calcular la puntuación de su empresa de acuerdo al balance del Bien Común. Esta hoja de cálculo es complementaria al informe del Bien Común y debe utilizarse por tanto conjuntamente. ¡Buena suerte! | I8: ="[fr]"&E8 -> [fr]Dieses Tool dient zur Berechnung der Gemeinwohl-Punkte Ihres Unternehmens. Es ist eine Ergänzung zum Gemeinwohlbericht und muss gemeinsam mit diesem genutzt werden. Wir wünschen gutes Gelingen! | J8: ="[pt]"&E8 -> [pt]Dieses Tool dient zur Berechnung der Gemeinwohl-Punkte Ihres Unternehmens. Es ist eine Ergänzung zum Gemeinwohlbericht und muss gemeinsam mit diesem genutzt werden. Wir wünschen gutes Gelingen! | K8: ="[gr]"&E8 -> [gr]Dieses Tool dient zur Berechnung der Gemeinwohl-Punkte Ihres Unternehmens. Es ist eine Ergänzung zum Gemeinwohlbericht und muss gemeinsam mit diesem genutzt werden. Wir wünschen gutes Gelingen!
A9: 7 | B9: Griechisch | C9: =A9 -> 7 | D9: =HLOOKUP($C$1,$E$1:$X$4910,ROW(D9)) -> HOW TO USE THE BALANCE SHEET CALCULATOR: | E9: WIE SIE DEN BILANZ-RECHNER RICHTIG VERWENDEN: | F9: Come utilizzare correttamente il calcolatore del bilancio: | G9: HOW TO USE THE BALANCE SHEET CALCULATOR: | H9: Cómo utilizar la calculadora del Bien Común correctamente | I9: ="[fr]"&E9 -> [fr]WIE SIE DEN BILANZ-RECHNER RICHTIG VERWENDEN: | J9: ="[pt]"&E9 -> [pt]WIE SIE DEN BILANZ-RECHNER RICHTIG VERWENDEN: | K9: ="[gr]"&E9 -> [gr]WIE SIE DEN BILANZ-RECHNER RICHTIG VERWENDEN:
A10: 8 | C10: =A10 -> 8 | D10: =HLOOKUP($C$1,$E$1:$X$4910,ROW(D10)) -> 1. General | E10: 1. Allgemeines | F10: 1. Generale | G10: 1. General | H10: 1. General | I10: ="[fr]"&E10 -> [fr]1. Allgemeines | J10: ="[pt]"&E10 -> [pt]1. Allgemeines | K10: ="[gr]"&E10 -> [gr]1. Allgemeines
A11: 9 | C11: =A11 -> 9 | D11: =HLOOKUP($C$1,$E$1:$X$4910,ROW(D11)) -> You can enter general information about your company or organisation in this section. | E11: Hier können Sie allgemeinen Angaben zu Ihrem Unternehmen machen. | F11: Qui può indicare tutte le informazioni e dati della sua impresa | G11: You can enter general information about your company or organisation in this section. | H11: En esta hoja puedes introducir información general sobre tu organización o empresa | I11: ="[fr]"&E11 -> [fr]Hier können Sie allgemeinen Angaben zu Ihrem Unternehmen machen. | J11: ="[pt]"&E11 -> [pt]Hier können Sie allgemeinen Angaben zu Ihrem Unternehmen machen. | K11: ="[gr]"&E11 -> [gr]Hier können Sie allgemeinen Angaben zu Ihrem Unternehmen machen.
A12: 10 | C12: =A12 -> 10 | D12: =HLOOKUP($C$1,$E$1:$X$4910,ROW(D12)) -> All fields in this section must be completed as they are essential for the weighting of each theme. | E12: Hier müssen alle geforderten Kenngrößen eingetragen werden, da diese für die Gewichtung der Themen essentiell sind. | F12: Qui devono essere inseriti tutti i parametri richiesti, poiché questi sono essenziali per la ponderazione degli argomenti. | G12: All fields in this section must be completed as they are essential for the weighting of each theme. | H12: En esta hoja debes introducir todos los datos requeridos, pues el cálculo de la ponderación depende de ellos | I12: ="[fr]"&E12 -> [fr]Hier müssen alle geforderten Kenngrößen eingetragen werden, da diese für die Gewichtung der Themen essentiell sind. | J12: ="[pt]"&E12 -> [pt]Hier müssen alle geforderten Kenngrößen eingetragen werden, da diese für die Gewichtung der Themen essentiell sind. | K12: ="[gr]"&E12 -> [gr]Hier müssen alle geforderten Kenngrößen eingetragen werden, da diese für die Gewichtung der Themen essentiell sind.
A13: 11 | D13: =HLOOKUP($C$1,$E$1:$X$4910,ROW(D13)) -> For each theme (A1, B1, ...) a certain maximum number of Common Good Points can be achieved. To evaluate how many points your company scores, follow these steps: | E13: Für jedes Thema (A1, B1, ...) kann eine bestimmte Anzahl an Gemeinwohl-Punkten erreicht werden. Um zu ermitteln, wie viele davon Ihr Unternehmen erhält, gehen Sie wie folgt vor: | F13: Per ogni tema (A1, B1, ...) può essere raggiunto un determinate valore di punteggio del bene comune. Per ricavare, che punteggio ottiene la Sua impresa proceda nel modo seguente: | G13: For each theme (A1, B1, ...) a certain maximum number of Common Good Points can be achieved. To evaluate how many points your company scores, follow these steps: | H13: Para cada tema (A1, B1, …) puede obtenerse una puntuación determinada. Para calcular cuál obtiene su empresa, siga los pasos siguientes: | I13: ="[fr]"&E13 -> [fr]Für jedes Thema (A1, B1, ...) kann eine bestimmte Anzahl an Gemeinwohl-Punkten erreicht werden. Um zu ermitteln, wie viele davon Ihr Unternehmen erhält, gehen Sie wie folgt vor: | J13: ="[pt]"&E13 -> [pt]Für jedes Thema (A1, B1, ...) kann eine bestimmte Anzahl an Gemeinwohl-Punkten erreicht werden. Um zu ermitteln, wie viele davon Ihr Unternehmen erhält, gehen Sie wie folgt vor: | K13: ="[gr]"&E13 -> [gr]Für jedes Thema (A1, B1, ...) kann eine bestimmte Anzahl an Gemeinwohl-Punkten erreicht werden. Um zu ermitteln, wie viele davon Ihr Unternehmen erhält, gehen Sie wie folgt vor:
A14: 12 | D14: =HLOOKUP($C$1,$E$1:$X$4910,ROW(D14)) -> Describe the current status and potential for improvement for the various aspects under key headings. Use the workbook as a reference. (This is optional and not absolutely necessary for the calculation.) | E14: Beschreiben Sie auf Basis des Arbeitsbuchs in wenigen Stichworten Ist-Zustand und Verbesserungspotenzial für die verschiedenen Aspekte (optional, ist für die Berechnung nicht unbedingt notwendig). | F14: Descrivi sulla base del libro di esercizi in poche parole chiave lo stato attuale e il potenziale di miglioramento per i diversi aspetti (facoltativo, non è assolutamente necessario per il calcolo). | G14: Describe the current status and potential for improvement for the various aspects under key headings. Use the workbook as a reference. (This is optional and not absolutely necessary for the calculation.) | H14: Describa en pocas palabras, de acuerdo al manual del Balance del Bien Común, cuál es el estado actual y el potencial de mejora para cada uno de los aspectos (opcional, no es necesario para el cálculo de la puntuación). | I14: ="[fr]"&E14 -> [fr]Beschreiben Sie auf Basis des Arbeitsbuchs in wenigen Stichworten Ist-Zustand und Verbesserungspotenzial für die verschiedenen Aspekte (optional, ist für die Berechnung nicht unbedingt notwendig). | J14: ="[pt]"&E14 -> [pt]Beschreiben Sie auf Basis des Arbeitsbuchs in wenigen Stichworten Ist-Zustand und Verbesserungspotenzial für die verschiedenen Aspekte (optional, ist für die Berechnung nicht unbedingt notwendig). | K14: ="[gr]"&E14 -> [gr]Beschreiben Sie auf Basis des Arbeitsbuchs in wenigen Stichworten Ist-Zustand und Verbesserungspotenzial für die verschiedenen Aspekte (optional, ist für die Berechnung nicht unbedingt notwendig).
A15: 13 | D15: =HLOOKUP($C$1,$E$1:$X$4910,ROW(D15)) -> Based on these descriptions, indicate on a scale of 0-10 how far you consider the respective aspect is met (Achievement level). The criteria for choosing the correct value can be found in the Workbook. | E15: Geben Sie - aufbauend auf diesen Beschreibungen - an, entsprechend welchem Skalenwert (0-10) Ihrer Meinung nach der jeweilige Aspekt erfüllt ist (Spalte "Erfüllungsgrad"). Anhaltspunkte zur Wahl des "richtigen" Skalenwerts finden Sie wiederum im Arbeitsbuch. | F15: In base a queste descrizioni, indica in base a quale valore di scala (0-10) pensi che il rispettivo aspetto sia soddisfatto (colonna "grado di realizzazione"). Troverete indizi per scegliere il valore di scala "corretto" nella cartella di lavoro. | G15: Based on these descriptions, indicate on a scale of 0-10 how far you consider the respective aspect is met (Achievement level). The criteria for choosing the correct value can be found in the Workbook. | H15: A partir de las descripciones previas, introduzca una puntuación de 0 a 10 que indique, según su opinión, el nivel de satisfacción de cada aspecto. Los niveles de referencia para la puntuación y otras indicaciones al respecto se encuentran en el manual. | I15: ="[fr]"&E15 -> [fr]Geben Sie - aufbauend auf diesen Beschreibungen - an, entsprechend welchem Skalenwert (0-10) Ihrer Meinung nach der jeweilige Aspekt erfüllt ist (Spalte "Erfüllungsgrad"). Anhaltspunkte zur Wahl des "richtigen" Skalenwerts finden Sie wiederum im Arbeitsbuch. | J15: ="[pt]"&E15 -> [pt]Geben Sie - aufbauend auf diesen Beschreibungen - an, entsprechend welchem Skalenwert (0-10) Ihrer Meinung nach der jeweilige Aspekt erfüllt ist (Spalte "Erfüllungsgrad"). Anhaltspunkte zur Wahl des "richtigen" Skalenwerts finden Sie wiederum im Arbeitsbuch. | K15: ="[gr]"&E15 -> [gr]Geben Sie - aufbauend auf diesen Beschreibungen - an, entsprechend welchem Skalenwert (0-10) Ihrer Meinung nach der jeweilige Aspekt erfüllt ist (Spalte "Erfüllungsgrad"). Anhaltspunkte zur Wahl des "richtigen" Skalenwerts finden Sie wiederum im Arbeitsbuch.
A16: 14 | D16: =HLOOKUP($C$1,$E$1:$X$4910,ROW(D16)) -> Negative aspects are allocated negative points according to the descriptions set out in the Workbook. | E16: Für die Bewertung der Negativaspekte geben Sie Punktewerte entsprechend der Beschreibungen im Arbeitsbuch an. | F16: Per la valutazione degli aspetti negativi si indicano i valori dei punti in base alle descrizioni nel manuale. | G16: Negative aspects are allocated negative points according to the descriptions set out in the Workbook. | H16: Para aportar una puntuación a cada uno de los aspectos negativos utilice las indicaciones del manual. | I16: ="[fr]"&E16 -> [fr]Für die Bewertung der Negativaspekte geben Sie Punktewerte entsprechend der Beschreibungen im Arbeitsbuch an. | J16: ="[pt]"&E16 -> [pt]Für die Bewertung der Negativaspekte geben Sie Punktewerte entsprechend der Beschreibungen im Arbeitsbuch an. | K16: ="[gr]"&E16 -> [gr]Für die Bewertung der Negativaspekte geben Sie Punktewerte entsprechend der Beschreibungen im Arbeitsbuch an.
A17: 15 | D17: =HLOOKUP($C$1,$E$1:$X$4910,ROW(D17)) -> Where deemed necessary for your company and in agreement with the auditors you can change the relative weightings of individual aspects (A1.1, A1.2, ..). In the column Weighting, you can select values for each aspect. The distribution of available points for individual aspects will then be adjusted automatically, so that the total of all aspects of an indicator result in 100%. | E17: Sie können, wenn es für ihr Unternehmen notwendig erscheint, in Abstimmung mit der AuditorIn die relativen Gewichtungen der einzelnen Aspekte (A1.1, A1.2, ...) verändern. In der Spalte "Gewichtung" ("Gew.") können Sie für jeden Aspekt Werte auswählen. Die Verteilung der möglichen Punkte auf die einzelnen Aspekte wird dann automatisch angepasst, sodass die Summe aller Aspekte eines Themas immer 100% ergibt. | F17: È possibile modificare le ponderazioni relative dei singoli aspetti (A1.1, A1.2, ...), se necessario per la propria azienda, in consultazione con l’auitor. Nella colonna "Peso", è possibile selezionare i valori per ogni aspetto. La distribuzione dei possibili punti sui singoli aspetti viene quindi regolata automaticamente, in modo che la somma di tutti gli aspetti di un argomento sia sempre al 100%. | G17: Where deemed necessary for your company and in agreement with the auditors you can change the relative weightings of individual aspects (A1.1, A1.2, ..). In the column Weighting, you can select values for each aspect. The distribution of available points for individual aspects will then be adjusted automatically, so that the total of all aspects of an indicator result in 100%. | H17: Puede cambiar las ponderaciones que realiza la hoja de cálculo por defecto, siempre y cuando la auditoría esté de acuerdo. En la columna “Ponderación” puede seleccionar una opción del catálogo. La distribución de los puntos de cada uno de los aspectos se realiza automáticamente, de tal manera que la suma de todos los aspectos del tema siempre tiene como resultado el 100%. | I17: ="[fr]"&E17 -> [fr]Sie können, wenn es für ihr Unternehmen notwendig erscheint, in Abstimmung mit der AuditorIn die relativen Gewichtungen der einzelnen Aspekte (A1.1, A1.2, ...) verändern. In der Spalte "Gewichtung" ("Gew.") können Sie für jeden Aspekt Werte auswählen. Die Verteilung der möglichen Punkte auf die einzelnen Aspekte wird dann automatisch angepasst, sodass die Summe aller Aspekte eines Themas immer 100% ergibt. | J17: ="[pt]"&E17 -> [pt]Sie können, wenn es für ihr Unternehmen notwendig erscheint, in Abstimmung mit der AuditorIn die relativen Gewichtungen der einzelnen Aspekte (A1.1, A1.2, ...) verändern. In der Spalte "Gewichtung" ("Gew.") können Sie für jeden Aspekt Werte auswählen. Die Verteilung der möglichen Punkte auf die einzelnen Aspekte wird dann automatisch angepasst, sodass die Summe aller Aspekte eines Themas immer 100% ergibt. | K17: ="[gr]"&E17 -> [gr]Sie können, wenn es für ihr Unternehmen notwendig erscheint, in Abstimmung mit der AuditorIn die relativen Gewichtungen der einzelnen Aspekte (A1.1, A1.2, ...) verändern. In der Spalte "Gewichtung" ("Gew.") können Sie für jeden Aspekt Werte auswählen. Die Verteilung der möglichen Punkte auf die einzelnen Aspekte wird dann automatisch angepasst, sodass die Summe aller Aspekte eines Themas immer 100% ergibt.
A18: 16 | D18: =HLOOKUP($C$1,$E$1:$X$4910,ROW(D18)) -> The calculation automatically weights each theme’s total value against the data in the ‘Company details’ section and rounds it to a whole-number multiple of 10%. | E18: Bei der Berechnung werden die Gesamtwerte pro Thema automatisch entsprechend der Angaben im Faktenblatt gewichtet und auf ganzzahlige Vielfache von 10% gerundet. | F18: Nel calcolo, i totali per argomento vengono automaticamente ponderati in base alla scheda informativa e arrotondati ai multipli interi del 10%. | G18: The calculation automatically weights each theme’s total value against the data in the ‘Company details’ section and rounds it to a whole-number multiple of 10%. | H18: Los valores introducidos son ponderados de acuerdo a los datos introducidos en la hoja 2. Company Facts. El resultado es redondeado y presentado como número entero. | I18: ="[fr]"&E18 -> [fr]Bei der Berechnung werden die Gesamtwerte pro Thema automatisch entsprechend der Angaben im Faktenblatt gewichtet und auf ganzzahlige Vielfache von 10% gerundet. | J18: ="[pt]"&E18 -> [pt]Bei der Berechnung werden die Gesamtwerte pro Thema automatisch entsprechend der Angaben im Faktenblatt gewichtet und auf ganzzahlige Vielfache von 10% gerundet. | K18: ="[gr]"&E18 -> [gr]Bei der Berechnung werden die Gesamtwerte pro Thema automatisch entsprechend der Angaben im Faktenblatt gewichtet und auf ganzzahlige Vielfache von 10% gerundet.
D19: =HLOOKUP($C$1,$E$1:$X$4910,ROW(D19)) -> The ECG-Matrix displays your result in a table. | E19: Die "GW-Matrix" bietet einen tabellarischen Überblick über Ihr Ergebnis. | F19: La "matrice EBC" fornisce una panoramica tabellare del risultato. | G19: The ECG-Matrix displays your result in a table. | H19: La hoja “ECG-Matrix” muestra los resultados en una tabla resumen. | I19: ="[fr]"&E19 -> [fr]Die "GW-Matrix" bietet einen tabellarischen Überblick über Ihr Ergebnis. | J19: ="[pt]"&E19 -> [pt]Die "GW-Matrix" bietet einen tabellarischen Überblick über Ihr Ergebnis. | K19: ="[gr]"&E19 -> [gr]Die "GW-Matrix" bietet einen tabellarischen Überblick über Ihr Ergebnis.
D20: =HLOOKUP($C$1,$E$1:$X$4910,ROW(D20)) -> The ECG Matrix displays your result in a table. | E20: Die "GW-Matrix" bietet einen tabellarischen Blick auf Ihr Ergebnis. | F20: La "matrice EBC" offre una vista tabellare del risultato. | G20: The ECG Matrix displays your result in a table. | H20: La hoja “ECG-Matrix” muestra los resultados de la puntuación presentando una vista general en forma de matriz (tabla). | I20: ="[fr]"&E20 -> [fr]Die "GW-Matrix" bietet einen tabellarischen Blick auf Ihr Ergebnis. | J20: ="[pt]"&E20 -> [pt]Die "GW-Matrix" bietet einen tabellarischen Blick auf Ihr Ergebnis. | K20: ="[gr]"&E20 -> [gr]Die "GW-Matrix" bietet einen tabellarischen Blick auf Ihr Ergebnis.
D21: =HLOOKUP($C$1,$E$1:$X$4910,ROW(D21)) -> The values-star displays your result arranged by value as a graphic. | E21: Der "Werte-Stern" zeigt schließlich Ihr Ergebnis nach Werten gegliedert in graphischer Form. | F21: La "stella dei valori" mostra infine il risultato in base a valori strutturati in forma grafica. | G21: The values-star displays your result arranged by value as a graphic. | H21: La hoja “Values” muestra un diagrama de araña en el que se muestran las puntuaciones según “valor” o columna de la matriz. | I21: ="[fr]"&E21 -> [fr]Der "Werte-Stern" zeigt schließlich Ihr Ergebnis nach Werten gegliedert in graphischer Form. | J21: ="[pt]"&E21 -> [pt]Der "Werte-Stern" zeigt schließlich Ihr Ergebnis nach Werten gegliedert in graphischer Form. | K21: ="[gr]"&E21 -> [gr]Der "Werte-Stern" zeigt schließlich Ihr Ergebnis nach Werten gegliedert in graphischer Form.
D22: =HLOOKUP($C$1,$E$1:$X$4910,ROW(D22)) -> The group-star displays your result arranged by stakeholder as a graphic. | E22: Der "Gruppen-Stern" zeigt schließlich Ihr Ergebnis nach Berührungsgruppen gegliedert in graphischer Form. | F22: La "stella dei gruppi" mostra infine il risultato in base a gruppi d’interesse strutturati in forma grafica. | G22: The group-star displays your result arranged by stakeholder as a graphic. | H22: La hoja “Stakeholders” muestra un diagrama de araña en el que se muestran las puntuaciones según “grupo de interés” o fila de la matriz. | I22: ="[fr]"&E22 -> [fr]Der "Gruppen-Stern" zeigt schließlich Ihr Ergebnis nach Berührungsgruppen gegliedert in graphischer Form. | J22: ="[pt]"&E22 -> [pt]Der "Gruppen-Stern" zeigt schließlich Ihr Ergebnis nach Berührungsgruppen gegliedert in graphischer Form. | K22: ="[gr]"&E22 -> [gr]Der "Gruppen-Stern" zeigt schließlich Ihr Ergebnis nach Berührungsgruppen gegliedert in graphischer Form.
D23: =HLOOKUP($C$1,$E$1:$X$4910,ROW(D23)) -> The theme-star displays the result of your themes as a graphic. | E23: Der "Themen-Stern" zeigt schließlich Ihr Ergebnis in allen Themen in graphischer Form. | F23: La "stella dei temi" mostra finalmente il risultato in tutti i temi in forma grafica. | G23: The theme-star displays the result of your themes as a graphic. | H23: La hoja “Topics” muestra un diagrama de araña en el que se muestran las puntuaciones de cada tema. | I23: ="[fr]"&E23 -> [fr]Der "Themen-Stern" zeigt schließlich Ihr Ergebnis in allen Themen in graphischer Form. | J23: ="[pt]"&E23 -> [pt]Der "Themen-Stern" zeigt schließlich Ihr Ergebnis in allen Themen in graphischer Form. | K23: ="[gr]"&E23 -> [gr]Der "Themen-Stern" zeigt schließlich Ihr Ergebnis in allen Themen in graphischer Form.
D24: =HLOOKUP($C$1,$E$1:$X$4910,ROW(D24)) -> This is a description of the weighting model. | E24: Hier finden Sie eine Beschreibung der Gewichtungsmodelles. | F24: Qui potete trovare una descrizione del modello di ponderazione. | G24: This is a description of the weighting model. | H24: En la hoja “Descr. Weighting” se encuentra una descripción del método de ponderación. | I24: ="[fr]"&E24 -> [fr]Hier finden Sie eine Beschreibung der Gewichtungsmodelles. | J24: ="[pt]"&E24 -> [pt]Hier finden Sie eine Beschreibung der Gewichtungsmodelles. | K24: ="[gr]"&E24 -> [gr]Hier finden Sie eine Beschreibung der Gewichtungsmodelles.
D25: =HLOOKUP($C$1,$E$1:$X$4910,ROW(D25)) -> This is where the calculation determines how the individual stakeholder groups and themes are weighted. | E25: Hier erfolgt die Berechnung wie die einzelnen Berührungsgruppen und Themen gewichtet werden. | F25: Qui il calcolo avviene come vengono pesati i singoli gruppi d’interesse ed i temi. | G25: This is where the calculation determines how the individual stakeholder groups and themes are weighted. | H25: En la hoja “Weighting” se realiza el cálculo para las ponderaciones de los grupos de interés y temas. | I25: ="[fr]"&E25 -> [fr]Hier erfolgt die Berechnung wie die einzelnen Berührungsgruppen und Themen gewichtet werden. | J25: ="[pt]"&E25 -> [pt]Hier erfolgt die Berechnung wie die einzelnen Berührungsgruppen und Themen gewichtet werden. | K25: ="[gr]"&E25 -> [gr]Hier erfolgt die Berechnung wie die einzelnen Berührungsgruppen und Themen gewichtet werden.
D26: =HLOOKUP($C$1,$E$1:$X$4910,ROW(D26)) -> This contains an assessment of the relevance of supply chains and environmental sustainability for all industry sectors, used in the weighting. | E26: Enthält Einschätzungen der Relevanz von Zulieferkette und ökologische Nachhaltigkeit für alle Branchen,, die für die Gewichtung herangezogen werden. | F26: Include stime della dell'importanza della rete dei fornitori e della sostenibilità ambientale per tutti i settori utilizzati per la ponderazione. | G26: This contains an assessment of the relevance of supply chains and environmental sustainability for all industry sectors, used in the weighting. | H26: Esta hoja contiene estimaciones sobre la relevancia de la cadena de suministro y sostenibilidad medioambiental de todos los sectores. Esta información se utiliza para realizar la ponderación. | I26: ="[fr]"&E26 -> [fr]Enthält Einschätzungen der Relevanz von Zulieferkette und ökologische Nachhaltigkeit für alle Branchen,, die für die Gewichtung herangezogen werden. | J26: ="[pt]"&E26 -> [pt]Enthält Einschätzungen der Relevanz von Zulieferkette und ökologische Nachhaltigkeit für alle Branchen,, die für die Gewichtung herangezogen werden. | K26: ="[gr]"&E26 -> [gr]Enthält Einschätzungen der Relevanz von Zulieferkette und ökologische Nachhaltigkeit für alle Branchen,, die für die Gewichtung herangezogen werden.
D27: =HLOOKUP($C$1,$E$1:$X$4910,ROW(D27)) -> This contains statistics for countries and regions used in the weighting. | E27: Enthält Statistiken für Länder und Regionen, die für die Gewichtung herangezogen werden. | F27: Contiene statistiche per paesi e regioni utilizzati per la ponderazione. | G27: This contains statistics for countries and regions used in the weighting. | H27: Esta hoja contiene estadísticas de países y regiones que son utilizadas para realizar las ponderaciones. | I27: ="[fr]"&E27 -> [fr]Enthält Statistiken für Länder und Regionen, die für die Gewichtung herangezogen werden. | J27: ="[pt]"&E27 -> [pt]Enthält Statistiken für Länder und Regionen, die für die Gewichtung herangezogen werden. | K27: ="[gr]"&E27 -> [gr]Enthält Statistiken für Länder und Regionen, die für die Gewichtung herangezogen werden.
D28: =HLOOKUP($C$1,$E$1:$X$4910,ROW(D28)) -> 2. Company details | E28: 2. Fakten zum Unternehmen | F28: 2. Fatti sull'impresa | G28: 2. Company details | H28: 2. Datos de la empresa | I28: ="[fr]"&E28 -> [fr]2. Fakten zum Unternehmen | J28: ="[pt]"&E28 -> [pt]2. Fakten zum Unternehmen | K28: ="[gr]"&E28 -> [gr]2. Fakten zum Unternehmen
D29: =HLOOKUP($C$1,$E$1:$X$4910,ROW(D29)) -> 3. Scoring | E29: 3. Berechnung | F29: 3. calcolo | G29: 3. Scoring | H29: 3. Cálculo | I29: ="[fr]"&E29 -> [fr]3. Berechnung | J29: ="[pt]"&E29 -> [pt]3. Berechnung | K29: ="[gr]"&E29 -> [gr]3. Berechnung
D30: =HLOOKUP($C$1,$E$1:$X$4910,ROW(D30)) -> 4. ECG Matrix | E30: 4. GW-Matrix | F30: 4. matrice del bene comune | G30: 4. ECG Matrix | H30: 4. Matriz EBC | I30: ="[fr]"&E30 -> [fr]4. GW-Matrix | J30: ="[pt]"&E30 -> [pt]4. GW-Matrix | K30: ="[gr]"&E30 -> [gr]4. GW-Matrix
D31: =HLOOKUP($C$1,$E$1:$X$4910,ROW(D31)) -> 5. Values star | E31: 5. Werte-Stern | F31: 5. valori stella | G31: 5. Values star | H31: 5. Diagrama valores | I31: ="[fr]"&E31 -> [fr]5. Werte-Stern | J31: ="[pt]"&E31 -> [pt]5. Werte-Stern | K31: ="[gr]"&E31 -> [gr]5. Werte-Stern
D32: =HLOOKUP($C$1,$E$1:$X$4910,ROW(D32)) -> 6. Group star | E32: 6. Gruppen-Stern | F32: 6. gruppi stella | G32: 6. Group star | H32: 6. Diagrama grupos de interés | I32: ="[fr]"&E32 -> [fr]6. Gruppen-Stern | J32: ="[pt]"&E32 -> [pt]6. Gruppen-Stern | K32: ="[gr]"&E32 -> [gr]6. Gruppen-Stern
D33: =HLOOKUP($C$1,$E$1:$X$4910,ROW(D33)) -> 7. Theme star | E33: 7. Themen-Stern | F33: 7. argomenti stella | G33: 7. Theme star | H33: 7. Diagrama temas | I33: ="[fr]"&E33 -> [fr]7. Themen-Stern | J33: ="[pt]"&E33 -> [pt]7. Themen-Stern | K33: ="[gr]"&E33 -> [gr]7. Themen-Stern
D34: =HLOOKUP($C$1,$E$1:$X$4910,ROW(D34)) -> 8. Weighting model description | E34: 8. Beschreibung Gewichtungsmodell | F34: 8. Modello di ponderazione della descrizione | G34: 8. Weighting model description | H34: 8. Descripción del método de ponderación | I34: ="[fr]"&E34 -> [fr]8. Beschreibung Gewichtungsmodell | J34: ="[pt]"&E34 -> [pt]8. Beschreibung Gewichtungsmodell | K34: ="[gr]"&E34 -> [gr]8. Beschreibung Gewichtungsmodell
D35: =HLOOKUP($C$1,$E$1:$X$4910,ROW(D35)) -> 9. Weighting (hidden) | E35: 9. Gewichtung (ausgeblendet) | F35: 9. Ponderazione (nascosta) | G35: 9. Weighting (hidden) | H35: 9. Ponderación (oculta) | I35: ="[fr]"&E35 -> [fr]9. Gewichtung (ausgeblendet) | J35: ="[pt]"&E35 -> [pt]9. Gewichtung (ausgeblendet) | K35: ="[gr]"&E35 -> [gr]9. Gewichtung (ausgeblendet)
D36: =HLOOKUP($C$1,$E$1:$X$4910,ROW(D36)) -> 10. Industry sectors (hidden) | E36: 10. Branchen (ausgeblendet) | F36: 10. Settori (nascosti) | G36: 10. Industry sectors (hidden) | H36: 10. Sectores (oculta) | I36: ="[fr]"&E36 -> [fr]10. Branchen (ausgeblendet) | J36: ="[pt]"&E36 -> [pt]10. Branchen (ausgeblendet) | K36: ="[gr]"&E36 -> [gr]10. Branchen (ausgeblendet)
D37: =HLOOKUP($C$1,$E$1:$X$4910,ROW(D37)) -> 11. Countries (hidden) | E37: 11. Länder und Regionen (ausgeblendet) | F37: 11. Paesi e regioni (nascosti) | G37: 11. Countries (hidden) | H37: 11. Países y regiones (oculta) | I37: ="[fr]"&E37 -> [fr]11. Länder und Regionen (ausgeblendet) | J37: ="[pt]"&E37 -> [pt]11. Länder und Regionen (ausgeblendet) | K37: ="[gr]"&E37 -> [gr]11. Länder und Regionen (ausgeblendet)
D39: =HLOOKUP($C$1,$E$1:$X$4910,ROW(D39)) -> 0
D40: =HLOOKUP($C$1,$E$1:$X$4910,ROW(D40)) -> KEY | E40: LEGENDE | F40: LEGENDA | G40: KEY | H40: LEYENDA | I40: ="[fr]"&E40 -> [fr]LEGENDE | J40: ="[pt]"&E40 -> [pt]LEGENDE | K40: ="[gr]"&E40 -> [gr]LEGENDE
D41: =HLOOKUP($C$1,$E$1:$X$4910,ROW(D41)) -> Field is editable (green frame, dark green text) | E41: Feld ist beschreibbar (grüner Rahmen, dunkelgrüne Schrift) | F41: Il campo è descrivibile (cornici nere, scritta verde scuro) | G41: Field is editable (green frame, dark green text) | H41: Celda editable (borde verde, letra verde oscura) | I41: ="[fr]"&E41 -> [fr]Feld ist beschreibbar (grüner Rahmen, dunkelgrüne Schrift) | J41: ="[pt]"&E41 -> [pt]Feld ist beschreibbar (grüner Rahmen, dunkelgrüne Schrift) | K41: ="[gr]"&E41 -> [gr]Feld ist beschreibbar (grüner Rahmen, dunkelgrüne Schrift)
D42: =HLOOKUP($C$1,$E$1:$X$4910,ROW(D42)) -> Feld is read-only (grey frame, dark grey text) | E42: Feld ist nicht beschreibbar (grauer Rahmen, dunkelgraue Schrift) | F42: Il campo non è descrivibile (cornice grigia, scritta grigio scuro) | G42: Feld is read-only (grey frame, dark grey text) | H42: Celda protegida (borde gris, letra gris oscura) | I42: ="[fr]"&E42 -> [fr]Feld ist nicht beschreibbar (grauer Rahmen, dunkelgraue Schrift) | J42: ="[pt]"&E42 -> [pt]Feld ist nicht beschreibbar (grauer Rahmen, dunkelgraue Schrift) | K42: ="[gr]"&E42 -> [gr]Feld ist nicht beschreibbar (grauer Rahmen, dunkelgraue Schrift)
D43: =HLOOKUP($C$1,$E$1:$X$4910,ROW(D43)) -> non valid value entry (for correct calculation change value) | E43: unerlaubter Wert eingegeben (zur korrekten Berechnung Wert ändern) | F43: È stato inserito un valore non permesso (per un calcolo corretto cambiare valore) | G43: non valid value entry (for correct calculation change value) | H43: Valor erróneo (cambie el valor para realizar un cálculo correcto) | I43: ="[fr]"&E43 -> [fr]unerlaubter Wert eingegeben (zur korrekten Berechnung Wert ändern) | J43: ="[pt]"&E43 -> [pt]unerlaubter Wert eingegeben (zur korrekten Berechnung Wert ändern) | K43: ="[gr]"&E43 -> [gr]unerlaubter Wert eingegeben (zur korrekten Berechnung Wert ändern)
D44: =HLOOKUP($C$1,$E$1:$X$4910,ROW(D44)) -> Values are not consistent | E44: fehlerhafte Eingabe | F44: fehlerhafte Eingabe | G44: Values are not consistent | H44: Los valores no son consistentes | I44: ="[fr]"&E44 -> [fr]fehlerhafte Eingabe | J44: ="[pt]"&E44 -> [pt]fehlerhafte Eingabe | K44: ="[gr]"&E44 -> [gr]fehlerhafte Eingabe
D45: =HLOOKUP($C$1,$E$1:$X$4910,ROW(D45)) -> 0
D46: =HLOOKUP($C$1,$E$1:$X$4910,ROW(D46)) -> 0
D47: =HLOOKUP($C$1,$E$1:$X$4910,ROW(D47)) -> 0
D48: =HLOOKUP($C$1,$E$1:$X$4910,ROW(D48)) -> 0
D49: =HLOOKUP($C$1,$E$1:$X$4910,ROW(D49)) -> 0
D50: =HLOOKUP($C$1,$E$1:$X$4910,ROW(D50)) -> 0
D51: =HLOOKUP($C$1,$E$1:$X$4910,ROW(D51)) -> 0
D52: =HLOOKUP($C$1,$E$1:$X$4910,ROW(D52)) -> yes | E52: ja | F52: si | G52: yes | H52: Sí | I52: ="[fr]"&E52 -> [fr]ja | J52: ="[pt]"&E52 -> [pt]ja | K52: ="[gr]"&E52 -> [gr]ja
D53: =HLOOKUP($C$1,$E$1:$X$4910,ROW(D53)) -> no | E53: nein | F53: no | G53: no | H53: No | I53: Pas | J53: Nao | K53: ="[gr]"&E53 -> [gr]nein
D54: =HLOOKUP($C$1,$E$1:$X$4910,ROW(D54)) -> CONTACT | E54: KONTAKT | F54: CONTATTO | G54: CONTACT | H54: CONTACTO | I54: ="[fr]"&E54 -> [fr]KONTAKT | J54: ="[pt]"&E54 -> [pt]KONTAKT | K54: ="[gr]"&E54 -> [gr]KONTAKT
D55: =HLOOKUP($C$1,$E$1:$X$4910,ROW(D55)) -> Questions regarding preparation of balance sheet: beratung@gemeinwohl-oekonomie.org (GWÖ-BeraterInnen); | E55: Fragen zur Bilanz-Erstellung: beratung@gemeinwohl-oekonomie.org (GWÖ-BeraterInnen); | F55: Domande per il bilancio: info@economia-del-ben-comune.it (consulenti EBC) | G55: Questions regarding preparation of balance sheet: beratung@gemeinwohl-oekonomie.org (GWÖ-BeraterInnen); | H55: Preguntas sobre como elaborar el balance del Bien Común: nodo-empresas@economia-del-bien-comun.es | I55: ="[fr]"&E55 -> [fr]Fragen zur Bilanz-Erstellung: beratung@gemeinwohl-oekonomie.org (GWÖ-BeraterInnen); | J55: ="[pt]"&E55 -> [pt]Fragen zur Bilanz-Erstellung: beratung@gemeinwohl-oekonomie.org (GWÖ-BeraterInnen); | K55: ="[gr]"&E55 -> [gr]Fragen zur Bilanz-Erstellung: beratung@gemeinwohl-oekonomie.org (GWÖ-BeraterInnen);
D56: =HLOOKUP($C$1,$E$1:$X$4910,ROW(D56)) -> Questions regarding audit: audit@gemeinwohl-oekonomie.org (GWÖ-AuditorInnen); | E56: Fragen zur Auditierung: audit@gemeinwohl-oekonomie.org (GWÖ-AuditorInnen); | F56: Domande per l'audit: audit@febc.eu (Verificatori/auditori EBC) | G56: Questions regarding audit: audit@gemeinwohl-oekonomie.org (GWÖ-AuditorInnen); | H56: Preguntas sobre la auditoría: nodo-empresas@economia-del-bien-comun.es | I56: ="[fr]"&E56 -> [fr]Fragen zur Auditierung: audit@gemeinwohl-oekonomie.org (GWÖ-AuditorInnen); | J56: ="[pt]"&E56 -> [pt]Fragen zur Auditierung: audit@gemeinwohl-oekonomie.org (GWÖ-AuditorInnen); | K56: ="[gr]"&E56 -> [gr]Fragen zur Auditierung: audit@gemeinwohl-oekonomie.org (GWÖ-AuditorInnen);
D57: =HLOOKUP($C$1,$E$1:$X$4910,ROW(D57)) -> Feedback on the development of the Matrix: bilanz@ecogood.org (Matrix Development Team) | E57: Weiterentwicklung der Matrix: bilanz@ecogood.org (GWÖ-Matrix Entwicklungsteam); | F57: ="[it]"&E57 -> [it]Weiterentwicklung der Matrix: bilanz@ecogood.org (GWÖ-Matrix Entwicklungsteam); | G57: Feedback on the development of the Matrix: bilanz@ecogood.org (Matrix Development Team) | H57: Desarrollo de la matriz: bilanz@ecogood.org (Equipo de desarrollo de la matriz EBC) | I57: ="[fr]"&E57 -> [fr]Weiterentwicklung der Matrix: bilanz@ecogood.org (GWÖ-Matrix Entwicklungsteam); | J57: ="[pt]"&E57 -> [pt]Weiterentwicklung der Matrix: bilanz@ecogood.org (GWÖ-Matrix Entwicklungsteam); | K57: ="[gr]"&E57 -> [gr]Weiterentwicklung der Matrix: bilanz@ecogood.org (GWÖ-Matrix Entwicklungsteam);
D58: =HLOOKUP($C$1,$E$1:$X$4910,ROW(D58)) -> Excel programming: Christian Loy (christian.loy@gmx.at); Christian Kozina; Multilanguage tool: Bernhard Oberrauch | E58: Excel-Programmierung: Christian Loy (christian.loy@gmx.at); Christian Kozina; Multilanguage-tool: Bernhard Oberrauch | F58: Programmazione Excel: Christian Loy (christian.loy@gmx.at); Christian Kozina; Multilanguage-tool: Bernhard Oberrauch (info@a-bo.net) | G58: Excel programming: Christian Loy (christian.loy@gmx.at); Christian Kozina; Multilanguage tool: Bernhard Oberrauch | H58: Programación en Excel: Christian Loy (christian.loy@gmx.at);Christian Kozina; Multilanguage-tool: Bernhard Oberrauch | I58: ="[fr]"&E58 -> [fr]Excel-Programmierung: Christian Loy (christian.loy@gmx.at); Christian Kozina; Multilanguage-tool: Bernhard Oberrauch | J58: ="[pt]"&E58 -> [pt]Excel-Programmierung: Christian Loy (christian.loy@gmx.at); Christian Kozina; Multilanguage-tool: Bernhard Oberrauch | K58: ="[gr]"&E58 -> [gr]Excel-Programmierung: Christian Loy (christian.loy@gmx.at); Christian Kozina; Multilanguage-tool: Bernhard Oberrauch
D59: =HLOOKUP($C$1,$E$1:$X$4910,ROW(D59)) -> Contents: ECG-Matrix Development Team | E59: Inhalte: GWÖ-Matrix Entwicklungsteam | F59: ="[it]"&E59 -> [it]Inhalte: GWÖ-Matrix Entwicklungsteam | G59: Contents: ECG-Matrix Development Team | H59: Contenido: Equipo de desarrollo de la matriz EBC | I59: ="[fr]"&E59 -> [fr]Inhalte: GWÖ-Matrix Entwicklungsteam | J59: ="[pt]"&E59 -> [pt]Inhalte: GWÖ-Matrix Entwicklungsteam | K59: ="[gr]"&E59 -> [gr]Inhalte: GWÖ-Matrix Entwicklungsteam
D60: =HLOOKUP($C$1,$E$1:$X$4910,ROW(D60)) -> NOTES | E60: ANMERKUNGEN | F60: ANNOTAZIONI | G60: NOTES | H60: NOTAS ACLARATORIAS | I60: ="[fr]"&E60 -> [fr]ANMERKUNGEN | J60: ="[pt]"&E60 -> [pt]ANMERKUNGEN | K60: ="[gr]"&E60 -> [gr]ANMERKUNGEN
D61: =HLOOKUP($C$1,$E$1:$X$4910,ROW(D61)) -> All sheets are optimised for printing on A4 format (landscape or portrait). The height of rows can be adjusted, if you enter more text | E61: Alle Tabellen sind optimiert für den Ausdruck auf A4 (Hoch- oder Querformat). Die Höhe der Zeilen ist veränderbar, falls Sie mehr Text eingeben wollen. | F61: Tutte le tabelle sono ottimizzate per la stampa in A4 (verticale o orizzontale). L’Altezza delle celle è modificabile, nel caso Lei dovesse inserire più testo. | G61: All sheets are optimised for printing on A4 format (landscape or portrait). The height of rows can be adjusted, if you enter more text | H61: Todas las hojas están editadas de tal manera que puedan imprimirse en un A4 (horizontal o vertical). Si necesita más espacio para añadir más texto puede cambiar la altura de las filas. | I61: ="[fr]"&E61 -> [fr]Alle Tabellen sind optimiert für den Ausdruck auf A4 (Hoch- oder Querformat). Die Höhe der Zeilen ist veränderbar, falls Sie mehr Text eingeben wollen. | J61: ="[pt]"&E61 -> [pt]Alle Tabellen sind optimiert für den Ausdruck auf A4 (Hoch- oder Querformat). Die Höhe der Zeilen ist veränderbar, falls Sie mehr Text eingeben wollen. | K61: ="[gr]"&E61 -> [gr]Alle Tabellen sind optimiert für den Ausdruck auf A4 (Hoch- oder Querformat). Die Höhe der Zeilen ist veränderbar, falls Sie mehr Text eingeben wollen.
D62: =HLOOKUP($C$1,$E$1:$X$4910,ROW(D62)) -> GENERAL INFORMATION ABOUT THE COMPANY | E62: ALLGEMEINE ANGABEN ZUM UNTERNEHMEN | F62: Dati dell'impresa | G62: GENERAL INFORMATION ABOUT THE COMPANY | H62: INFORMACIÓN GENERAL SOBRE LA EMPRESA | I62: ="[fr]"&E62 -> [fr]ALLGEMEINE ANGABEN ZUM UNTERNEHMEN | J62: ="[pt]"&E62 -> [pt]ALLGEMEINE ANGABEN ZUM UNTERNEHMEN | K62: ="[gr]"&E62 -> [gr]ALLGEMEINE ANGABEN ZUM UNTERNEHMEN
D63: =HLOOKUP($C$1,$E$1:$X$4910,ROW(D63)) -> Please complete all fields. | E63: Bitte vollständig ausfüllen! | F63: Per favore compili completamente! | G63: Please complete all fields. | H63: Por favor introduzca todos los datos | I63: ="[fr]"&E63 -> [fr]Bitte vollständig ausfüllen! | J63: ="[pt]"&E63 -> [pt]Bitte vollständig ausfüllen! | K63: ="[gr]"&E63 -> [gr]Bitte vollständig ausfüllen!
D64: =HLOOKUP($C$1,$E$1:$X$4910,ROW(D64)) -> Name of Company / Organisation: | E64: Name des Unternehmens: | F64: Nome dell'impresa: | G64: Name of Company / Organisation: | H64: Nombre de la empresa: | I64: ="[fr]"&E64 -> [fr]Name des Unternehmens: | J64: ="[pt]"&E64 -> [pt]Name des Unternehmens: | K64: ="[gr]"&E64 -> [gr]Name des Unternehmens:
D65: =HLOOKUP($C$1,$E$1:$X$4910,ROW(D65)) -> Address: | E65: Anschrift: | F65: Indirizzo: | G65: Address: | H65: Dirección: | I65: ="[fr]"&E65 -> [fr]Anschrift: | J65: ="[pt]"&E65 -> [pt]Anschrift: | K65: ="[gr]"&E65 -> [gr]Anschrift:
D66: =HLOOKUP($C$1,$E$1:$X$4910,ROW(D66)) -> Country: | E66: Staat: | F66: Stato: | G66: Country: | H66: Estado: | I66: ="[fr]"&E66 -> [fr]Staat: | J66: ="[pt]"&E66 -> [pt]Staat: | K66: ="[gr]"&E66 -> [gr]Staat:
D67: =HLOOKUP($C$1,$E$1:$X$4910,ROW(D67)) -> Industry sector: | E67: Branche: | F67: Settore: | G67: Industry sector: | H67: Sector: | I67: ="[fr]"&E67 -> [fr]Branche: | J67: ="[pt]"&E67 -> [pt]Branche: | K67: ="[gr]"&E67 -> [gr]Branche:
D68: =HLOOKUP($C$1,$E$1:$X$4910,ROW(D68)) -> Website: | E68: Website: | F68: Sito web: | G68: Website: | H68: Página web: | I68: ="[fr]"&E68 -> [fr]Website: | J68: ="[pt]"&E68 -> [pt]Website: | K68: ="[gr]"&E68 -> [gr]Website:
D69: =HLOOKUP($C$1,$E$1:$X$4910,ROW(D69)) -> Number of employees | E69: Anzahl der MitarbeiterInnen: | F69: Presenza adetti | G69: Number of employees | H69: Número de trabajadores: | I69: ="[fr]"&E69 -> [fr]Anzahl der MitarbeiterInnen: | J69: ="[pt]"&E69 -> [pt]Anzahl der MitarbeiterInnen: | K69: ="[gr]"&E69 -> [gr]Anzahl der MitarbeiterInnen:
D70: =HLOOKUP($C$1,$E$1:$X$4910,ROW(D70)) -> Sole trader (ST) (or single-person) | E70: Ein-Personen-Unternehmen: | F70: Impresa "di un collabpratore": | G70: Sole trader (ST) (or single-person) | H70: Empresas unipersonales: | I70: ="[fr]"&E70 -> [fr]Ein-Personen-Unternehmen: | J70: ="[pt]"&E70 -> [pt]Ein-Personen-Unternehmen: | K70: ="[gr]"&E70 -> [gr]Ein-Personen-Unternehmen:
D71: =HLOOKUP($C$1,$E$1:$X$4910,ROW(D71)) -> (Note: If yes, the values for STs will be filled in automatically for the calculation) | E71: (Hinweis: Wenn ja, werden die für EPUs gültigen Werte automatisch in die Berechnung übernommen.) | F71: (Attenzione: se la risposta è si, I valori validi per l’impresa individuale vengono accettati automaticamente nel calcolo.) | G71: (Note: If yes, the values for STs will be filled in automatically for the calculation) | H71: (Nota: si introduce sí, entonces se aplican algunos valores automáticos en la ponderación) | I71: ="[fr]"&E71 -> [fr](Hinweis: Wenn ja, werden die für EPUs gültigen Werte automatisch in die Berechnung übernommen.) | J71: ="[pt]"&E71 -> [pt](Hinweis: Wenn ja, werden die für EPUs gültigen Werte automatisch in die Berechnung übernommen.) | K71: ="[gr]"&E71 -> [gr](Hinweis: Wenn ja, werden die für EPUs gültigen Werte automatisch in die Berechnung übernommen.)
D72: =HLOOKUP($C$1,$E$1:$X$4910,ROW(D72)) -> Balance year: | E72: Bilanzjahr: | F72: bilancio anno: | G72: Balance year: | H72: Año del balance: | I72: ="[fr]"&E72 -> [fr]Bilanzjahr: | J72: ="[pt]"&E72 -> [pt]Bilanzjahr: | K72: ="[gr]"&E72 -> [gr]Bilanzjahr:
D73: =HLOOKUP($C$1,$E$1:$X$4910,ROW(D73)) -> Document created by: | E73: ErstellerIn: | F73: Compilatore/trice: | G73: Document created by: | H73: Redactor del balance: | I73: ="[fr]"&E73 -> [fr]ErstellerIn: | J73: ="[pt]"&E73 -> [pt]ErstellerIn: | K73: ="[gr]"&E73 -> [gr]ErstellerIn:
D74: =HLOOKUP($C$1,$E$1:$X$4910,ROW(D74)) -> Email address: | E74: E-Mail-Adresse: | F74: indirizzo mail: | G74: Email address: | H74: E-mail: | I74: ="[fr]"&E74 -> [fr]E-Mail-Adresse: | J74: ="[pt]"&E74 -> [pt]E-Mail-Adresse: | K74: ="[gr]"&E74 -> [gr]E-Mail-Adresse:
D75: =HLOOKUP($C$1,$E$1:$X$4910,ROW(D75)) -> Phone number: | E75: Telefonnummer: | F75: numero di telefono: | G75: Phone number: | H75: Teléfono: | I75: ="[fr]"&E75 -> [fr]Telefonnummer: | J75: ="[pt]"&E75 -> [pt]Telefonnummer: | K75: ="[gr]"&E75 -> [gr]Telefonnummer:
D76: =HLOOKUP($C$1,$E$1:$X$4910,ROW(D76)) -> Consultant: | E76: BeraterIn: | F76: Consulente: | G76: Consultant: | H76: Consultor/a: | I76: ="[fr]"&E76 -> [fr]BeraterIn: | J76: ="[pt]"&E76 -> [pt]BeraterIn: | K76: ="[gr]"&E76 -> [gr]BeraterIn:
D77: =HLOOKUP($C$1,$E$1:$X$4910,ROW(D77)) -> E-mail address: | E77: E-Mail-Adresse: | F77: indirizzo mail: | G77: E-mail address: | H77: E-mail: | I77: ="[fr]"&E77 -> [fr]E-Mail-Adresse: | J77: ="[pt]"&E77 -> [pt]E-Mail-Adresse: | K77: ="[gr]"&E77 -> [gr]E-Mail-Adresse:
D78: =HLOOKUP($C$1,$E$1:$X$4910,ROW(D78)) -> Phone Number | E78: Telefonnummer: | F78: numero di telefono: | G78: Phone Number | H78: Teléfono: | I78: ="[fr]"&E78 -> [fr]Telefonnummer: | J78: ="[pt]"&E78 -> [pt]Telefonnummer: | K78: ="[gr]"&E78 -> [gr]Telefonnummer:
D79: =HLOOKUP($C$1,$E$1:$X$4910,ROW(D79)) -> Short description of Company / Organisation | E79: Kurzbeschreibung des Unternehmens: | F79: Breve descrizione dell'impresa: | G79: Short description of Company / Organisation | H79: Breve descripción de la empresa: | I79: ="[fr]"&E79 -> [fr]Kurzbeschreibung des Unternehmens: | J79: ="[pt]"&E79 -> [pt]Kurzbeschreibung des Unternehmens: | K79: ="[gr]"&E79 -> [gr]Kurzbeschreibung des Unternehmens:
D80: =HLOOKUP($C$1,$E$1:$X$4910,ROW(D80)) -> Additional comments: | E80: Sonstige Anmerkungen: | F80: Altre osservazioni: | G80: Additional comments: | H80: Otros comentarios: | I80: ="[fr]"&E80 -> [fr]Sonstige Anmerkungen: | J80: ="[pt]"&E80 -> [pt]Sonstige Anmerkungen: | K80: ="[gr]"&E80 -> [gr]Sonstige Anmerkungen:
D81: =HLOOKUP($C$1,$E$1:$X$4910,ROW(D81)) -> CALCULATION OF INDIVIDUAL INDICATORS | E81: BERECHNUNG DER EINZELNEN THEMEN | F81: Calcolo dei singoli criteri | G81: CALCULATION OF INDIVIDUAL INDICATORS | H81: CÁLCULO DE CADA UNO DE LOS TEMAS | I81: ="[fr]"&E81 -> [fr]BERECHNUNG DER EINZELNEN THEMEN | J81: ="[pt]"&E81 -> [pt]BERECHNUNG DER EINZELNEN THEMEN | K81: ="[gr]"&E81 -> [gr]BERECHNUNG DER EINZELNEN THEMEN
D82: =HLOOKUP($C$1,$E$1:$X$4910,ROW(D82)) -> Company / Organisation | E82: Unternehmen | F82: Azienda | G82: Company / Organisation | H82: Empresa: | I82: ="[fr]"&E82 -> [fr]Unternehmen | J82: Empresa | K82: ="[gr]"&E82 -> [gr]Unternehmen
D83: =HLOOKUP($C$1,$E$1:$X$4910,ROW(D83)) -> Period under review | E83: Bilanz-Jahr | F83: Anno di riferimento | G83: Period under review | H83: Año del balance: | I83: ="[fr]"&E83 -> [fr]Bilanz-Jahr | J83: Ano do Balançao | K83: ="[gr]"&E83 -> [gr]Bilanz-Jahr
D84: =HLOOKUP($C$1,$E$1:$X$4910,ROW(D84)) -> 0
D85: =HLOOKUP($C$1,$E$1:$X$4910,ROW(D85)) -> 0
D86: =HLOOKUP($C$1,$E$1:$X$4910,ROW(D86)) -> 0
D87: =HLOOKUP($C$1,$E$1:$X$4910,ROW(D87)) -> 0
D88: =HLOOKUP($C$1,$E$1:$X$4910,ROW(D88)) -> 0
D89: =HLOOKUP($C$1,$E$1:$X$4910,ROW(D89)) -> 0
D90: =HLOOKUP($C$1,$E$1:$X$4910,ROW(D90)) -> CALCULATION OF INDIVIDUAL ASPECTS | E90: BERECHNUNG DER EINZELNEN ASPEKTE | F90: Calcolo detagliato dei singoli aspetti | G90: CALCULATION OF INDIVIDUAL ASPECTS | H90: CÁLCULO DE CADA UNO DE LOS ASPECTOS | I90: ="[fr]"&E90 -> [fr]BERECHNUNG DER EINZELNEN ASPEKTE | J90: CÁLCULO DETALHADO DOS ASPECTOS | K90: ="[gr]"&E90 -> [gr]BERECHNUNG DER EINZELNEN ASPEKTE
D91: =HLOOKUP($C$1,$E$1:$X$4910,ROW(D91)) -> Common Good Balance Calculator | E91: Gemeinwohl-Bilanz-Rechner | F91: Calcolatore del bilancio del Bene Comune | G91: Common Good Balance Calculator | H91: Calculadora del Bien Común | I91: ="[fr]"&E91 -> [fr]Gemeinwohl-Bilanz-Rechner | J91: Tabela de Cálculo do Balançao do Bem Comum | K91: ="[gr]"&E91 -> [gr]Gemeinwohl-Bilanz-Rechner
D92: =HLOOKUP($C$1,$E$1:$X$4910,ROW(D92)) -> Total Balance Score: | E92: BILANZSUMME: | F92: Somma Bilancio: | G92: Total Balance Score: | H92: Puntuación total: | I92: ="[fr]"&E92 -> [fr]BILANZSUMME: | J92: SOMA DO BALANÇO: | K92: ="[gr]"&E92 -> [gr]BILANZSUMME:
D93: =HLOOKUP($C$1,$E$1:$X$4910,ROW(D93)) -> No. | E93: Nr. | F93: N° | G93: No. | H93: N.º | I93: ="[fr]"&E93 -> [fr]Nr. | J93: ="[pt]"&E93 -> [pt]Nr. | K93: ="[gr]"&E93 -> [gr]Nr.
D94: =HLOOKUP($C$1,$E$1:$X$4910,ROW(D94)) -> Stakeholders | E94: Berührungsgruppe | F94: Gruppo coinvolto | G94: Stakeholders | H94: Grupos de interés | I94: ="[fr]"&E94 -> [fr]Berührungsgruppe | J94: ="[pt]"&E94 -> [pt]Berührungsgruppe | K94: ="[gr]"&E94 -> [gr]Berührungsgruppe
D95: =HLOOKUP($C$1,$E$1:$X$4910,ROW(D95)) -> Stakeholders/Indicators/Criteria | E95: Berührungsgruppe/Themen/Aspekte | F95: Gruppo d'Interesse/Tema/Aspetto | G95: Stakeholders/Indicators/Criteria | H95: Grupo de interés / Tema / Aspecto | I95: ="[fr]"&E95 -> [fr]Berührungsgruppe/Themen/Aspekte | J95: ="[pt]"&E95 -> [pt]Berührungsgruppe/Themen/Aspekte | K95: ="[gr]"&E95 -> [gr]Berührungsgruppe/Themen/Aspekte
D96: =HLOOKUP($C$1,$E$1:$X$4910,ROW(D96)) -> Weight | E96: Gewichtung | F96: Peso | G96: Weight | H96: Ponderación | I96: ="[fr]"&E96 -> [fr]Gewichtung | J96: Peso | K96: ="[gr]"&E96 -> [gr]Gewichtung
C97: 4 | D97: =HLOOKUP($C$1,$E$1:$X$4910,ROW(D97)) -> very high | E97: sehr hoch | F97: molto alto | G97: very high | H97: Muy alta | I97: ="[fr]"&E97 -> [fr]sehr hoch | J97: ="[pt]"&E97 -> [pt]sehr hoch | K97: ="[gr]"&E97 -> [gr]sehr hoch
C98: 3 | D98: =HLOOKUP($C$1,$E$1:$X$4910,ROW(D98)) -> high | E98: hoch | F98: alto | G98: high | H98: Alta | I98: ="[fr]"&E98 -> [fr]hoch | J98: ="[pt]"&E98 -> [pt]hoch | K98: ="[gr]"&E98 -> [gr]hoch
C99: 2 | D99: =HLOOKUP($C$1,$E$1:$X$4910,ROW(D99)) -> medium | E99: mittel | F99: medio | G99: medium | H99: Media | I99: ="[fr]"&E99 -> [fr]mittel | J99: ="[pt]"&E99 -> [pt]mittel | K99: ="[gr]"&E99 -> [gr]mittel
C100: 1 | D100: =HLOOKUP($C$1,$E$1:$X$4910,ROW(D100)) -> low | E100: niedrig | F100: basso | G100: low | H100: Baja | I100: ="[fr]"&E100 -> [fr]niedrig | J100: ="[pt]"&E100 -> [pt]niedrig | K100: ="[gr]"&E100 -> [gr]niedrig
C101: 0 | D101: =HLOOKUP($C$1,$E$1:$X$4910,ROW(D101)) -> not applicable | E101: trifft nicht zu | F101: non da considerare | G101: not applicable | H101: No aplica | I101: ="[fr]"&E101 -> [fr]trifft nicht zu | J101: ="[pt]"&E101 -> [pt]trifft nicht zu | K101: ="[gr]"&E101 -> [gr]trifft nicht zu
D102: =HLOOKUP($C$1,$E$1:$X$4910,ROW(D102)) -> Current status | E102: Erläuterung | F102: Descrizione | G102: Current status | H102: Estado actual | I102: ="[fr]"&E102 -> [fr]Erläuterung | J102: Estado atual | K102: ="[gr]"&E102 -> [gr]Erläuterung
D103: =HLOOKUP($C$1,$E$1:$X$4910,ROW(D103)) -> Potential for improvement | E103: Verbesserungspotenzial | F103: Possibilità di miglioramento | G103: Potential for improvement | H103: Áreas de mejora | I103: ="[fr]"&E103 -> [fr]Verbesserungspotenzial | J103: Potencial de aperfeiçoamento | K103: ="[gr]"&E103 -> [gr]Verbesserungspotenzial
D104: =HLOOKUP($C$1,$E$1:$X$4910,ROW(D104)) -> Est% | E104: Erfüll. | F104: Val% | G104: Est% | H104: Nivel | I104: ="[fr]"&E104 -> [fr]Erfüll. | J104: ="[pt]"&E104 -> [pt]Erfüll. | K104: ="[gr]"&E104 -> [gr]Erfüll.
D105: =HLOOKUP($C$1,$E$1:$X$4910,ROW(D105)) -> Points | E105: Pkte | F105: Punti | G105: Points | H105: Punt. | I105: ="[fr]"&E105 -> [fr]Pkte | J105: ="[pt]"&E105 -> [pt]Pkte | K105: ="[gr]"&E105 -> [gr]Pkte
D106: =HLOOKUP($C$1,$E$1:$X$4910,ROW(D106)) -> Max. | E106: Max. | F106: Max. | G106: Max. | H106: Max. | I106: ="[fr]"&E106 -> [fr]Max. | J106: ="[pt]"&E106 -> [pt]Max. | K106: ="[gr]"&E106 -> [gr]Max.
D107: =HLOOKUP($C$1,$E$1:$X$4910,ROW(D107)) -> Stakeholders/ Themes/ Aspects | E107: Berührungsgruppe/Themen/Aspekte | F107: Stakeholders/ tematiche/ aspetti | G107: Stakeholders/ Themes/ Aspects | H107: Grupo de interés / Tema / Aspecto | I107: ="[fr]"&E107 -> [fr]Berührungsgruppe/Themen/Aspekte | J107: Grupo de interesse/Temas/Aspectos | K107: ="[gr]"&E107 -> [gr]Berührungsgruppe/Themen/Aspekte
B108: =C108&": "&D108 -> A: Suppliers | C108: A | D108: =HLOOKUP($C$1,$E$1:$X$4910,ROW(D108)) -> Suppliers | E108: Lieferant*innen | F108: Fornitori | G108: Suppliers | H108: Proveedores | I108: ="[fr]"&E108 -> [fr]Lieferant*innen | J108: FORNECEDOR*S | K108: ="[gr]"&E108 -> [gr]Lieferant*innen
B109: =C109&": "&D109 -> A1: Human dignity in the supply chain | C109: A1 | D109: =HLOOKUP($C$1,$E$1:$X$4910,ROW(D109)) -> Human dignity in the supply chain | E109: Menschenwürde in der Zulieferkette | F109: La dignità umana lungo la catena di fornitura | G109: Human dignity in the supply chain | H109: Dignidad humana en la cadena de suministro | I109: ="[fr]"&E109 -> [fr]Menschenwürde in der Zulieferkette | J109: Dignidade humana na cadeia de suprimentos | K109: ="[gr]"&E109 -> [gr]Menschenwürde in der Zulieferkette
C110: A1.1 | D110: =HLOOKUP($C$1,$E$1:$X$4910,ROW(D110)) -> Working conditions and social impact in the supply chain | E110: Arbeitsbedingungen und gesellschaftliche Auswirkungen in der Zulieferkette | F110: Condizioni di lavoro e conseguenze sociali nella catena di fornitura | G110: Working conditions and social impact in the supply chain | H110: Condiciones de trabajo e impacto social en la cadena de suministro | I110: ="[fr]"&E110 -> [fr]Arbeitsbedingungen und gesellschaftliche Auswirkungen in der Zulieferkette | J110: Condições de trabalho e impactos sociais na cadeia de suprimentos | K110: ="[gr]"&E110 -> [gr]Arbeitsbedingungen und gesellschaftliche Auswirkungen in der Zulieferkette
C111: A1.2 | D111: =HLOOKUP($C$1,$E$1:$X$4910,ROW(D111)) -> Negative aspect: violation of human dignity in the supply chain | E111: Negativ-Aspekt: Verletzung der Menschenwürde in der Zulieferkette | F111: Aspetto negativo: Violazione della dignità umana nella catena di fornitura | G111: Negative aspect: violation of human dignity in the supply chain | H111: Aspecto negativo: vulneración de la dignidad humana en la cadena de suministro | I111: ="[fr]"&E111 -> [fr]Negativ-Aspekt: Verletzung der Menschenwürde in der Zulieferkette | J111: Aspecto negativo: Violação da dignidade humana na cadeia de suprimentos | K111: ="[gr]"&E111 -> [gr]Negativ-Aspekt: Verletzung der Menschenwürde in der Zulieferkette
B112: =C112&": "&D112 -> A2: Solidarity and social justice in the supply chain | C112: A2 | D112: =HLOOKUP($C$1,$E$1:$X$4910,ROW(D112)) -> Solidarity and social justice in the supply chain | E112: Solidarität und Gerechtigkeit in der Zulieferkette | F112: Solidarietà e giustizia nella catena di fornitura | G112: Solidarity and social justice in the supply chain | H112: Justicia y solidaridad en la cadena de suministro | I112: ="[fr]"&E112 -> [fr]Solidarität und Gerechtigkeit in der Zulieferkette | J112: Solidariedade e justiça na cadeia de suprimentos | K112: ="[gr]"&E112 -> [gr]Solidarität und Gerechtigkeit in der Zulieferkette
C113: A2.1 | D113: =HLOOKUP($C$1,$E$1:$X$4910,ROW(D113)) -> Fair business practices towards direct suppliers | E113: Faire Geschäftsbeziehungen zu direkten Lieferant*innen | F113: Relazioni commerciali eque nei confronti dei fornitori diretti | G113: Fair business practices towards direct suppliers | H113: Actitud ética con proveedores directos | I113: ="[fr]"&E113 -> [fr]Faire Geschäftsbeziehungen zu direkten Lieferant*innen | J113: Relações comerciais justas com fornecedor*s diretos | K113: ="[gr]"&E113 -> [gr]Faire Geschäftsbeziehungen zu direkten Lieferant*innen
C114: A2.2 | D114: =HLOOKUP($C$1,$E$1:$X$4910,ROW(D114)) -> Exercising a positive influence on solidarity and social justice in the supply chain | E114: Positive Einflussnahme auf Solidarität und Gerechtigkeit in der gesamten Zulieferkette | F114: Influssi positivi sulla solidarietà e la giustizia lungo l'intera catena di fornitura | G114: Exercising a positive influence on solidarity and social justice in the supply chain | H114: Promoción de la justicia y la solidaridad en toda la cadena de suministro | I114: ="[fr]"&E114 -> [fr]Positive Einflussnahme auf Solidarität und Gerechtigkeit in der gesamten Zulieferkette | J114: Influência positiva relativamente a solidariedade e justiça ao longo de toda a cadeia de suprimentos | K114: ="[gr]"&E114 -> [gr]Positive Einflussnahme auf Solidarität und Gerechtigkeit in der gesamten Zulieferkette
C115: A2.3 | D115: =HLOOKUP($C$1,$E$1:$X$4910,ROW(D115)) -> Negative aspect: abuse of market power against suppliers | E115: Negativ-Aspekt: Ausnutzung der Marktmacht gegenüber Lieferant*innen | F115: Aspetto negativo: Sfruttamento del potere di mercato nei confronti dei fornitori | G115: Negative aspect: abuse of market power against suppliers | H115: Aspecto negativo: abuso de poder de mercado frente a proveedores | I115: ="[fr]"&E115 -> [fr]Negativ-Aspekt: Ausnutzung der Marktmacht gegenüber Lieferant*innen | J115: Aspecto negativo: Abuso do poder de mercado face a fornecedor*s | K115: ="[gr]"&E115 -> [gr]Negativ-Aspekt: Ausnutzung der Marktmacht gegenüber Lieferant*innen
B116: =C116&": "&D116 -> A3: Environmental sustainability in the supply chain | C116: A3 | D116: =HLOOKUP($C$1,$E$1:$X$4910,ROW(D116)) -> Environmental sustainability in the supply chain | E116: Ökologische Nachhaltigkeit in der Zulieferkette | F116: Sostenibilità ecologica nella catena di fornitura | G116: Environmental sustainability in the supply chain | H116: Sostenibilidad medioambiental en la cadena de suministro | I116: ="[fr]"&E116 -> [fr]Ökologische Nachhaltigkeit in der Zulieferkette | J116: Sustentabilidade ambiental na cadeia de suprimentos | K116: ="[gr]"&E116 -> [gr]Ökologische Nachhaltigkeit in der Zulieferkette
C117: A3.1 | D117: =HLOOKUP($C$1,$E$1:$X$4910,ROW(D117)) -> Environmental impact throughout the supply chain | E117: Umweltauswirkungen in der Zulieferkette | F117: Conseguenze ambientali lungo la catena di fornitura | G117: Environmental impact throughout the supply chain | H117: Impacto medioambiental en la cadena de suministro | I117: ="[fr]"&E117 -> [fr]Umweltauswirkungen in der Zulieferkette | J117: Impacto ambiental na cadeia de suprimentos | K117: ="[gr]"&E117 -> [gr]Umweltauswirkungen in der Zulieferkette
C118: A3.2 | D118: =HLOOKUP($C$1,$E$1:$X$4910,ROW(D118)) -> Negative aspect: disproportionate environmental impact throughout the supply chain | E118: Negativ-Aspekt:Unverhältnismäßig hohe Umweltauswirkungen in der Zulieferkette | F118: Aspetto negativo: Conseguenze ambientali sproporzionatamente elevate lungo la catena di fornitura | G118: Negative aspect: disproportionate environmental impact throughout the supply chain | H118: Aspecto negativo: impacto medioambiental desproporcionado en la cadena de suministro | I118: ="[fr]"&E118 -> [fr]Negativ-Aspekt:Unverhältnismäßig hohe Umweltauswirkungen in der Zulieferkette | J118: Aspecto negativo: Impactos ambientais proporcionalmente altos na cadeia de suprimentos | K118: ="[gr]"&E118 -> [gr]Negativ-Aspekt:Unverhältnismäßig hohe Umweltauswirkungen in der Zulieferkette
B119: =C119&": "&D119 -> A4: Transparency & co-determination in the supply chain | C119: A4 | D119: =HLOOKUP($C$1,$E$1:$X$4910,ROW(D119)) -> Transparency & co-determination in the supply chain | E119: Transparenz und Mitentscheidung in der Zulieferkette | F119: Trasparenza e condivisione delle decisioni lungo la catena di fornitura | G119: Transparency & co-determination in the supply chain | H119: Transparencia y participación democrática en la cadena de suministro | I119: ="[fr]"&E119 -> [fr]Transparenz und Mitentscheidung in der Zulieferkette | J119: Transparência e co-decisão na cadeia de suprimentos | K119: ="[gr]"&E119 -> [gr]Transparenz und Mitentscheidung in der Zulieferkette
C120: A4.1 | D120: =HLOOKUP($C$1,$E$1:$X$4910,ROW(D120)) -> Transparency towards suppliers and their right to co-determination | E120: Transparenz und Mitentscheidungsrechte für Lieferant*innen | F120: Trasparenza e diritti di condivisione delle decisioni per i fornitori | G120: Transparency towards suppliers and their right to co-determination | H120: Transparencia y participación democrática de los proveedores | I120: ="[fr]"&E120 -> [fr]Transparenz und Mitentscheidungsrechte für Lieferant*innen | J120: Transparência e direitos de co-decisão para fornecedor*s | K120: ="[gr]"&E120 -> [gr]Transparenz und Mitentscheidungsrechte für Lieferant*innen
C121: A4.2 | D121: =HLOOKUP($C$1,$E$1:$X$4910,ROW(D121)) -> Positive influence on transparency and co-determination throughout the supply chain | E121: Positive Einflussnahme auf Transparenz und Mitentscheidung in der gesamten Zulieferkette | F121: Influssi positivi sulla trasparenza e la condivisione delle decisioni lungo l'intera catena di fornitura | G121: Positive influence on transparency and co-determination throughout the supply chain | H121: Promoción de la transparencia y participación democrática en toda la cadena de suministro | I121: ="[fr]"&E121 -> [fr]Positive Einflussnahme auf Transparenz und Mitentscheidung in der gesamten Zulieferkette | J121: Influência positiva relativamente a transparência e co-decisão ao longo de toda a cadeia de suprimentos | K121: ="[gr]"&E121 -> [gr]Positive Einflussnahme auf Transparenz und Mitentscheidung in der gesamten Zulieferkette
B122: =C122&": "&D122 -> B: Owners, equity- and financial service providers | C122: B | D122: =HLOOKUP($C$1,$E$1:$X$4910,ROW(D122)) -> Owners, equity- and financial service providers | E122: Eigentümer*innen und Finanzpartner*innen | F122: Proprietari & partner finanziari | G122: Owners, equity- and financial service providers | H122: Propietarios y proveedores financieros | I122: ="[fr]"&E122 -> [fr]Eigentümer*innen und Finanzpartner*innen | J122: PROPRIETÁRI*S & PARCEIR*S DE NEGÓCIO | K122: ="[gr]"&E122 -> [gr]Eigentümer*innen und Finanzpartner*innen
B123: =C123&": "&D123 -> B1: Ethical position in relation to financial resources | C123: B1 | D123: =HLOOKUP($C$1,$E$1:$X$4910,ROW(D123)) -> Ethical position in relation to financial resources | E123: Ethische Haltung im Umgang mit Geldmitteln | F123: Atteggiamento etico nell'impiego di fondi | G123: Ethical position in relation to financial resources | H123: Actitud ética en la gestión de recursos financieros | I123: ="[fr]"&E123 -> [fr]Ethische Haltung im Umgang mit Geldmitteln | J123: Atitude ética na gestão de recursos financeiros
C124: B1.1 | D124: =HLOOKUP($C$1,$E$1:$X$4910,ROW(D124)) -> Financial independence through equity financing | E124: Finanzielle Unabhängigkeit durch Eigenfinanzierung | F124: Autonomia finanziaria grazie all'autofinanziamento | G124: Financial independence through equity financing | H124: Independencia financiera: autofinanciación | I124: ="[fr]"&E124 -> [fr]Finanzielle Unabhängigkeit durch Eigenfinanzierung | J124: Independência financeira por meio de autofinanciamento
C125: B1.2 | D125: =HLOOKUP($C$1,$E$1:$X$4910,ROW(D125)) -> Common Good-orientated borrowing | E125: Gemeinwohlorientierte Fremdfinanzierung | F125: Finanziamento esterno orientato al bene comune | G125: Common Good-orientated borrowing | H125: Financiación externa orientada al Bien Común | I125: ="[fr]"&E125 -> [fr]Gemeinwohlorientierte Fremdfinanzierung | J125: Financiamento externo por meio de instituições orientadas ao Bem Comum
C126: B1.3 | D126: =HLOOKUP($C$1,$E$1:$X$4910,ROW(D126)) -> Ethical position of external financial partners | E126: Ethische Haltung externer Finanzpartner*innen | F126: L'approccio etico di finanziatori esterni | G126: Ethical position of external financial partners | H126: Actitud ética de los proveedores financieros | I126: ="[fr]"&E126 -> [fr]Ethische Haltung externer Finanzpartner*innen | J126: Atitude ética de parceir*s financeir*s extern*s
B127: =C127&": "&D127 -> B2: Social position in relation to financial resources | C127: B2 | D127: =HLOOKUP($C$1,$E$1:$X$4910,ROW(D127)) -> Social position in relation to financial resources | E127: Soziale Haltung im Umgang mit Geldmitteln | F127: Atteggiamento sociale nell'impiego di fondi | G127: Social position in relation to financial resources | H127: Actitud solidaria en la gestión de recursos financieros | I127: ="[fr]"&E127 -> [fr]Soziale Haltung im Umgang mit Geldmitteln | J127: Atitude social na gestão de recursos financeiros
C128: B2.1 | D128: =HLOOKUP($C$1,$E$1:$X$4910,ROW(D128)) -> Solidarity and Common Good-orientated use of funds | E128: Solidarische und gemeinwohlorientierte Mittelverwendung | F128: Impiego dei fondi solidale e orientato al bene comune | G128: Solidarity and Common Good-orientated use of funds | H128: Gestión de los recursos financieros de forma solidaria y orientada al Bien Común | I128: ="[fr]"&E128 -> [fr]Solidarische und gemeinwohlorientierte Mittelverwendung | J128: Alocação de recursos de forma solidária e orientada ao Bem Comum
C129: B2.2 | D129: =HLOOKUP($C$1,$E$1:$X$4910,ROW(D129)) -> Negative aspect: unfair distribution of funds | E129: Negativ-Aspekt: Unfaire Verteilung von Geldmittel | F129: Aspetto negativo: Distribuzione iniqua di fondi | G129: Negative aspect: unfair distribution of funds | H129: Aspecto negativo: repartición injusta de los recursos financieros | I129: ="[fr]"&E129 -> [fr]Negativ-Aspekt: Unfaire Verteilung von Geldmittel | J129: Aspecto negativo: Distribuição injusta de recursos financeiros
B130: =C130&": "&D130 -> B3: Use of funds in relation to social and environmental impacts | C130: B3 | D130: =HLOOKUP($C$1,$E$1:$X$4910,ROW(D130)) -> Use of funds in relation to social and environmental impacts | E130: Sozial-ökologische Investitionen und Mittelverwendung | F130: Investimenti socio-ecologici e impiego dei fondi | G130: Use of funds in relation to social and environmental impacts | H130: Inversiones financieras sostenibles y uso de los recursos financieros | I130: ="[fr]"&E130 -> [fr]Sozial-ökologische Investitionen und Mittelverwendung | J130: Investimentos e alocação de recursos com base em critérios sócio-ambientais
C131: B3.1 | D131: =HLOOKUP($C$1,$E$1:$X$4910,ROW(D131)) -> Environmental quality of investments | E131: Ökologische Qualität der Investitionen | F131: Qualità ecologica degli investimenti | G131: Environmental quality of investments | H131: Carácter ambiental de los recursos financieros | I131: ="[fr]"&E131 -> [fr]Ökologische Qualität der Investitionen | J131: Qualidade ambiental dos investimentos
C132: B3.2 | D132: =HLOOKUP($C$1,$E$1:$X$4910,ROW(D132)) -> Common Good-orientated investment | E132: Gemeinwohlorientierte Veranlagung | F132: Investimento orientato al bene comune | G132: Common Good-orientated investment | H132: Inversiones orientadas al Bien Común | I132: ="[fr]"&E132 -> [fr]Gemeinwohlorientierte Veranlagung | J132: Base fiscal/tributação orientada ao Bem Comum
C133: B3.3 | D133: =HLOOKUP($C$1,$E$1:$X$4910,ROW(D133)) -> Negative aspect: reliance on environmentally unsafe resources | E133: Negativ-Aspekt: Abhängigkeit von ökologisch bedenklichen Ressourcen | F133: Aspetto negativo: Dipendenza da risorse a rischio in termini ecologici | G133: Negative aspect: reliance on environmentally unsafe resources | H133: Aspecto negativo: dependencia de recursos perjudiciales para el medio ambiente | I133: ="[fr]"&E133 -> [fr]Negativ-Aspekt: Abhängigkeit von ökologisch bedenklichen Ressourcen | J133: Aspecto negativo: Dependência de recursos ambientalmente questionáveis
B134: =C134&": "&D134 -> B4: Ownership and co-determination | C134: B4 | D134: =HLOOKUP($C$1,$E$1:$X$4910,ROW(D134)) -> Ownership and co-determination | E134: Eigentum und Mitentscheidung | F134: Proprietà e condivisione delle decisioni | G134: Ownership and co-determination | H134: Propiedad y participación democrática | I134: ="[fr]"&E134 -> [fr]Eigentum und Mitentscheidung | J134: Propriedade e co-decisão
C135: B4.1 | D135: =HLOOKUP($C$1,$E$1:$X$4910,ROW(D135)) -> Common Good-orientated ownership structure | E135: Gemeinwohlorientierte Eigentumsstruktur | F135: Struttura di proprietà orientata al bene comune | G135: Common Good-orientated ownership structure | H135: Distribución de la propiedad orientada al Bien Común | I135: ="[fr]"&E135 -> [fr]Gemeinwohlorientierte Eigentumsstruktur | J135: Estrutura de propriedade orientada ao Bem Comum
C136: B4.2 | D136: =HLOOKUP($C$1,$E$1:$X$4910,ROW(D136)) -> Negative aspect: hostile takeover | E136: Negativ-Aspekt: Feindliche Übernahme | F136: Aspetto negativo: Scalata ostile | G136: Negative aspect: hostile takeover | H136: Aspecto negativo: oferta pública de adquisición (OPA) hostil | I136: ="[fr]"&E136 -> [fr]Negativ-Aspekt: Feindliche Übernahme | J136: Aspecto negativo: Aquisição hostil
B137: =C137&": "&D137 -> C: Employees | C137: C | D137: =HLOOKUP($C$1,$E$1:$X$4910,ROW(D137)) -> Employees | E137: Mitarbeitende | F137: Collaboratori | G137: Employees | H137: Trabajadores | I137: ="[fr]"&E137 -> [fr]Mitarbeitende | J137: COLABORADOR*S | K137: ="[gr]"&E137 -> [gr]Mitarbeitende
B138: =C138&": "&D138 -> C1: Human dignity in the workplace and working environment | C138: C1 | D138: =HLOOKUP($C$1,$E$1:$X$4910,ROW(D138)) -> Human dignity in the workplace and working environment | E138: Menschenwürde am Arbeitsplatz | F138: La dignità umana sul posto di lavoro | G138: Human dignity in the workplace and working environment | H138: Dignidad humana en el puesto de trabajo | I138: ="[fr]"&E138 -> [fr]Menschenwürde am Arbeitsplatz | J138: Dignidade humana no local de trabalho
C139: C1.1 | D139: =HLOOKUP($C$1,$E$1:$X$4910,ROW(D139)) -> Employee-focused organisational culture | E139: Mitarbeiterorientierte Unternehmenskultur | F139: Cultura aziendale orientata ai collaboratori | G139: Employee-focused organisational culture | H139: Cultura empresarial orientada a las personas | I139: ="[fr]"&E139 -> [fr]Mitarbeiterorientierte Unternehmenskultur | J139: Cultura corporativa orientada aos/às colaborador*s
C140: C1.2 | D140: =HLOOKUP($C$1,$E$1:$X$4910,ROW(D140)) -> Health promotion and occupational health and safety | E140: Gesundheitsförderung und Arbeitsschutz | F140: Promozione della salute e protezione sul posto di lavoro | G140: Health promotion and occupational health and safety | H140: Promoción de la salud y seguridad en el trabajo | I140: ="[fr]"&E140 -> [fr]Gesundheitsförderung und Arbeitsschutz | J140: Promoção da saúde e da segurança ocupacional
C141: C1.3 | D141: =HLOOKUP($C$1,$E$1:$X$4910,ROW(D141)) -> Diversity and equal opportunities | E141: Diversität und Chancengleichheit | F141: Diversità e pari opportunità | G141: Diversity and equal opportunities | H141: Diversidad e igualdad de oportunidades | I141: ="[fr]"&E141 -> [fr]Diversität und Chancengleichheit | J141: Diversidade e igualdade de oportunidades
C142: C1.4 | D142: =HLOOKUP($C$1,$E$1:$X$4910,ROW(D142)) -> Negative aspect: unfit working conditions | E142: Negativ-Aspekt: Menschenunwürdige Arbeitsbedingungen | F142: Aspetto negativo: Condizioni di lavoro disumane | G142: Negative aspect: unfit working conditions | H142: Aspecto negativo: condiciones de trabajo indignas | I142: ="[fr]"&E142 -> [fr]Negativ-Aspekt: Menschenunwürdige Arbeitsbedingungen | J142: Aspecto negativo: Condições de trabalho que ferem a dignidade humana
B143: =C143&": "&D143 -> C2: Self-determined working arrangements | C143: C2 | D143: =HLOOKUP($C$1,$E$1:$X$4910,ROW(D143)) -> Self-determined working arrangements | E143: Ausgestaltung der Arbeitsverträge | F143: Welfare aziendale, retribuzione e organizzazione del lavoro | G143: Self-determined working arrangements | H143: Formalidad de los contratos de trabajo | I143: ="[fr]"&E143 -> [fr]Ausgestaltung der Arbeitsverträge | J143: Configuração dos contratos de trabalho
C144: C2.1 | D144: =HLOOKUP($C$1,$E$1:$X$4910,ROW(D144)) -> Pay structure | E144: Ausgestaltung des Verdienstes | F144: Strutturazione del guadagno | G144: Pay structure | H144: Formalidad y estructura salarial | I144: ="[fr]"&E144 -> [fr]Ausgestaltung des Verdienstes | J144: Configuração da remuneração
C145: C2.2 | D145: =HLOOKUP($C$1,$E$1:$X$4910,ROW(D145)) -> Structuring working time | E145: Ausgestaltung der Arbeitszeit | F145: Organizzazione dell'orario di lavoro | G145: Structuring working time | H145: Formalidad en el horario laboral | I145: ="[fr]"&E145 -> [fr]Ausgestaltung der Arbeitszeit | J145: Configuração do horário de trabalho
C146: C2.3 | D146: =HLOOKUP($C$1,$E$1:$X$4910,ROW(D146)) -> Employment structure and work-life balance | E146: Ausgestaltung des Arbeitsverhältnisses und Work-Life-Balance | F146: Organizzazione del rapporto di lavoro e Work-Life-Balance | G146: Employment structure and work-life balance | H146: Formalidad en las condiciones de trabajo y en la conciliación | I146: ="[fr]"&E146 -> [fr]Ausgestaltung des Arbeitsverhältnisses und Work-Life-Balance | J146: Configuração das condições de trabalho, equilíbrio entre vida profissional e familiar
C147: C2.4 | D147: =HLOOKUP($C$1,$E$1:$X$4910,ROW(D147)) -> Negative aspect: unfair employment contracts | E147: Negativ-Aspekt: Ungerechte Ausgestaltung der Arbeitsverträge | F147: Aspetto negativo: Strutturazione ingiusta dei contratti di lavoro | G147: Negative aspect: unfair employment contracts | H147: Aspecto negativo: contratos de trabajo injustos | I147: ="[fr]"&E147 -> [fr]Negativ-Aspekt: Ungerechte Ausgestaltung der Arbeitsverträge | J147: Aspecto negativo: Configuração injusta dos contratos de trabalho
B148: =C148&": "&D148 -> C3: Environmentally-friendly behaviour of staff | C148: C3 | D148: =HLOOKUP($C$1,$E$1:$X$4910,ROW(D148)) -> Environmentally-friendly behaviour of staff | E148: Förderung des ökologischen Verhaltens der Mitarbeitenden | F148: Promozione del comportamento ecologico dei collaboratori | G148: Environmentally-friendly behaviour of staff | H148: Promoción de la responsabilidad medioambiental de los trabajadores | I148: ="[fr]"&E148 -> [fr]Förderung des ökologischen Verhaltens der Mitarbeitenden | J148: Promoção de condutas sustentáveis entre colaborador*s
C149: C3.1 | D149: =HLOOKUP($C$1,$E$1:$X$4910,ROW(D149)) -> Food during working hours | E149: Ernährung während der Arbeitszeit | F149: L'alimentazione durante l'orario di lavoro | G149: Food during working hours | H149: Alimentación durante la jornada laboral | I149: ="[fr]"&E149 -> [fr]Ernährung während der Arbeitszeit | J149: Alimentação durante o horário de trabalho
C150: C3.2 | D150: =HLOOKUP($C$1,$E$1:$X$4910,ROW(D150)) -> Travel to work | E150: Mobilität zum Arbeitsplatz | F150: Mobilità sul posto di lavoro | G150: Travel to work | H150: Movilidad sostenible al puesto de trabajo | I150: ="[fr]"&E150 -> [fr]Mobilität zum Arbeitsplatz | J150: Mobilidade para o local de trabalho
C151: C3.3 | D151: =HLOOKUP($C$1,$E$1:$X$4910,ROW(D151)) -> Organisational culture, cultivating awareness for an environmentally-friendly approach | E151: Organisationskultur, Sensibilisierung und unternehmensinterne Prozesse | F151: Cultura organizzativa, sensibilizzazione all'organizzazione ecologica dei processi | G151: Organisational culture, cultivating awareness for an environmentally-friendly approach | H151: Cultura empresarial sostenible y sensibilización con el medio ambiente | I151: ="[fr]"&E151 -> [fr]Organisationskultur, Sensibilisierung und unternehmensinterne Prozesse | J151: Cultura organizacional, sensibilização e processos internos da empresa
C152: C3.4 | D152: =HLOOKUP($C$1,$E$1:$X$4910,ROW(D152)) -> Negative aspect: guidance on waste/ environmentally damaging practices | E152: Negativ-Aspekt: Anleitung zur Verschwendung / Duldung unökologischen Verhaltens | F152: Aspetto negativo: Guida allo spreco / Tolleranza di comportamenti non ecologici | G152: Negative aspect: guidance on waste/ environmentally damaging practices | H152: Aspecto negativo: promoción y tolerancia frente a la actitud medioambiental no responsable | I152: ="[fr]"&E152 -> [fr]Negativ-Aspekt: Anleitung zur Verschwendung / Duldung unökologischen Verhaltens | J152: Aspecto negativo: Orientação ao desperdício / tolerância de condutas ecologicamente nocivas
B153: =C153&": "&D153 -> C4: Co-determination and transparency within the organisation | C153: C4 | D153: =HLOOKUP($C$1,$E$1:$X$4910,ROW(D153)) -> Co-determination and transparency within the organisation | E153: ="Innerbetriebliche Mitentscheidung und Transparenz" -> Innerbetriebliche Mitentscheidung und Transparenz | F153: Condivisione delle decisioni e trasparenza in azienda | G153: Co-determination and transparency within the organisation | H153: Transparencia y participación democrática interna | I153: ="[fr]"&E153 -> [fr]Innerbetriebliche Mitentscheidung und Transparenz | J153: Co-decisão e transparência no âmbito da empresa
C154: C4.1 | D154: =HLOOKUP($C$1,$E$1:$X$4910,ROW(D154)) -> Transparency within the organisation | E154: Innerbetriebliche Transparenz | F154: Trasparenza in azienda | G154: Transparency within the organisation | H154: Transparencia interna | I154: ="[fr]"&E154 -> [fr]Innerbetriebliche Transparenz | J154: Transparência interna
C155: C4.2 | D155: =HLOOKUP($C$1,$E$1:$X$4910,ROW(D155)) -> Legitimation of the management | E155: Legitimierung der Führungskräfte | F155: Legittimazione dei dirigenti | G155: Legitimation of the management | H155: Legitimación de la dirección | I155: ="[fr]"&E155 -> [fr]Legitimierung der Führungskräfte | J155: Legitimação dos líderes
C156: C4.3 | D156: =HLOOKUP($C$1,$E$1:$X$4910,ROW(D156)) -> Employee co-determination | E156: Mitentscheidung der Mitarbeitenden | F156: Condivisione delle decisioni da parte dei collaboratori | G156: Employee co-determination | H156: Participación de los trabajadores en la toma de decisiones | I156: ="[fr]"&E156 -> [fr]Mitentscheidung der Mitarbeitenden | J156: Co-decisão por parte d*s colaborador*s
C157: C4.4 | D157: =HLOOKUP($C$1,$E$1:$X$4910,ROW(D157)) -> Negative aspect: obstruction of works councils | E157: Negativ-Aspekt C4.4: Verhinderung des Betriebsrates | F157: Aspetto negativo: Impedimento del consiglio aziendale | G157: Negative aspect: obstruction of works councils | H157: Aspecto negativo: Impedimiento del comité de empresa | I157: ="[fr]"&E157 -> [fr]Negativ-Aspekt C4.4: Verhinderung des Betriebsrates | J157: Aspecto negativo: Impedimento da formação de Comités de Empresa
B158: =C158&": "&D158 -> D: Customers and other companies | C158: D | D158: =HLOOKUP($C$1,$E$1:$X$4910,ROW(D158)) -> Customers and other companies | E158: Kund*nnen und Mitunternehmen | F158: Clienti & concorrenti | G158: Customers and other companies | H158: Clientes y otras empresas | I158: ="[fr]"&E158 -> [fr]Kund*nnen und Mitunternehmen | J158: CLIENTES & PARCEIR*S DE NEGÓCIO | K158: ="[gr]"&E158 -> [gr]Kund*nnen und Mitunternehmen
B159: =C159&": "&D159 -> D1: Ethical customer relations | C159: D1 | D159: =HLOOKUP($C$1,$E$1:$X$4910,ROW(D159)) -> Ethical customer relations | E159: Ethische Kund*innenbeziehungen | F159: Relazioni etiche con la clientela | G159: Ethical customer relations | H159: Actitud ética con los clientes | I159: con la clientela | J159: Relações éticas com clientes
C160: D1.1 | D160: =HLOOKUP($C$1,$E$1:$X$4910,ROW(D160)) -> Respect for human dignity in communication with customers | E160: Menschenwürdige Kommunikation mit Kund*innen | F160: Comunicazione dignitosa con i clienti | G160: Respect for human dignity in communication with customers | H160: Comunicación transparente con los clientes | I160: ="[fr]"&E160 -> [fr]Menschenwürdige Kommunikation mit Kund*innen | J160: Comunicação com clientes de forma digna
C161: D1.2 | D161: =HLOOKUP($C$1,$E$1:$X$4910,ROW(D161)) -> Barrier-free access | E161: Barrierefreiheit | F161: Assenza di barriere | G161: Barrier-free access | H161: Accesibilidad | I161: ="[fr]"&E161 -> [fr]Barrierefreiheit | J161: Acessibilidade
C162: D1.3 | D162: =HLOOKUP($C$1,$E$1:$X$4910,ROW(D162)) -> Negative aspect: unethical advertising | E162: Negativ-Aspekt: Unethische Werbemaßnahmen | F162: Aspetto negativo: Misure pubblicitarie non etiche | G162: Negative aspect: unethical advertising | H162: Aspecto negativo: publicidad engañosa y acciones comerciales no éticas | I162: ="[fr]"&E162 -> [fr]Negativ-Aspekt: Unethische Werbemaßnahmen | J162: Aspecto negativo: Atividades promocionais antiéticas
B163: =C163&": "&D163 -> D2: Cooperation and solidarity with other companies | C163: D2 | D163: =HLOOKUP($C$1,$E$1:$X$4910,ROW(D163)) -> Cooperation and solidarity with other companies | E163: Kooperation und Solidarität mit Mitunternehmen | F163: Cooperazione e solidarietà con i concorrenti | G163: Cooperation and solidarity with other companies | H163: Cooperación y solidaridad con otras empresas del sector | I163: ="[fr]"&E163 -> [fr]Kooperation und Solidarität mit Mitunternehmen | J163: Cooperação e solidariedade com parceir*s de negócio
C164: D2.1 | D164: =HLOOKUP($C$1,$E$1:$X$4910,ROW(D164)) -> Cooperation with other companies | E164: Kooperation mit Mitunternehmen | F164: Cooperazione con i concorrenti | G164: Cooperation with other companies | H164: Cooperación con otras empresas | I164: ="[fr]"&E164 -> [fr]Kooperation mit Mitunternehmen | J164: Cooperação com parceir*s de negócio
C165: D2.2 | D165: =HLOOKUP($C$1,$E$1:$X$4910,ROW(D165)) -> Solidarity with other companies | E165: Solidarität mit Mitunternehmen | F165: La solidarietà con i concorrenti | G165: Solidarity with other companies | H165: Solidaridad con otras empresas | I165: ="[fr]"&E165 -> [fr]Solidarität mit Mitunternehmen | J165: Solidariedade com parceir*s de negócio
C166: D2.3 | D166: =HLOOKUP($C$1,$E$1:$X$4910,ROW(D166)) -> Negative aspect: abuse of market power to the detriment of other companies | E166: Negativ-Aspekt D2.3: Missbrauch der Marktmacht gegenüber Mitunternehmen | F166: Aspetto negativo: Abuso del potere di mercato nei confronti dei concorrenti | G166: Negative aspect: abuse of market power to the detriment of other companies | H166: Aspecto negativo: abuso de poder de mercado frente a otras empresas | I166: ="[fr]"&E166 -> [fr]Negativ-Aspekt D2.3: Missbrauch der Marktmacht gegenüber Mitunternehmen | J166: Aspecto negativo: Abuso do poder de mercado face a parceir*s de negócio
B167: =C167&": "&D167 -> D3: Impact on the environment of the use and disposal of products and services | C167: D3 | D167: =HLOOKUP($C$1,$E$1:$X$4910,ROW(D167)) -> Impact on the environment of the use and disposal of products and services | E167: Ökologische Auswirkung durch Nutzung und Entsorgung von Produkten und Dienstleistungen | F167: Conseguenze ecologiche dell'utilizzo e dello smaltimento di prodotti e servizi | G167: Impact on the environment of the use and disposal of products and services | H167: Impacto medioambiental del uso y de la gestión de residuos de los productos y servicios | I167: ="[fr]"&E167 -> [fr]Ökologische Auswirkung durch Nutzung und Entsorgung von Produkten und Dienstleistungen | J167: Impacto ambiental do uso e do descarte de produtos e serviços
C168: D3.1 | D168: =HLOOKUP($C$1,$E$1:$X$4910,ROW(D168)) -> Environmental cost-benefit ration of products and services (efficiency and consistency) | E168: Ökologisches Kosten-Nutzen-Verhältnis von Produkten und Dienstleistungen (Effizienz und Konsistenz) | F168: Rapporto ecologico costi/ benefici di prodotti e servizi (efficienza e consistenza) | G168: Environmental cost-benefit ration of products and services (efficiency and consistency) | H168: Relación coste-beneficio medioambiental de productos y ervicios (eficiencia y consistencia) | I168: ="[fr]"&E168 -> [fr]Ökologisches Kosten-Nutzen-Verhältnis von Produkten und Dienstleistungen (Effizienz und Konsistenz) | J168: Relação custo-benefício em termos ambientais de produtos e serviços (eficiência e consistência)
C169: D3.2 | D169: =HLOOKUP($C$1,$E$1:$X$4910,ROW(D169)) -> Moderate use of products and services (sufficiency) | E169: Maßvolle Nutzung von Produkten und Dienstleistungen (Suffizienz) | F169: Utilizzo moderato di prodotti e servizi (sufficienza) | G169: Moderate use of products and services (sufficiency) | H169: Uso moderado de productos y servicios (suficiencia) | I169: ="[fr]"&E169 -> [fr]Maßvolle Nutzung von Produkten und Dienstleistungen (Suffizienz) | J169: Utilização moderada de produtos e serviços (suficiência)
C170: D3.3 | D170: =HLOOKUP($C$1,$E$1:$X$4910,ROW(D170)) -> Negative aspect: wilful disregard of disproportionate environmental impacts | E170: Negativ-Aspekt: Bewusste Inkaufnahme unverhältnismäßiger, ökologischer Auswirkungen | F170: Aspetto negativo: Accettazione consapevole di conseguenze ecologiche spropositate | G170: Negative aspect: wilful disregard of disproportionate environmental impacts | H170: Aspecto negativo: tolerancia frente al impacto medioambiental desproporcionado y consciente | I170: ="[fr]"&E170 -> [fr]Negativ-Aspekt: Bewusste Inkaufnahme unverhältnismäßiger, ökologischer Auswirkungen | J170: Aspecto negativo: Tolerância consciente de impactos ambientais excessivos
B171: =C171&": "&D171 -> D4: Customer participation and product transparency | C171: D4 | D171: =HLOOKUP($C$1,$E$1:$X$4910,ROW(D171)) -> Customer participation and product transparency | E171: Kund*innen-Mitwirkung und Produkttransparenz | F171: Partecipazione dei clienti e trasparenza dei prodotti | G171: Customer participation and product transparency | H171: Participación de los clientes y transparencia de producto | I171: ="[fr]"&E171 -> [fr]Kund*innen-Mitwirkung und Produkttransparenz | J171: Envolvimento de clientes e transparência de produtos
C172: D4.1 | D172: =HLOOKUP($C$1,$E$1:$X$4910,ROW(D172)) -> Customer participation, joint product development and market research | E172: Kund*innen-Mitwirkung, gemeinsame Produktentwicklung und Marktforschung | F172: Partecipazione dei clienti, sviluppo comune dei prodotti e ricerca di mercato | G172: Customer participation, joint product development and market research | H172: Participación de los clientes en la toma de decisiones, desarrollo de producto e investigación de mercado | I172: ="[fr]"&E172 -> [fr]Kund*innen-Mitwirkung, gemeinsame Produktentwicklung und Marktforschung | J172: Envolvimento de clientes, desenvolvimento de produtos e pesquisa de mercado em parceria
C173: D4.2 | D173: =HLOOKUP($C$1,$E$1:$X$4910,ROW(D173)) -> Product transparency | E173: Produkttransparenz | F173: Trasparenza dei prodotti | G173: Product transparency | H173: Transparencia de producto | I173: ="[fr]"&E173 -> [fr]Produkttransparenz | J173: Transparência de produtos
C174: D4.2 | D174: =HLOOKUP($C$1,$E$1:$X$4910,ROW(D174)) -> Negative aspect: non-disclosure of hazardous substances | E174: Negativ-Aspekt: Kein Ausweis von Gefahrenstoffen | F174: Aspetto negativo: Mancata indicazione di sostanze pericolose | G174: Negative aspect: non-disclosure of hazardous substances | H174: Aspecto negativo: no declaración sobre sustancias/mercancías peligrosas | I174: ="[fr]"&E174 -> [fr]Negativ-Aspekt: Kein Ausweis von Gefahrenstoffen | J174: Aspecto negativo: Não-declaração de substâncias perigosas
B175: =C175&": "&D175 -> E: Social environment | C175: E | D175: =HLOOKUP($C$1,$E$1:$X$4910,ROW(D175)) -> Social environment | E175: Gesellschaftliches Umfeld | F175: Contesto sociale | G175: Social environment | H175: Entorno social | I175: ="[fr]"&E175 -> [fr]Gesellschaftliches Umfeld | J175: MEIO SOCIAL | K175: ="[gr]"&E175 -> [gr]Gesellschaftliches Umfeld
B176: =C176&": "&D176 -> E1: Purpose of products and services and their effects on society | C176: E1 | D176: =HLOOKUP($C$1,$E$1:$X$4910,ROW(D176)) -> Purpose of products and services and their effects on society | E176: Sinn und gesellschaftliche Wirkung der Produkte und Dienstleistungen | F176: Senso e impatto dei prodotti e servizi sulla società | G176: Purpose of products and services and their effects on society | H176: Propósito e impacto positivo de los productos y servicios | I176: ="[fr]"&E176 -> [fr]Sinn und gesellschaftliche Wirkung der Produkte und Dienstleistungen | J176: Sentido e impacto social dos produtos e serviços
C177: E1.1 | D177: =HLOOKUP($C$1,$E$1:$X$4910,ROW(D177)) -> Products and services should cover basic needs and contribute to a good life | E177: Produkte und Dienstleistungen decken den Grundbedarf und dienen dem guten Leben | F177: Prodotti e servizi coprono il fabbisogno di base e sono utili a una buona vita | G177: Products and services should cover basic needs and contribute to a good life | H177: Productos y servicios que cubren las necesidades básicas y mejoran la calidad de vida | I177: ="[fr]"&E177 -> [fr]Produkte und Dienstleistungen decken den Grundbedarf und dienen dem guten Leben | J177: Produtos e serviços respondem às necessidades básicas e fomentam o bem-estar
C178: E1.2 | D178: =HLOOKUP($C$1,$E$1:$X$4910,ROW(D178)) -> Social impact of products and services | E178: Gesellschaftliche Wirkung der Produkte und Dienstleistungen | F178: Impatto dei prodotti e servizi sulla società | G178: Social impact of products and services | H178: Impacto social de los productos y servicios | I178: ="[fr]"&E178 -> [fr]Gesellschaftliche Wirkung der Produkte und Dienstleistungen | J178: Impacto social dos produtos e serviços
C179: E1.3 | D179: =HLOOKUP($C$1,$E$1:$X$4910,ROW(D179)) -> Negative aspect: unethical and unfit products and services | E179: Negativ-Aspekt: Menschenunwürdige Produkte und Dienstleistungen | F179: Aspetto negativo: Prodotti e servizi disumani | G179: Negative aspect: unethical and unfit products and services | H179: Aspecto negativo: productos y servicios que vulneran la dignidad humana | I179: ="[fr]"&E179 -> [fr]Negativ-Aspekt: Menschenunwürdige Produkte und Dienstleistungen | J179: Aspecto negativo: Produtos e serviços que ferem a dignidade humana
B180: =C180&": "&D180 -> E2: Contribution to the community | C180: E2 | D180: =HLOOKUP($C$1,$E$1:$X$4910,ROW(D180)) -> Contribution to the community | E180: Beitrag zum Gemeinwesen | F180: Contributo per la collettività | G180: Contribution to the community | H180: Contribución a la comunidad | I180: ="[fr]"&E180 -> [fr]Beitrag zum Gemeinwesen | J180: Contribuição para a comunidade
C181: E2.1 | D181: =HLOOKUP($C$1,$E$1:$X$4910,ROW(D181)) -> Taxes and social security contributions | E181: Steuern und Sozialabgaben | F181: Imposte e oneri sociali | G181: Taxes and social security contributions | H181: Impuestos y prestaciones sociales | I181: ="[fr]"&E181 -> [fr]Steuern und Sozialabgaben | J181: Impostos e encargos sociais
C182: E2.2 | D182: =HLOOKUP($C$1,$E$1:$X$4910,ROW(D182)) -> Voluntary contributions that strengthen society | E182: Freiwillige Beiträge zur Stärkung des Gemeinwesens | F182: Contributi volontari per rafforzare la collettività | G182: Voluntary contributions that strengthen society | H182: Contribución voluntaria a la comunidad | I182: ="[fr]"&E182 -> [fr]Freiwillige Beiträge zur Stärkung des Gemeinwesens | J182: Contribuição voluntária para o fortalecimento da comunidade
C183: E2.3 | D183: =HLOOKUP($C$1,$E$1:$X$4910,ROW(D183)) -> Negative aspect: inappropriate non-payment of tax | E183: Negativ-Aspekt: Illegitime Steuervermeidung | F183: Aspetto negativo: Evasione fiscale illecita | G183: Negative aspect: inappropriate non-payment of tax | H183: Aspecto negativo: elusión y evasión fiscal | I183: ="[fr]"&E183 -> [fr]Negativ-Aspekt: Illegitime Steuervermeidung | J183: Aspecto negativo: Evasão fiscal
C184: E2.4 | D184: =HLOOKUP($C$1,$E$1:$X$4910,ROW(D184)) -> Negative aspect: no anti-corruption policy | E184: Negativ-Aspekt: Mangelnde Korruptionsprävention | F184: Aspetto negativo: Mancata prevenzione della corruzione | G184: Negative aspect: no anti-corruption policy | H184: Aspecto negativo: falta de prevención frente a la corrupción | I184: ="[fr]"&E184 -> [fr]Negativ-Aspekt: Mangelnde Korruptionsprävention | J184: Aspecto negativo: Medidas insufucientes de prevenção da corrupção
B185: =C185&": "&D185 -> E3: Reduction of environmental impact | C185: E3 | D185: =HLOOKUP($C$1,$E$1:$X$4910,ROW(D185)) -> Reduction of environmental impact | E185: Reduktion ökologischer Auswirkungen | F185: Riduzione delle conseguenze ecologiche | G185: Reduction of environmental impact | H185: Reducción del impacto medioambiental | I185: ="[fr]"&E185 -> [fr]Reduktion ökologischer Auswirkungen | J185: Redução de impactos ambientais
C186: E3.1 | D186: =HLOOKUP($C$1,$E$1:$X$4910,ROW(D186)) -> Absolute impact and management strategy | E186: Absolute Auswirkungen / Management & Strategie | F186: Conseguenze assolute / Management & strategia | G186: Absolute impact and management strategy | H186: Impacto medioambiental / Gestión y estrategia | I186: ="[fr]"&E186 -> [fr]Absolute Auswirkungen / Management & Strategie | J186: Impactos absolutos / Gestão & Estratégia
C187: E3.2 | D187: =HLOOKUP($C$1,$E$1:$X$4910,ROW(D187)) -> Relative impact | E187: Relative Auswirkungen | F187: Conseguenze relative | G187: Relative impact | H187: Impacto relativo | I187: ="[fr]"&E187 -> [fr]Relative Auswirkungen | J187: Impactos relativos
C188: E3.3 | D188: =HLOOKUP($C$1,$E$1:$X$4910,ROW(D188)) -> Negative aspect: infringement of environmental regulations and disproportionate environmental pollution | E188: Negativ-Aspekt: Verstöße gegen Umweltauflagen sowie unangemessene Umweltbelastungen | F188: Aspetto negativo: Violazioni dei requisiti ambientali e impatto inadeguato sull'ambiente | G188: Negative aspect: infringement of environmental regulations and disproportionate environmental pollution | H188: Aspecto negativo: infracción de la normativa medioambiental e impacto desproporcionado | I188: ="[fr]"&E188 -> [fr]Negativ-Aspekt: Verstöße gegen Umweltauflagen sowie unangemessene Umweltbelastungen | J188: Aspecto negativo: Violação de exigências ambientais, bem como elevados impactos ambientais
B189: =C189&": "&D189 -> E4: Social co-determination and transparency | C189: E4 | D189: =HLOOKUP($C$1,$E$1:$X$4910,ROW(D189)) -> Social co-determination and transparency | E189: Transparenz und gesellschaftliche Mitentscheidung | F189: Trasparenza e condivisione sociale delle decisioni | G189: Social co-determination and transparency | H189: Transparencia y participación democrática del entorno social | I189: ="[fr]"&E189 -> [fr]Transparenz und gesellschaftliche Mitentscheidung | J189: Transparência e participação social na tomada de decisões
C190: E4.1 | D190: =HLOOKUP($C$1,$E$1:$X$4910,ROW(D190)) -> Transparency | E190: Transparenz | F190: Trasparenza | G190: Transparency | H190: Transparencia | I190: ="[fr]"&E190 -> [fr]Transparenz | J190: Transparência
C191: E4.2 | D191: =HLOOKUP($C$1,$E$1:$X$4910,ROW(D191)) -> Social participation | E191: Gesellschaftliche Mitbestimmung | F191: Condivisione sociale delle decisioni | G191: Social participation | H191: Participación en la toma de decisiones el entorno social | I191: ="[fr]"&E191 -> [fr]Gesellschaftliche Mitbestimmung | J191: Participação social na tomada de decisões
C192: E4.3 | D192: =HLOOKUP($C$1,$E$1:$X$4910,ROW(D192)) -> Negative aspect: lack of transparency and wilful misinformation | E192: Negativ-Aspekt: Förderung von Intransparenz und bewusste Fehlinformation | F192: Aspetto negativo: Promozione di poca trasparenza e informazioni consapevolmente errate | G192: Negative aspect: lack of transparency and wilful misinformation | H192: Aspecto negativo: manipulación de la información y falta de transparencia | I192: ="[fr]"&E192 -> [fr]Negativ-Aspekt: Förderung von Intransparenz und bewusste Fehlinformation | J192: Aspecto negativo: Promoção de intransparência e propagação de informação enganosa
D193: =HLOOKUP($C$1,$E$1:$X$4910,ROW(D193)) -> 0
D194: =HLOOKUP($C$1,$E$1:$X$4910,ROW(D194)) -> Company details | E194: Fakten zum Unternehmen | F194: Fatti sull’azienda | G194: Company details | H194: Datos de la empresa | I194: ="[fr]"&E194 -> [fr]Fakten zum Unternehmen | J194: ="[pt]"&E194 -> [pt]Fakten zum Unternehmen | K194: ="[gr]"&E194 -> [gr]Fakten zum Unternehmen
D195: =HLOOKUP($C$1,$E$1:$X$4910,ROW(D195)) -> Fill in the highlighted fields below. Where detailed information is not available, please enter estimates, otherwise the calculation will not be accurate | E195: Bitte füllen Sie die farblich markierten Felder mit Daten für den Bilanzierungszeitraum, meist das Geschäftsjahr, aus. Falls der Bilanzierungszeitraum länger als 1 Jahr ist können Sie auch ein Geschäftsjahr aus dem Bilanzierungszeitraum auswählen. Sollten dennoch keine konkreten Daten vorliegen bitte um grobe Schätzungen, da die Berechnung sonst fehlerhaft ist. | F195: Si prega di compilare i campi con codice colore con i dati per il periodo contabile, di solito l'anno fiscale. Se il periodo contabile supera 1 anno, è anche possibile selezionare un anno fiscale dal periodo contabile. Se non ci sono dati concreti, si prega di fornire stime approssimative, altrimenti il ​​calcolo sarà errato. | G195: Fill in the highlighted fields below. Where detailed information is not available, please enter estimates, otherwise the calculation will not be accurate | H195: Rellene los campos marcados con color. Si no dispusiera de algunos datos en concreto, estime su valor. Los datos son necesarios para que la hoja de cálculo funcione correctamente. | I195: ="[fr]"&E195 -> [fr]Bitte füllen Sie die farblich markierten Felder mit Daten für den Bilanzierungszeitraum, meist das Geschäftsjahr, aus. Falls der Bilanzierungszeitraum länger als 1 Jahr ist können Sie auch ein Geschäftsjahr aus dem Bilanzierungszeitraum auswählen. Sollten dennoch keine konkreten Daten vorliegen bitte um grobe Schätzungen, da die Berechnung sonst fehlerhaft ist. | J195: ="[pt]"&E195 -> [pt]Bitte füllen Sie die farblich markierten Felder mit Daten für den Bilanzierungszeitraum, meist das Geschäftsjahr, aus. Falls der Bilanzierungszeitraum länger als 1 Jahr ist können Sie auch ein Geschäftsjahr aus dem Bilanzierungszeitraum auswählen. Sollten dennoch keine konkreten Daten vorliegen bitte um grobe Schätzungen, da die Berechnung sonst fehlerhaft ist. | K195: ="[gr]"&E195 -> [gr]Bitte füllen Sie die farblich markierten Felder mit Daten für den Bilanzierungszeitraum, meist das Geschäftsjahr, aus. Falls der Bilanzierungszeitraum länger als 1 Jahr ist können Sie auch ein Geschäftsjahr aus dem Bilanzierungszeitraum auswählen. Sollten dennoch keine konkreten Daten vorliegen bitte um grobe Schätzungen, da die Berechnung sonst fehlerhaft ist.
D196: =HLOOKUP($C$1,$E$1:$X$4910,ROW(D196)) -> 0
D197: =HLOOKUP($C$1,$E$1:$X$4910,ROW(D197)) -> 0
D198: =HLOOKUP($C$1,$E$1:$X$4910,ROW(D198)) -> 0
D199: =HLOOKUP($C$1,$E$1:$X$4910,ROW(D199)) -> 0
D200: =HLOOKUP($C$1,$E$1:$X$4910,ROW(D200)) -> 0
D201: =HLOOKUP($C$1,$E$1:$X$4910,ROW(D201)) -> 0
... 360 more rows
